Workbook

Sheet Instructions (hidden)
A1: How to Create the Order By Size File
A2: 1 | B2: Save a copy of the master file. Format is YYYY.MM.DD US Order By Size.xlsm. The Date should be the same date as the master file.
A3: 2 | B3: Go to the calcs tab and set Active Tool Being Used to 2. This is the number in the red highlighted cell.
A4: 3 | B4: Hide all tabs that are colored green
A5: 4 | B5: Hide all tabs that are colored gray
A6: 5 | B6: The packing list tab will stay visible
A7: 6 | B7: One at a time, apply protection to the turquoise colored tabs. Verify options are checked like this image.
A8: 7 | B8: Apply protection to the packing list tab.
A9: 8 | B9: Hide the instructions tab
A10: 9 | B10: Apply protection to the entire Workbook
A11: 10 | B11: Save the file.
A15: How to Create the Room Layout File
A16: 1 | B16: Save a copy of the master file. Format is YYYY.MM.DD US Room Layout.xlsm. The Date should be the same date as the master file.
A17: 2 | B17: Go to the calcs tab and set Active Tool Being Used to 1. This is the number in the red highlighted cell.
A18: 3 | B18: Hide all tabs that are colored turquoise
A19: 4 | B19: Hide all tabs that are colored gray
A20: 5 | B20: The packing list tab will stay visible
A21: 6 | B21: One at a time, apply protection to the green colored tabs. Verify options are checked like this image.
A22: 7 | B22: Apply protection to the packing list tab.
A23: 8 | B23: Hide the instructions tab
A24: 9 | B24: Apply protection to the entire Workbook
A25: 10 | B25: Save the file.

Sheet Revision History (hidden)
A1: Date | B1: File Name Date | C1: Description | D1: OBS File | E1: RLO File
A2: 2019-01-08 | B2: 2019.01.08 | C2: Fixing a print selection area on the bulk order parts list | D2: X | E2: X
A3: 2019-02-11 | B3: 2019.02.11 | C3: Fixed the B dimension for 5' benches. This needs to be an additional 6" when there is a 5' Bench.
A4: 2019-02-11 | B4: 2019.02.11 | C4: Updated part numbers that were in 10102-xxxxx format to the latest 7xxxxx format
A5: 2019-02-11 | B5: 2019.02.11 | C5: Upated price of Bond Three Sealant from $12 to $13
A6: 2019-02-12 | B6: 2019.02.12 | C6: Changed reference for B dimension to number of 5' benches, Calcs Cell F71
A7: 2019-04-08 | B7: 2019.04.08 | C7: Fixed BOM calculation error for individual parts for trellis mount, thumb screw & 1" screws. It didn't account for the 5' bench. Also added calculation descriptions for most of the remaing parts.
A8: 2019-07-22 | B8: 2019.07.22 | C8: Added capability for 2', 3' & 4' end sections to the bench to provide for added capability.
A9: 2019-10-16 | B9: 2019.10.14 | C9: Removed reference to Box Kits. Updated calculations on the order BOM tabs. Added new part numbers. Changed slightly the amount of spare screws due to BOM calculation changes
A10: 2019-10-29 | B10: 2019.10.29 | C10: Added End Cap PN, fixed calculations. Added 5' summary to Room Layout PO
A11: 2020-04-15 | B11: 2020.04.15 | C11: 1. Corrected the middle tray count for OBS 65'6" length from 12 to 11. 2. Added logic to calcs C41 to prevent values below 24. 3. Removed logic from calcs C54 that was left over from full length bench calcs. This caused area to zero out on short benches. 4. Room Layout B7 Reduced room width to 6' min (changed data validation requirements) 5. Unlocked specific description cells on Room Layout Tab. 6. Trellis mount PN updated to MS3783 (this is the rev B of the part). 7. Added screw kits, outlined SKU for each kit. 8. Updated bulk kit SKU numbers & resale prices.

Sheet Order By Size (hidden)
E2: Order By Size
B8: Bench Selections
B9: Width | C9: Length | D9: Height | E9: Qty | F9: Notes
B10: 4'
B11: 4'
B12: 4'
B13: 4'
B14: 4'
B15: 4'
B16: 4'
B17: 4'
B18: 4'
B19: 4'
B21: 5'
B22: 5'
B23: 5'
B24: 5'
B25: 5'
B26: 5'
B27: 5'
B28: 5'
B29: 5'
B30: 5'
B32: Number of Instructions | E32: 1

Sheet Room Layout
B2: Slide Bench Room Layout Calculator
A5: Room Size
A6: Room Length | B6: 100 | C6: Feet | D6: 0 | E6: Inches
A7: Room Width | B7: 100 | C7: Feet | D7: 0 | E7: Inches
A8: Rotate Room Layout 90 Degrees
A9: Number of Identical Rooms | B9: 1
A10: Worksheet Name For Room Side | C10: Specific Description for Room Side
A11: Drain Side
A12: Front Side
A13: Left Side
A14: Right Side
A15: Bench, Aisle & Wall Spacing
A16: Room Right Side Aisle Minimum Width | B16: 0 | C16: Inches | F16: Right bench slid to the right
A17: Room Left Side Aisle Minimum Width | B17: 0 | C17: Inches | F17: Left bench slid to the left
A18: Front Aisle Minimum Width | B18: 0 | C18: Inches
A19: Drain End Spacing to Wall | B19: 0 | C19: Inches
A20: Aisle Between Benches Width | B20: 17 | C20: Inches | F20: 17" & 34" are optimal Widths
A21: Bench Configuration Selections
A22: Bench Widths Desired
A23: Maximum 5' Bench Qty (Override) | B23: 25 | F23: Mixed Only, set high for no restrictions
A24: Bench Height | C24: Inches | D24: =IF(Calcs!P4=1,"SELECT HEIGHT","") -> SELECT HEIGHT
A25: Details of the Actual Room & Bench Configuration
B26: 4' Wide | C26: 5' Wide | D26: Total
A27: Bench Width Types | B27: =Calcs!E61 -> 24 | C27: =Calcs!F61 -> 0 | D27: =Calcs!G61 -> 24
A28: Planting Area | B28: =(Calcs!C54*Calcs!E63)/144 -> 8830.7934 | C28: =(Calcs!C54*Calcs!F63)/144 -> 0 | D28: =B28+C28 -> 8830.7934 | E28: Sq Feet
A29: Bench Area | B29: =(Calcs!E61*(Calcs!C52*Calcs!C9))/144 -> 9552 | C29: =(Calcs!F61*(Calcs!C52*Calcs!D9))/144 -> 0 | D29: =B29+C29 -> 9552 | E29: Sq Feet
A30: Bench Lengths for Room | D30: =Calcs!C53 -> 99.5 | E30: Feet
B31: Minimum | D31: Maximum
A32: Room Right Side Actual Aisle | B32: =Calcs!G66 -> 31 | C32: Inches | D32: =Calcs!G67 -> 48 | E32: Inches
A33: Room Left Side Actual Aisle Width | B33: =Calcs!G64 -> 0 | C33: Inches | D33: =Calcs!G65 -> 17 | E33: Inches
A34: Room Front Aisle Actual Width | B34: =Calcs!C55 -> 6 | C34: Inches

Sheet Calcs (hidden)
A1: Activate Tool Being Used | C1: 1 | K1: Math to calculate quantities to drive PO & BOM
A2: Room Layout | B2: 1 | M2: Length
A3: Order by Size | B3: 2 | K3: Chart Row | L3: Active | M3: Length (ft) | N3: Index# | O3: Arch# | P3: Height | Q3: Bench QTY | R3: # of Rooms | S3: # of 12 Arches | U3: # of 20 Arches | W3: # of 30 Arches | Y3: Drain | Z3: Middle | AA3: 5' End | AB3: 4' End | AC3: 3' End | AD3: 2' End | AE3: +Anti-tip | AF3: Seams
I4: 4 Foot Wide | J4: Room Layout | K4: 0 | L4: =IF($C$1=1,1,0) -> 1 | M4: =C53 -> 99.5 | O4: =VLOOKUP(C53,'LU Table'!D4:F79,3) -> 20 | P4: 1 | Q4: =IF(OR(L4=0,P4=1),0,E61) -> 0 | R4: ='Room Layout'!B9 -> 1 | S4: =IF($P4=2,1,0) -> 0 | T4: =($O4+1)*$Q4*S4*R4 -> 0 | U4: =IF($P4=3,1,0) -> 0 | V4: =($O4+1)*$Q4*U4*R4 -> 0 | W4: =IF($P4=4,1,0) -> 0 | X4: =($O4+1)*$Q4*W4*R4 -> 0 | Y4: =Q4*R4 -> 0 | Z4: =C47*Q4*R4 -> 0 | AA4: =C48*Q4*R4 -> 0 | AB4: =C51*Q4*R4 -> 0 | AC4: =C50*Q4*R4 -> 0 | AD4: =C49*Q4*R4 -> 0 | AE4: =VLOOKUP(C53,'LU Table'!D4:L79,9)*Q4*R4 -> 0 | AF4: =(O4-1)*Q4*R4 -> 0
J5: Order by Size | K5: 1 | L5: =IF($C$1=1,0,1) -> 0 | M5: =VLOOKUP(N5,LookUp,2) -> -- | N5: 1 | O5: =VLOOKUP(N5,'LU Table'!$C$3:$F$79,4) -> 0 | P5: 1 | Q5: =IF(OR(N5=1,P5=1,L5=0),0,'Order By Size'!E10) -> 0 | R5: NA | S5: =IF($P5=2,1,0) -> 0 | T5: =($O5+1)*$Q5*S5 -> 0 | U5: =IF($P5=3,1,0) -> 0 | V5: =($O5+1)*$Q5*U5 -> 0 | W5: =IF($P5=4,1,0) -> 0 | X5: =($O5+1)*$Q5*W5 -> 0 | Y5: =Q5 -> 0 | Z5: =VLOOKUP(N5,LookUp,5)*Q5 -> 0 | AA5: =VLOOKUP(N5,LookUp,6)*Q5 -> 0 | AB5: =VLOOKUP(N5,LookUp,7)*Q5 -> 0 | AC5: =VLOOKUP(N5,LookUp,8)*Q5 -> 0 | AD5: =VLOOKUP(N5,LookUp,9)*Q5 -> 0 | AE5: =VLOOKUP(N5,LookUp,10)*Q5 -> 0 | AF5: =(O5-1)*Q5 -> 0
J6: Order by Size | K6: 2 | L6: 0 | M6: -- | N6: 1 | O6: =VLOOKUP(N6,'LU Table'!$C$3:$F$79,4) -> 0 | P6: 1 | Q6: =IF(OR(N6=1,P6=1,L6=0),0,'Order By Size'!E11) -> 0 | R6: NA | S6: 0 | T6: =($O6+1)*$Q6*S6 -> 0 | U6: 0 | V6: =($O6+1)*$Q6*U6 -> 0 | W6: 0 | X6: =($O6+1)*$Q6*W6 -> 0 | Y6: =Q6 -> 0 | Z6: 0 | AA6: 0 | AB6: 0 | AC6: 0 | AD6: 0 | AE6: 0 | AF6: 0
A7: Bench Design Parameters | J7: Order by Size | K7: 3 | L7: 0 | M7: -- | N7: 1 | O7: =VLOOKUP(N7,'LU Table'!$C$3:$F$79,4) -> 0 | P7: 1 | Q7: =IF(OR(N7=1,P7=1,L7=0),0,'Order By Size'!E12) -> 0 | R7: NA | S7: 0 | T7: 0 | U7: 0 | V7: 0 | W7: 0 | X7: 0 | Y7: 0 | Z7: 0 | AA7: 0 | AB7: 0 | AC7: 0 | AD7: 0 | AE7: 0 | AF7: 0
C8: 4' | D8: 5' | J8: Order by Size | K8: 4 | L8: 0 | M8: -- | N8: 1 | O8: =VLOOKUP(N8,'LU Table'!$C$3:$F$79,4) -> 0 | P8: 1 | Q8: =IF(OR(N8=1,P8=1,L8=0),0,'Order By Size'!E13) -> 0 | R8: NA | S8: 0 | T8: 0 | U8: 0 | V8: 0 | W8: 0 | X8: 0 | Y8: 0 | Z8: 0 | AA8: 0 | AB8: 0 | AC8: 0 | AD8: 0 | AE8: 0 | AF8: 0
A9: Bench Widths, Max Outside Dim | B9: [in] | C9: 48 | D9: 60 | J9: Order by Size | K9: 5 | L9: 0 | M9: -- | N9: 1 | O9: =VLOOKUP(N9,'LU Table'!$C$3:$F$79,4) -> 0 | P9: 1 | Q9: =IF(OR(N9=1,P9=1,L9=0),0,'Order By Size'!E14) -> 0 | R9: NA | S9: 0 | T9: 0 | U9: 0 | V9: 0 | W9: 0 | X9: 0 | Y9: 0 | Z9: 0 | AA9: 0 | AB9: 0 | AC9: 0 | AD9: 0 | AE9: 0 | AF9: 0
A10: Width Border, Per Side | B10: [in] | C10: 1.77 | D10: 1.77 | J10: Order by Size | K10: 6 | L10: 0 | M10: -- | N10: 1 | O10: =VLOOKUP(N10,'LU Table'!$C$3:$F$79,4) -> 0 | P10: 1 | Q10: =IF(OR(N10=1,P10=1,L10=0),0,'Order By Size'!E15) -> 0 | R10: NA | S10: 0 | T10: 0 | U10: 0 | V10: 0 | W10: 0 | X10: 0 | Y10: =Q10 -> 0 | Z10: 0 | AA10: 0 | AB10: 0 | AC10: 0 | AD10: 0 | AE10: 0 | AF10: 0
A11: Available Tray Planting Width | B11: [in] | C11: =C9-(2*C10) -> 44.46 | D11: =D9-(2*D10) -> 56.46 | J11: Order by Size | K11: 7 | L11: 0 | M11: -- | N11: 1 | O11: =VLOOKUP(N11,'LU Table'!$C$3:$F$79,4) -> 0 | P11: 1 | Q11: =IF(OR(N11=1,P11=1,L11=0),0,'Order By Size'!E16) -> 0 | R11: NA | S11: 0 | T11: 0 | U11: 0 | V11: 0 | W11: 0 | X11: 0 | Y11: 0 | Z11: 0 | AA11: 0 | AB11: 0 | AC11: 0 | AD11: 0 | AE11: 0 | AF11: 0
A12: Tray Slide Distance | B12: [in] | C12: 17 | J12: Order by Size | K12: 8 | L12: 0 | M12: -- | N12: 1 | O12: =VLOOKUP(N12,'LU Table'!$C$3:$F$79,4) -> 0 | P12: 1 | Q12: =IF(OR(N12=1,P12=1,L12=0),0,'Order By Size'!E17) -> 0 | R12: NA | S12: 0 | T12: 0 | U12: 0 | V12: 0 | W12: 0 | X12: 0 | Y12: 0 | Z12: 0 | AA12: 0 | AB12: 0 | AC12: 0 | AD12: 0 | AE12: 0 | AF12: 0
A13: Middle Tray Length | B13: [in] | C13: 60 | J13: Order by Size | K13: 9 | L13: 0 | M13: -- | N13: 1 | O13: =VLOOKUP(N13,'LU Table'!$C$3:$F$79,4) -> 0 | P13: 1 | Q13: =IF(OR(N13=1,P13=1,L13=0),0,'Order By Size'!E18) -> 0 | R13: NA | S13: 0 | T13: 0 | U13: 0 | V13: 0 | W13: 0 | X13: 0 | Y13: 0 | Z13: 0 | AA13: 0 | AB13: 0 | AC13: 0 | AD13: 0 | AE13: 0 | AF13: 0
A14: Drain End Tray Length | B14: [in] | C14: 66 | J14: Order by Size | K14: 10 | L14: 0 | M14: -- | N14: 1 | O14: =VLOOKUP(N14,'LU Table'!$C$3:$F$79,4) -> 0 | P14: 1 | Q14: =IF(OR(N14=1,P14=1,L14=0),0,'Order By Size'!E19) -> 0 | R14: NA | S14: 0 | T14: 0 | U14: 0 | V14: 0 | W14: 0 | X14: 0 | Y14: 0 | Z14: 0 | AA14: 0 | AB14: 0 | AC14: 0 | AD14: 0 | AE14: 0 | AF14: 0
A15: Drain End Tray Length Border | B15: [in] | C15: 1.13 | K15: Totals | Q15: =SUM(Q4:Q14) -> 0 | T15: =SUM(T4:T14) -> 0 | V15: =SUM(V4:V14) -> 0 | X15: =SUM(X4:X14) -> 0 | Y15: 0 | Z15: 0 | AA15: 0 | AB15: 0 | AC15: 0 | AD15: 0 | AE15: 0 | AF15: 0
A16: Available Drain Tray Planting Length | B16: [in] | C16: =C14-C15 -> 64.87 | I16: 5 Foot Wide | J16: Room Layout | K16: 0 | L16: =IF($C$1=1,1,0) -> 1 | M16: =M4 -> 99.5 | O16: =O4 -> 20 | P16: =P4 -> 1 | Q16: =IF(OR(L16=0,P16=1),0,F61) -> 0 | R16: ='Room Layout'!B9 -> 1 | S16: =IF($P16=2,1,0) -> 0 | T16: =($O16+1)*$Q16*S16*R16 -> 0 | U16: =IF($P16=3,1,0) -> 0 | V16: =($O16+1)*$Q16*U16*R16 -> 0 | W16: =IF($P16=4,1,0) -> 0 | X16: =($O16+1)*$Q16*W16*R16 -> 0 | Y16: =Q16*R16 -> 0 | Z16: =C47*Q16*R16 -> 0 | AA16: =C48*Q16*R16 -> 0 | AB16: =C51*Q16*R16 -> 0 | AC16: =C50*Q16*R16 -> 0 | AD16: =C49*Q16*R16 -> 0 | AF16: =(O16-1)*Q16*R16 -> 0
A17: Front End Full Tray Length | B17: [in] | C17: 60 | F17: Front End Short Tray Lookup | J17: Order by Size | K17: 1 | L17: =IF($C$1=1,0,1) -> 0 | M17: =VLOOKUP(N17,LookUp,2) -> -- | N17: 1 | O17: =VLOOKUP(N17,'LU Table'!$C$3:$F$79,4) -> 0 | P17: 1 | Q17: =IF(OR(N17=1,P17=1,L17=0),0,'Order By Size'!E21) -> 0 | R17: NA | S17: =IF($P17=2,1,0) -> 0 | T17: =($O17+1)*$Q17*S17 -> 0 | U17: =IF($P17=3,1,0) -> 0 | V17: =($O17+1)*$Q17*U17 -> 0 | W17: =IF($P17=4,1,0) -> 0 | X17: =($O17+1)*$Q17*W17 -> 0 | Y17: =Q17 -> 0 | Z17: =VLOOKUP(N17,LookUp,5)*Q17 -> 0 | AA17: =VLOOKUP(N17,LookUp,6)*Q17 -> 0 | AB17: =VLOOKUP(N17,LookUp,7)*Q17 -> 0 | AC17: =VLOOKUP(N17,LookUp,8)*Q17 -> 0 | AD17: =VLOOKUP(N17,LookUp,9)*Q17 -> 0 | AF17: =(O17-1)*Q17 -> 0
A18: Front End Tray Length Border | B18: [in] | C18: 1.13 | F18: Fractional | G18: Length [in] | J18: Order by Size | K18: 2 | L18: 0 | M18: -- | N18: 1 | O18: =VLOOKUP(N18,'LU Table'!$C$3:$F$79,4) -> 0 | P18: 1 | Q18: =IF(OR(N18=1,P18=1,L18=0),0,'Order By Size'!E22) -> 0 | R18: NA | S18: 0 | T18: =($O18+1)*$Q18*S18 -> 0 | U18: 0 | V18: =($O18+1)*$Q18*U18 -> 0 | W18: 0 | X18: =($O18+1)*$Q18*W18 -> 0 | Y18: =Q18 -> 0 | Z18: 0 | AA18: 0 | AB18: 0 | AC18: 0 | AD18: 0 | AF18: 0
A19: Available Front Tray Planting Length | B19: [in] | C19: =C17-C18 -> 58.87 | F19: 0 | G19: 0 | J19: Order by Size | K19: 3 | L19: 0 | M19: -- | N19: 1 | O19: =VLOOKUP(N19,'LU Table'!$C$3:$F$79,4) -> 0 | P19: 1 | Q19: =IF(OR(N19=1,P19=1,L19=0),0,'Order By Size'!E23) -> 0 | R19: NA | S19: 0 | T19: 0 | U19: 0 | V19: 0 | W19: 0 | X19: 0 | Y19: 0 | Z19: 0 | AA19: 0 | AB19: 0 | AC19: 0 | AD19: 0 | AF19: 0
A20: Tray Seam Length | B20: [in] | C20: 54.92 | D20: 66.92 | F20: 0.4 | G20: 24 | J20: Order by Size | K20: 4 | L20: 0 | M20: -- | N20: 1 | O20: =VLOOKUP(N20,'LU Table'!$C$3:$F$79,4) -> 0 | P20: 1 | Q20: =IF(OR(N20=1,P20=1,L20=0),0,'Order By Size'!E24) -> 0 | R20: NA | S20: 0 | T20: 0 | U20: 0 | V20: 0 | W20: 0 | X20: 0 | Y20: 0 | Z20: 0 | AA20: 0 | AB20: 0 | AC20: 0 | AD20: 0 | AF20: 0
A21: Drain Tray End to Foot Edge | B21: [in] | C21: 5.125 | F21: 0.6 | G21: 36 | J21: Order by Size | K21: 5 | L21: 0 | M21: -- | N21: 1 | O21: =VLOOKUP(N21,'LU Table'!$C$3:$F$79,4) -> 0 | P21: 1 | Q21: =IF(OR(N21=1,P21=1,L21=0),0,'Order By Size'!E25) -> 0 | R21: NA | S21: 0 | T21: 0 | U21: 0 | V21: 0 | W21: 0 | X21: 0 | Y21: 0 | Z21: 0 | AA21: 0 | AB21: 0 | AC21: 0 | AD21: 0 | AF21: 0
A22: Left Tray Edge to Foot Edge w/ Slide | B22: [in] | C22: 19.25 | D22: 25.25 | F22: 0.8 | G22: 48 | J22: Order by Size | K22: 6 | L22: 0 | M22: -- | N22: 1 | O22: =VLOOKUP(N22,'LU Table'!$C$3:$F$79,4) -> 0 | P22: 1 | Q22: =IF(OR(N22=1,P22=1,L22=0),0,'Order By Size'!E26) -> 0 | R22: NA | S22: 0 | T22: 0 | U22: 0 | V22: 0 | W22: 0 | X22: 0 | Y22: =Q22 -> 0 | Z22: 0 | AA22: 0 | AB22: 0 | AC22: 0 | AD22: 0 | AF22: 0
A23: Foot Edge to Edge, 4' to 4' | B23: [in] | C23: 31 | J23: Order by Size | K23: 7 | L23: 0 | M23: -- | N23: 1 | O23: =VLOOKUP(N23,'LU Table'!$C$3:$F$79,4) -> 0 | P23: 1 | Q23: =IF(OR(N23=1,P23=1,L23=0),0,'Order By Size'!E27) -> 0 | R23: NA | S23: 0 | T23: 0 | U23: 0 | V23: 0 | W23: 0 | X23: 0 | Y23: 0 | Z23: 0 | AA23: 0 | AB23: 0 | AC23: 0 | AD23: 0 | AF23: 0
A24: Foot Edge to Edge, 4' to 5' | B24: [in] | C24: 37 | J24: Order by Size | K24: 8 | L24: 0 | M24: -- | N24: 1 | O24: =VLOOKUP(N24,'LU Table'!$C$3:$F$79,4) -> 0 | P24: 1 | Q24: =IF(OR(N24=1,P24=1,L24=0),0,'Order By Size'!E28) -> 0 | R24: NA | S24: 0 | T24: 0 | U24: 0 | V24: 0 | W24: 0 | X24: 0 | Y24: 0 | Z24: 0 | AA24: 0 | AB24: 0 | AC24: 0 | AD24: 0 | AF24: 0
A25: Foot Edge to Edge, 5' to 5' | B25: [in] | C25: 43 | J25: Order by Size | K25: 9 | L25: 0 | M25: -- | N25: 1 | O25: =VLOOKUP(N25,'LU Table'!$C$3:$F$79,4) -> 0 | P25: 1 | Q25: =IF(OR(N25=1,P25=1,L25=0),0,'Order By Size'!E29) -> 0 | R25: NA | S25: 0 | T25: 0 | U25: 0 | V25: 0 | W25: 0 | X25: 0 | Y25: 0 | Z25: 0 | AA25: 0 | AB25: 0 | AC25: 0 | AD25: 0 | AF25: 0
A26: Foot Edge to Edge, Long Section | B26: [in] | C26: 60 | J26: Order by Size | K26: 10 | L26: 0 | M26: -- | N26: 1 | O26: =VLOOKUP(N26,'LU Table'!$C$3:$F$79,4) -> 0 | P26: 1 | Q26: =IF(OR(N26=1,P26=1,L26=0),0,'Order By Size'!E30) -> 0 | R26: NA | S26: 0 | T26: 0 | U26: 0 | V26: 0 | W26: 0 | X26: 0 | Y26: 0 | Z26: 0 | AA26: 0 | AB26: 0 | AC26: 0 | AD26: 0 | AF26: 0
A27: Foot Edge to Edge, 5' Section | B27: [in] | C27: 54 | K27: Totals | Q27: =SUM(Q16:Q26) -> 0 | T27: =SUM(T16:T26) -> 0 | V27: =SUM(V16:V26) -> 0 | X27: =SUM(X16:X26) -> 0 | Y27: =SUM(Y16:Y26) -> 0 | Z27: =SUM(Z16:Z26) -> 0 | AA27: =SUM(AA16:AA26) -> 0 | AB27: =SUM(AB16:AB26) -> 0 | AC27: 0 | AD27: 0 | AF27: =SUM(AF16:AF26) -> 0
A28: Foot Edge to Edge, 4' Section | B28: [in] | C28: 42
A29: Foot Edge to Edge, 3' Section | B29: [in] | C29: 30 | J29: # of Instructions
A30: Foot Edge to Edge, 2' Section | B30: [in] | C30: 18 | K30: From Tab | L30: Active | M30: Qty
J31: Room Layout | K31: ='Room Layout'!#REF! ->  | L31: =IF($C$1=1,1,0) -> 1 | M31: =K31*L31 -> 
J32: Order by Size | K32: ='Order By Size'!E32 -> 1 | L32: =IF($C$1=1,0,1) -> 0 | M32: =K32*L32 -> 0
A33: Room Size Calculations
A34: Flip Room | B34: FALSE
A35: Room Length | B35: [in] | C35: =IF(B34=FALSE,('Room Layout'!B6*12)+'Room Layout'!D6,('Room Layout'!B7*12)+'Room Layout'!D7) -> 1200 | L35: NEW-Math to calculate quantities to drive PO
A36: Room Width | B36: [in] | C36: =IF(B34=FALSE,('Room Layout'!B7*12)+'Room Layout'!D7,('Room Layout'!B6*12)+'Room Layout'!D6) -> 1200 | M36: Length
A37: Room Length, Usable | B37: [in] | C37: =C35-('Room Layout'!B18+'Room Layout'!B19) -> 1200 | K37: Transfer Filter | L37: Width (ft) | M37: Length (ft) | N37: Height | O37: Bench QTY | P37: Room Multiplier | Q37: Total QTY
A38: Room Width, Usable | B38: [in] | C38: =C36-('Room Layout'!B16+'Room Layout'!B17) -> 1200 | K38: =IF(Q38=0,0,1) -> 0 | L38: 4 | M38: =M4 -> 99.5 | N38: =_xlfn.IFS(P4=2,12,P4=3,20,P4=4,30) ->  | O38: =Q4 -> 0 | P38: =R4 -> 1 | Q38: =O38*P38 -> 0 | R38: ="SB"&L38*12&"-"&M38*12&"-"&N38&"B" -> 
A39: Aisle Between Benches | B39: [in] | C39: ='Room Layout'!B20 -> 17 | D39: =C39-C12 -> 0 | E39: Additional Aisle Width | K39: =IF(Q39=0,0,MAX(K38)+1) -> 0 | L39: 5 | M39: =M16 -> 99.5 | N39: =_xlfn.IFS(P16=2,12,P16=3,20,P16=4,30) ->  | O39: =Q16 -> 0 | P39: =R16 -> 1 | Q39: =O39*P39 -> 0 | R39: ="SB"&L39*12&"-"&M39*12&"-"&N39&"B" -> 
A40: Bench & Tray Length Details (New with Short Ends)
A41: Room Usable Length - Drain Tray length | B41: [in] | C41: =IF((C37-C14)<24,24,(C37-C14)) -> 1134
A42: Number of Full Length Trays Remaining | B42: [#] | C42: =C41/60 -> 18.9
A43: Rounded Down Whole | B43: [#] | C43: =ROUNDDOWN(C42,0) -> 18
A44: Fractional Full Length Tray | C44: =ROUNDDOWN((C42-C43),1) -> 0.8
A45: Fractional Tray Length | B45: [in] | C45: =VLOOKUP(C44,F19:G22,2,TRUE) -> 48
A46: First 5' Tray is end/middle logic | C46: =IF(C45>0,0,1) -> 0 | D46: For use in Tray quantity calculations
A47: Number of Middle Trays | B47: [#] | C47: =C43-C46 -> 18
A48: Number of Full End Trays | B48: [#] | C48: =C46 -> 0
A49: Number of Short End Trays (24") | B49: [#] | C49: =IF(C45=24,1,0) -> 0
A50: Number of Short End Trays (36") | B50: [#] | C50: =IF(C45=36,1,0) -> 0
A51: Number of Short End Trays (48") | B51: [#] | C51: =IF(C45=48,1,0) -> 1
A52: Bench Length | B52: [in] | C52: =C14+(C13*C47)+(C48*C17)+C45 -> 1194
A53: Bench Length | B53: [ft] | C53: =C52/12 -> 99.5
A54: Tray Length, Plantable | B54: [in] | C54: =C52-C15-C18 -> 1191.74
A55: Front Aisle Actual Width | B55: [in] | C55: =C37-C52+'Room Layout'!B18 -> 6
A57: Bench & Tray Width Details
A58: Tray Selection | C58: 1 | D58: 1=4' | E58: 2=5' | F58: 3=Mix
C59: Single | E59: Mix
C60: 4' | D60: 5' | E60: 4' | F60: 5' | G60: Total
A61: Bench/Tray Count (Room Width) | B61: [#] | C61: =ROUNDDOWN((C38-C12+D39)/(C9+D39),0) -> 24 | D61: =ROUNDDOWN((C38-C12+D39)/(D9+D39),0) -> 19 | E61: =IF(C58=2,0,IF(C58=1,C61,ROUNDDOWN((C38-C12+D39-(F61*(D9+D39)))/(C9+D39),0))) -> 24 | F61: =IF(C58=1,0,IF(C58=2,D61,MIN('Room Layout'!B23,D61))) -> 0 | G61: =E61+F61 -> 24
A62: Room Width Occupied, Actual | B62: [in] | C62: =C61*(C9+D39)-D39 -> 1152 | D62: =D61*(D9+D39)-D39 -> 1140 | E62: =E61*(C9+D39)-D39 -> 1152 | F62: =F61*(D9+D39)-D39 -> 0 | G62: =E62+F62+D39 -> 1152
A63: Total Plantable Width | B63: [in] | C63: =C61*C11 -> 1067.04 | D63: =D61*D11 -> 1072.74 | E63: =E61*C11 -> 1067.04 | F63: =F61*D11 -> 0 | G63: =E63+F63 -> 1067.04
A64: Left Aisle, Min | B64: [in] | C64: ='Room Layout'!B17 -> 0 | D64: =C64 -> 0 | G64: =C64 -> 0 | I64: Plotting
A65: Left Aisle, Max | B65: [in] | C65: =C64+C12 -> 17 | D65: =C65 -> 17 | G65: =C65 -> 17 | I65: Room Outline | L65: Usable Area | P65: Benches in Sequence | U65: 4' Benches | Z65: 5' Benches
A66: Right Aisle, Min | B66: [in] | C66: =C36-C62-C65 -> 31 | D66: =C36-D62-D65 -> 43 | G66: =C36-G62-G65 -> 31 | I66: X | J66: Y | L66: X | M66: Y | Q66: X | R66: Y | V66: X | W66: Y | AA66: X | AB66: Y
A67: Right Aisle, Max | B67: [in] | C67: =C66+C12 -> 48 | D67: =D66+C12 -> 60 | G67: =G66+C12 -> 48 | I67: 0 | J67: 0 | L67: ='Room Layout'!B17/12 -> 0 | M67: ='Room Layout'!B18/12 -> 0 | O67: Row | P67: 1 | Q67: =($C$64/12)*P68 -> 0 | R67: =(($C$35-'Room Layout'!B19)/12)*P68 -> 100 | T67: Row | U67: 1 | V67: =Q67*U68 -> 0 | W67: =R67*U68 -> 100 | Y67: Row | Z67: 1 | AA67: =Q67*Z68 -> 0 | AB67: =R67*Z68 -> 0
A68: Tray Sealant Usage Calculations | I68: =I67 -> 0 | J68: =C35/12 -> 100 | L68: =(C38+G64)/12 -> 100 | M68: =M67 -> 0 | O68: On/Off | P68: =IF(P67>$G$61,0,1) -> 1 | Q68: =(Q67+(P71/12))*P68 -> 4 | R68: =R67 -> 100 | T68: 4' or 5' | U68: =IF(P71<$D$9,1,0) -> 1 | V68: =Q68*U68 -> 4 | W68: =R68*U68 -> 100 | Y68: 4' or 5' | Z68: =IF(P71<$D$9,0,1) -> 0 | AA68: =Q68*Z68 -> 0 | AB68: =R68*Z68 -> 0
A69: Tube Size | B69: [ounces] | C69: 10.1 | I69: =C36/12 -> 100 | J69: =J68 -> 100 | L69: =L68 -> 100 | M69: =M68+(C37/12) -> 100 | O69: Inside Reference | Q69: =Q68 -> 4 | R69: =(R68-($C$52/12))*P68 -> 0.5 | V69: =Q69*U68 -> 4 | W69: =R69*U68 -> 0.5 | AA69: =Q69*Z68 -> 0 | AB69: =R69*Z68 -> 0
A70: Tube Volume | B70: [in^3] | C70: =C69*1.805 -> 18.2305 | I70: =I69 -> 100 | J70: =J67 -> 0 | L70: =L67 -> 0 | M70: =M69 -> 100 | O70: Outside Reference | Q70: =Q67 -> 0 | R70: =R69 -> 0.5 | V70: =Q70*U68 -> 0 | W70: =R70*U68 -> 0.5 | AA70: =Q70*Z68 -> 0 | AB70: =R70*Z68 -> 0
A71: Usage Efficiency | B71: [%] | C71: 0.95 | I71: =I67 -> 0 | J71: =J67 -> 0 | L71: =L67 -> 0 | M71: =M67 -> 0 | O71: 4' or 5' | P71: =IF(P67>$F$61,$C$9,$D$9) -> 48 | Q71: =Q67 -> 0 | R71: =R67 -> 100 | V71: =Q71*U68 -> 0 | W71: =R71*U68 -> 100 | AA71: =Q71*Z68 -> 0 | AB71: =R71*Z68 -> 0
A72: Bead Width | B72: [in] | C72: 0.35 | D72: Decimal equivalent of a fraction
A73: Bead Height | B73: [in] | C73: 0.35 | D73: Decimal equivalent of a fraction | I73: Plot Sizing | O73: Row | P73: 2 | Q73: =(Q68+($D$39/12))*P74 -> 4 | R73: =(R68)*P74 -> 100 | T73: Row | U73: 2 | V73: =Q73*U74 -> 4 | W73: =R73*U74 -> 100 | Y73: Row | Z73: 2 | AA73: =Q73*Z74 -> 0 | AB73: =R73*Z74 -> 0
A74: Bead Application Efficiency | B74: [%] | C74: 0.7 | D74: How much do they actually install vs required bead size | I74: X | J74: Y | O74: On/Off | P74: =IF(P73>$G$61,0,1) -> 1 | Q74: =(Q73+(P77/12))*P74 -> 8 | R74: =R73 -> 100 | T74: 4' or 5' | U74: =IF(P77<$D$9,1,0) -> 1 | V74: =Q74*U74 -> 8 | W74: =R74*U74 -> 100 | Y74: 4' or 5' | Z74: =IF(P77<$D$9,0,1) -> 0 | AA74: =Q74*Z74 -> 0 | AB74: =R74*Z74 -> 0
A75: Volume of a linear inch | B75: [in^3] | C75: =(C72*C73)*1*C74 -> 0.08575 | I75: 0 | J75: 0 | O75: Inside Reference | Q75: =Q74 -> 8 | R75: =(R74-($C$52/12))*P74 -> 0.5 | V75: =Q75*U74 -> 8 | W75: =R75*U74 -> 0.5 | AA75: =Q75*Z74 -> 0 | AB75: =R75*Z74 -> 0
A76: 1 Tube can seal (length) | B76: [in] | C76: =(C70/C75)*C71 -> 201.9705539 | I76: =I75 -> 0 | J76: =MAX(I67:J71)+1 -> 101 | O76: Outside Reference | Q76: =Q73 -> 4 | R76: =R75 -> 0.5 | V76: =Q76*U74 -> 4 | W76: =R76*U74 -> 0.5 | AA76: =Q76*Z74 -> 0 | AB76: =R76*Z74 -> 0
B77: [ft] | C77: =C76/12 -> 16.83087949 | I77: =MAX(I67:J71)+1 -> 101 | J77: =J76 -> 101 | O77: 4' or 5' | P77: =IF(P73>$F$61,$C$9,$D$9) -> 48 | Q77: =Q73 -> 4 | R77: =R73 -> 100 | V77: =Q77*U74 -> 4 | W77: =R77*U74 -> 100 | AA77: =Q77*Z74 -> 0 | AB77: =R77*Z74 -> 0
A78: Total 4' Seams | B78: [#] | C78: =AF15 -> 0 | I78: =I77 -> 101 | J78: =J75 -> 0
B79: [ft] | C79: =(C78*C20)/12 -> 0 | I79: =I75 -> 0 | J79: =J75 -> 0 | O79: Row | P79: 3 | Q79: =(Q74+($D$39/12))*P80 -> 8 | R79: =(R74)*P80 -> 100 | T79: Row | U79: 3 | V79: =Q79*U80 -> 8 | W79: =R79*U80 -> 100 | Y79: Row | Z79: 3 | AA79: =Q79*Z80 -> 0 | AB79: =R79*Z80 -> 0
A80: Total 5' Seams | B80: [#] | C80: =AF27 -> 0 | O80: On/Off | P80: =IF(P79>$G$61,0,1) -> 1 | Q80: =(Q79+(P83/12))*P80 -> 12 | R80: =R79 -> 100 | T80: 4' or 5' | U80: =IF(P83<$D$9,1,0) -> 1 | V80: =Q80*U80 -> 12 | W80: =R80*U80 -> 100 | Y80: 4' or 5' | Z80: =IF(P83<$D$9,0,1) -> 0 | AA80: =Q80*Z80 -> 0 | AB80: =R80*Z80 -> 0
B81: [ft] | C81: =(C80*D20)/12 -> 0 | O81: Inside Reference | Q81: =Q80 -> 12 | R81: =(R80-($C$52/12))*P80 -> 0.5 | V81: =Q81*U80 -> 12 | W81: =R81*U80 -> 0.5 | AA81: =Q81*Z80 -> 0 | AB81: =R81*Z80 -> 0
A82: Total Seam Length | B82: [ft] | C82: =C79+C81 -> 0 | O82: Outside Reference | Q82: =Q79 -> 8 | R82: =R81 -> 0.5 | V82: =Q82*U80 -> 8 | W82: =R82*U80 -> 0.5 | AA82: =Q82*Z80 -> 0 | AB82: =R82*Z80 -> 0
A83: Sealant Tubes Required | B83: [#] | C83: =ROUNDUP(C82/C77,0) -> 0 | D83: =C82/C77 -> 0 | E83: Raw Number | O83: 4' or 5' | P83: =IF(P79>$F$61,$C$9,$D$9) -> 48 | Q83: =Q79 -> 8 | R83: =R79 -> 100 | V83: =Q83*U80 -> 8 | W83: =R83*U80 -> 100 | AA83: =Q83*Z80 -> 0 | AB83: =R83*Z80 -> 0
A84: Room Layout Calculations
A85: Distance A | B85: [in] | C85: ='Room Layout'!B19+C21 -> 5.125 | O85: Row | P85: 4 | Q85: =(Q80+($D$39/12))*P86 -> 12 | R85: =(R80)*P86 -> 100 | T85: Row | U85: 4 | V85: =Q85*U86 -> 12 | W85: =R85*U86 -> 100 | Y85: Row | Z85: 4 | AA85: =Q85*Z86 -> 0 | AB85: =R85*Z86 -> 0
A86: Distance B | B86: [in] | C86: =(IF(F61>0,G64+D22,G64+C22)) -> 19.25 | O86: On/Off | P86: =IF(P85>$G$61,0,1) -> 1 | Q86: =(Q85+(P89/12))*P86 -> 16 | R86: =R85 -> 100 | T86: 4' or 5' | U86: =IF(P89<$D$9,1,0) -> 1 | V86: =Q86*U86 -> 16 | W86: =R86*U86 -> 100 | Y86: 4' or 5' | Z86: =IF(P89<$D$9,0,1) -> 0 | AA86: =Q86*Z86 -> 0 | AB86: =R86*Z86 -> 0
A87: Distance C, 4' to 4' | B87: [in] | C87: =C23+C39 -> 48 | O87: Inside Reference | Q87: =Q86 -> 16 | R87: =(R86-($C$52/12))*P86 -> 0.5 | V87: =Q87*U86 -> 16 | W87: =R87*U86 -> 0.5 | AA87: =Q87*Z86 -> 0 | AB87: =R87*Z86 -> 0
A88: Distance C, 4' to 5' | B88: [in] | C88: =C24+C39 -> 54 | O88: Outside Reference | Q88: =Q85 -> 12 | R88: =R87 -> 0.5 | V88: =Q88*U86 -> 12 | W88: =R88*U86 -> 0.5 | AA88: =Q88*Z86 -> 0 | AB88: =R88*Z86 -> 0
A89: Distance C, 5' to 5' | B89: [in] | C89: =C25+C39 -> 60 | O89: 4' or 5' | P89: =IF(P85>$F$61,$C$9,$D$9) -> 48 | Q89: =Q85 -> 12 | R89: =R85 -> 100 | V89: =Q89*U86 -> 12 | W89: =R89*U86 -> 100 | AA89: =Q89*Z86 -> 0 | AB89: =R89*Z86 -> 0
A90: Distance L | B90: [in] | C90: =((C47+1)*C26)+(C48*C27)+(C49*C30)+(C50*C29)+(C51*C28) -> 1182
O91: Row | P91: 5 | Q91: =(Q86+($D$39/12))*P92 -> 16 | R91: =(R86)*P92 -> 100 | T91: Row | U91: 5 | V91: =Q91*U92 -> 16 | W91: =R91*U92 -> 100 | Y91: Row | Z91: 5 | AA91: =Q91*Z92 -> 0 | AB91: =R91*Z92 -> 0
O92: On/Off | P92: =IF(P91>$G$61,0,1) -> 1 | Q92: =(Q91+(P95/12))*P92 -> 20 | R92: =R91 -> 100 | T92: 4' or 5' | U92: =IF(P95<$D$9,1,0) -> 1 | V92: =Q92*U92 -> 20 | W92: =R92*U92 -> 100 | Y92: 4' or 5' | Z92: =IF(P95<$D$9,0,1) -> 0 | AA92: =Q92*Z92 -> 0 | AB92: =R92*Z92 -> 0
O93: Inside Reference | Q93: =Q92 -> 20 | R93: =(R92-($C$52/12))*P92 -> 0.5 | V93: =Q93*U92 -> 20 | W93: =R93*U92 -> 0.5 | AA93: =Q93*Z92 -> 0 | AB93: =R93*Z92 -> 0
O94: Outside Reference | Q94: =Q91 -> 16 | R94: =R93 -> 0.5 | V94: =Q94*U92 -> 16 | W94: =R94*U92 -> 0.5 | AA94: =Q94*Z92 -> 0 | AB94: =R94*Z92 -> 0
O95: 4' or 5' | P95: =IF(P91>$F$61,$C$9,$D$9) -> 48 | Q95: =Q91 -> 16 | R95: =R91 -> 100 | V95: =Q95*U92 -> 16 | W95: =R95*U92 -> 100 | AA95: =Q95*Z92 -> 0 | AB95: =R95*Z92 -> 0
O97: Row | P97: 6 | Q97: =(Q92+($D$39/12))*P98 -> 20 | R97: =(R92)*P98 -> 100 | T97: Row | U97: 6 | V97: =Q97*U98 -> 20 | W97: =R97*U98 -> 100 | Y97: Row | Z97: 6 | AA97: =Q97*Z98 -> 0 | AB97: =R97*Z98 -> 0
O98: On/Off | P98: =IF(P97>$G$61,0,1) -> 1 | Q98: =(Q97+(P101/12))*P98 -> 24 | R98: =R97 -> 100 | T98: 4' or 5' | U98: =IF(P101<$D$9,1,0) -> 1 | V98: =Q98*U98 -> 24 | W98: =R98*U98 -> 100 | Y98: 4' or 5' | Z98: =IF(P101<$D$9,0,1) -> 0 | AA98: =Q98*Z98 -> 0 | AB98: =R98*Z98 -> 0
O99: Inside Reference | Q99: =Q98 -> 24 | R99: =(R98-($C$52/12))*P98 -> 0.5 | V99: =Q99*U98 -> 24 | W99: =R99*U98 -> 0.5 | AA99: =Q99*Z98 -> 0 | AB99: =R99*Z98 -> 0
O100: Outside Reference | Q100: =Q97 -> 20 | R100: =R99 -> 0.5 | V100: =Q100*U98 -> 20 | W100: =R100*U98 -> 0.5 | AA100: =Q100*Z98 -> 0 | AB100: =R100*Z98 -> 0
O101: 4' or 5' | P101: =IF(P97>$F$61,$C$9,$D$9) -> 48 | Q101: =Q97 -> 20 | R101: =R97 -> 100 | V101: =Q101*U98 -> 20 | W101: =R101*U98 -> 100 | AA101: =Q101*Z98 -> 0 | AB101: =R101*Z98 -> 0
O103: Row | P103: 7 | Q103: =(Q98+($D$39/12))*P104 -> 24 | R103: =(R98)*P104 -> 100 | T103: Row | U103: 7 | V103: =Q103*U104 -> 24 | W103: =R103*U104 -> 100 | Y103: Row | Z103: 7 | AA103: =Q103*Z104 -> 0 | AB103: =R103*Z104 -> 0
O104: On/Off | P104: =IF(P103>$G$61,0,1) -> 1 | Q104: =(Q103+(P107/12))*P104 -> 28 | R104: =R103 -> 100 | T104: 4' or 5' | U104: =IF(P107<$D$9,1,0) -> 1 | V104: =Q104*U104 -> 28 | W104: =R104*U104 -> 100 | Y104: 4' or 5' | Z104: =IF(P107<$D$9,0,1) -> 0 | AA104: =Q104*Z104 -> 0 | AB104: =R104*Z104 -> 0
O105: Inside Reference | Q105: =Q104 -> 28 | R105: =(R104-($C$52/12))*P104 -> 0.5 | V105: =Q105*U104 -> 28 | W105: =R105*U104 -> 0.5 | AA105: =Q105*Z104 -> 0 | AB105: =R105*Z104 -> 0
O106: Outside Reference | Q106: =Q103 -> 24 | R106: =R105 -> 0.5 | V106: =Q106*U104 -> 24 | W106: =R106*U104 -> 0.5 | AA106: =Q106*Z104 -> 0 | AB106: =R106*Z104 -> 0
O107: 4' or 5' | P107: =IF(P103>$F$61,$C$9,$D$9) -> 48 | Q107: =Q103 -> 24 | R107: =R103 -> 100 | V107: =Q107*U104 -> 24 | W107: =R107*U104 -> 100 | AA107: =Q107*Z104 -> 0 | AB107: =R107*Z104 -> 0
O109: Row | P109: 8 | Q109: =(Q104+($D$39/12))*P110 -> 28 | R109: =(R104)*P110 -> 100 | T109: Row | U109: 8 | V109: =Q109*U110 -> 28 | W109: =R109*U110 -> 100 | Y109: Row | Z109: 8 | AA109: =Q109*Z110 -> 0 | AB109: =R109*Z110 -> 0
O110: On/Off | P110: =IF(P109>$G$61,0,1) -> 1 | Q110: =(Q109+(P113/12))*P110 -> 32 | R110: =R109 -> 100 | T110: 4' or 5' | U110: =IF(P113<$D$9,1,0) -> 1 | V110: =Q110*U110 -> 32 | W110: =R110*U110 -> 100 | Y110: 4' or 5' | Z110: =IF(P113<$D$9,0,1) -> 0 | AA110: =Q110*Z110 -> 0 | AB110: =R110*Z110 -> 0
O111: Inside Reference | Q111: =Q110 -> 32 | R111: =(R110-($C$52/12))*P110 -> 0.5 | V111: =Q111*U110 -> 32 | W111: =R111*U110 -> 0.5 | AA111: =Q111*Z110 -> 0 | AB111: =R111*Z110 -> 0
O112: Outside Reference | Q112: =Q109 -> 28 | R112: =R111 -> 0.5 | V112: =Q112*U110 -> 28 | W112: =R112*U110 -> 0.5 | AA112: =Q112*Z110 -> 0 | AB112: =R112*Z110 -> 0
O113: 4' or 5' | P113: =IF(P109>$F$61,$C$9,$D$9) -> 48 | Q113: =Q109 -> 28 | R113: =R109 -> 100 | V113: =Q113*U110 -> 28 | W113: =R113*U110 -> 100 | AA113: =Q113*Z110 -> 0 | AB113: =R113*Z110 -> 0
O115: Row | P115: 9 | Q115: =(Q110+($D$39/12))*P116 -> 32 | R115: =(R110)*P116 -> 100 | T115: Row | U115: 9 | V115: =Q115*U116 -> 32 | W115: =R115*U116 -> 100 | Y115: Row | Z115: 9 | AA115: =Q115*Z116 -> 0 | AB115: =R115*Z116 -> 0
O116: On/Off | P116: =IF(P115>$G$61,0,1) -> 1 | Q116: =(Q115+(P119/12))*P116 -> 36 | R116: =R115 -> 100 | T116: 4' or 5' | U116: =IF(P119<$D$9,1,0) -> 1 | V116: =Q116*U116 -> 36 | W116: =R116*U116 -> 100 | Y116: 4' or 5' | Z116: =IF(P119<$D$9,0,1) -> 0 | AA116: =Q116*Z116 -> 0 | AB116: =R116*Z116 -> 0
O117: Inside Reference | Q117: =Q116 -> 36 | R117: =(R116-($C$52/12))*P116 -> 0.5 | V117: =Q117*U116 -> 36 | W117: =R117*U116 -> 0.5 | AA117: =Q117*Z116 -> 0 | AB117: =R117*Z116 -> 0
O118: Outside Reference | Q118: =Q115 -> 32 | R118: =R117 -> 0.5 | V118: =Q118*U116 -> 32 | W118: =R118*U116 -> 0.5 | AA118: =Q118*Z116 -> 0 | AB118: =R118*Z116 -> 0
O119: 4' or 5' | P119: =IF(P115>$F$61,$C$9,$D$9) -> 48 | Q119: =Q115 -> 32 | R119: =R115 -> 100 | V119: =Q119*U116 -> 32 | W119: =R119*U116 -> 100 | AA119: =Q119*Z116 -> 0 | AB119: =R119*Z116 -> 0
O121: Row | P121: 10 | Q121: =(Q116+($D$39/12))*P122 -> 36 | R121: =(R116)*P122 -> 100 | T121: Row | U121: 10 | V121: =Q121*U122 -> 36 | W121: =R121*U122 -> 100 | Y121: Row | Z121: =P121 -> 10 | AA121: =Q121*Z122 -> 0 | AB121: =R121*Z122 -> 0
O122: On/Off | P122: =IF(P121>$G$61,0,1) -> 1 | Q122: =(Q121+(P125/12))*P122 -> 40 | R122: =R121 -> 100 | T122: 4' or 5' | U122: =IF(P125<$D$9,1,0) -> 1 | V122: =Q122*U122 -> 40 | W122: =R122*U122 -> 100 | Y122: 4' or 5' | Z122: =IF(P125<$D$9,0,1) -> 0 | AA122: =Q122*Z122 -> 0 | AB122: =R122*Z122 -> 0
O123: Inside Reference | Q123: =Q122 -> 40 | R123: =(R122-($C$52/12))*P122 -> 0.5 | V123: =Q123*U122 -> 40 | W123: =R123*U122 -> 0.5 | AA123: =Q123*Z122 -> 0 | AB123: =R123*Z122 -> 0
O124: Outside Reference | Q124: =Q121 -> 36 | R124: =R123 -> 0.5 | V124: =Q124*U122 -> 36 | W124: =R124*U122 -> 0.5 | AA124: =Q124*Z122 -> 0 | AB124: =R124*Z122 -> 0
O125: 4' or 5' | P125: =IF(P121>$F$61,$C$9,$D$9) -> 48 | Q125: =Q121 -> 36 | R125: =R121 -> 100 | V125: =Q125*U122 -> 36 | W125: =R125*U122 -> 100 | AA125: =Q125*Z122 -> 0 | AB125: =R125*Z122 -> 0
O127: Row | P127: 11 | Q127: =(Q122+($D$39/12))*P128 -> 40 | R127: =(R122)*P128 -> 100 | T127: Row | U127: 11 | V127: =Q127*U128 -> 40 | W127: =R127*U128 -> 100 | Y127: Row | Z127: 11 | AA127: =Q127*Z128 -> 0 | AB127: =R127*Z128 -> 0
O128: On/Off | P128: =IF(P127>$G$61,0,1) -> 1 | Q128: =(Q127+(P131/12))*P128 -> 44 | R128: =R127 -> 100 | T128: 4' or 5' | U128: =IF(P131<$D$9,1,0) -> 1 | V128: =Q128*U128 -> 44 | W128: =R128*U128 -> 100 | Y128: 4' or 5' | Z128: =IF(P131<$D$9,0,1) -> 0 | AA128: =Q128*Z128 -> 0 | AB128: =R128*Z128 -> 0
O129: Inside Reference | Q129: =Q128 -> 44 | R129: =(R128-($C$52/12))*P128 -> 0.5 | V129: =Q129*U128 -> 44 | W129: =R129*U128 -> 0.5 | AA129: =Q129*Z128 -> 0 | AB129: =R129*Z128 -> 0
O130: Outside Reference | Q130: =Q127 -> 40 | R130: =R129 -> 0.5 | V130: =Q130*U128 -> 40 | W130: =R130*U128 -> 0.5 | AA130: =Q130*Z128 -> 0 | AB130: =R130*Z128 -> 0
O131: 4' or 5' | P131: =IF(P127>$F$61,$C$9,$D$9) -> 48 | Q131: =Q127 -> 40 | R131: =R127 -> 100 | V131: =Q131*U128 -> 40 | W131: =R131*U128 -> 100 | AA131: =Q131*Z128 -> 0 | AB131: =R131*Z128 -> 0
O133: Row | P133: 12 | Q133: =(Q128+($D$39/12))*P134 -> 44 | R133: =(R128)*P134 -> 100 | T133: Row | U133: 12 | V133: =Q133*U134 -> 44 | W133: =R133*U134 -> 100 | Y133: Row | Z133: 12 | AA133: =Q133*Z134 -> 0 | AB133: =R133*Z134 -> 0
O134: On/Off | P134: =IF(P133>$G$61,0,1) -> 1 | Q134: =(Q133+(P137/12))*P134 -> 48 | R134: =R133 -> 100 | T134: 4' or 5' | U134: =IF(P137<$D$9,1,0) -> 1 | V134: =Q134*U134 -> 48 | W134: =R134*U134 -> 100 | Y134: 4' or 5' | Z134: =IF(P137<$D$9,0,1) -> 0 | AA134: =Q134*Z134 -> 0 | AB134: =R134*Z134 -> 0
O135: Inside Reference | Q135: =Q134 -> 48 | R135: =(R134-($C$52/12))*P134 -> 0.5 | V135: =Q135*U134 -> 48 | W135: =R135*U134 -> 0.5 | AA135: =Q135*Z134 -> 0 | AB135: =R135*Z134 -> 0
O136: Outside Reference | Q136: =Q133 -> 44 | R136: =R135 -> 0.5 | V136: =Q136*U134 -> 44 | W136: =R136*U134 -> 0.5 | AA136: =Q136*Z134 -> 0 | AB136: =R136*Z134 -> 0
O137: 4' or 5' | P137: =IF(P133>$F$61,$C$9,$D$9) -> 48 | Q137: =Q133 -> 44 | R137: =R133 -> 100 | V137: =Q137*U134 -> 44 | W137: =R137*U134 -> 100 | AA137: =Q137*Z134 -> 0 | AB137: =R137*Z134 -> 0
O139: Row | P139: 13 | Q139: =(Q134+($D$39/12))*P140 -> 48 | R139: =(R134)*P140 -> 100 | T139: Row | U139: 13 | V139: =Q139*U140 -> 48 | W139: =R139*U140 -> 100 | Y139: Row | Z139: 13 | AA139: =Q139*Z140 -> 0 | AB139: =R139*Z140 -> 0
O140: On/Off | P140: =IF(P139>$G$61,0,1) -> 1 | Q140: =(Q139+(P143/12))*P140 -> 52 | R140: =R139 -> 100 | T140: 4' or 5' | U140: =IF(P143<$D$9,1,0) -> 1 | V140: =Q140*U140 -> 52 | W140: =R140*U140 -> 100 | Y140: 4' or 5' | Z140: =IF(P143<$D$9,0,1) -> 0 | AA140: =Q140*Z140 -> 0 | AB140: =R140*Z140 -> 0
O141: Inside Reference | Q141: =Q140 -> 52 | R141: =(R140-($C$52/12))*P140 -> 0.5 | V141: =Q141*U140 -> 52 | W141: =R141*U140 -> 0.5 | AA141: =Q141*Z140 -> 0 | AB141: =R141*Z140 -> 0
O142: Outside Reference | Q142: =Q139 -> 48 | R142: =R141 -> 0.5 | V142: =Q142*U140 -> 48 | W142: =R142*U140 -> 0.5 | AA142: =Q142*Z140 -> 0 | AB142: =R142*Z140 -> 0
O143: 4' or 5' | P143: =IF(P139>$F$61,$C$9,$D$9) -> 48 | Q143: =Q139 -> 48 | R143: =R139 -> 100 | V143: =Q143*U140 -> 48 | W143: =R143*U140 -> 100 | AA143: =Q143*Z140 -> 0 | AB143: =R143*Z140 -> 0
O145: Row | P145: 14 | Q145: =(Q140+($D$39/12))*P146 -> 52 | R145: =(R140)*P146 -> 100 | T145: Row | U145: 14 | V145: =Q145*U146 -> 52 | W145: =R145*U146 -> 100 | Y145: Row | Z145: 14 | AA145: =Q145*Z146 -> 0 | AB145: =R145*Z146 -> 0
O146: On/Off | P146: =IF(P145>$G$61,0,1) -> 1 | Q146: =(Q145+(P149/12))*P146 -> 56 | R146: =R145 -> 100 | T146: 4' or 5' | U146: =IF(P149<$D$9,1,0) -> 1 | V146: =Q146*U146 -> 56 | W146: =R146*U146 -> 100 | Y146: 4' or 5' | Z146: =IF(P149<$D$9,0,1) -> 0 | AA146: =Q146*Z146 -> 0 | AB146: =R146*Z146 -> 0
O147: Inside Reference | Q147: =Q146 -> 56 | R147: =(R146-($C$52/12))*P146 -> 0.5 | V147: =Q147*U146 -> 56 | W147: =R147*U146 -> 0.5 | AA147: =Q147*Z146 -> 0 | AB147: =R147*Z146 -> 0
O148: Outside Reference | Q148: =Q145 -> 52 | R148: =R147 -> 0.5 | V148: =Q148*U146 -> 52 | W148: =R148*U146 -> 0.5 | AA148: =Q148*Z146 -> 0 | AB148: =R148*Z146 -> 0
O149: 4' or 5' | P149: =IF(P145>$F$61,$C$9,$D$9) -> 48 | Q149: =Q145 -> 52 | R149: =R145 -> 100 | V149: =Q149*U146 -> 52 | W149: =R149*U146 -> 100 | AA149: =Q149*Z146 -> 0 | AB149: =R149*Z146 -> 0
O151: Row | P151: 15 | Q151: =(Q146+($D$39/12))*P152 -> 56 | R151: =(R146)*P152 -> 100 | T151: Row | U151: 15 | V151: =Q151*U152 -> 56 | W151: =R151*U152 -> 100 | Y151: Row | Z151: 15 | AA151: =Q151*Z152 -> 0 | AB151: =R151*Z152 -> 0
O152: On/Off | P152: =IF(P151>$G$61,0,1) -> 1 | Q152: =(Q151+(P155/12))*P152 -> 60 | R152: =R151 -> 100 | T152: 4' or 5' | U152: =IF(P155<$D$9,1,0) -> 1 | V152: =Q152*U152 -> 60 | W152: =R152*U152 -> 100 | Y152: 4' or 5' | Z152: =IF(P155<$D$9,0,1) -> 0 | AA152: =Q152*Z152 -> 0 | AB152: =R152*Z152 -> 0
O153: Inside Reference | Q153: =Q152 -> 60 | R153: =(R152-($C$52/12))*P152 -> 0.5 | V153: =Q153*U152 -> 60 | W153: =R153*U152 -> 0.5 | AA153: =Q153*Z152 -> 0 | AB153: =R153*Z152 -> 0
O154: Outside Reference | Q154: =Q151 -> 56 | R154: =R153 -> 0.5 | V154: =Q154*U152 -> 56 | W154: =R154*U152 -> 0.5 | AA154: =Q154*Z152 -> 0 | AB154: =R154*Z152 -> 0
O155: 4' or 5' | P155: =IF(P151>$F$61,$C$9,$D$9) -> 48 | Q155: =Q151 -> 56 | R155: =R151 -> 100 | V155: =Q155*U152 -> 56 | W155: =R155*U152 -> 100 | AA155: =Q155*Z152 -> 0 | AB155: =R155*Z152 -> 0
O157: Row | P157: 16 | Q157: =(Q152+($D$39/12))*P158 -> 60 | R157: =(R152)*P158 -> 100 | T157: Row | U157: 16 | V157: =Q157*U158 -> 60 | W157: =R157*U158 -> 100 | Y157: Row | Z157: 16 | AA157: =Q157*Z158 -> 0 | AB157: =R157*Z158 -> 0
O158: On/Off | P158: =IF(P157>$G$61,0,1) -> 1 | Q158: =(Q157+(P161/12))*P158 -> 64 | R158: =R157 -> 100 | T158: 4' or 5' | U158: =IF(P161<$D$9,1,0) -> 1 | V158: =Q158*U158 -> 64 | W158: =R158*U158 -> 100 | Y158: 4' or 5' | Z158: =IF(P161<$D$9,0,1) -> 0 | AA158: =Q158*Z158 -> 0 | AB158: =R158*Z158 -> 0
O159: Inside Reference | Q159: =Q158 -> 64 | R159: =(R158-($C$52/12))*P158 -> 0.5 | V159: =Q159*U158 -> 64 | W159: =R159*U158 -> 0.5 | AA159: =Q159*Z158 -> 0 | AB159: =R159*Z158 -> 0
O160: Outside Reference | Q160: =Q157 -> 60 | R160: =R159 -> 0.5 | V160: =Q160*U158 -> 60 | W160: =R160*U158 -> 0.5 | AA160: =Q160*Z158 -> 0 | AB160: =R160*Z158 -> 0
O161: 4' or 5' | P161: =IF(P157>$F$61,$C$9,$D$9) -> 48 | Q161: =Q157 -> 60 | R161: =R157 -> 100 | V161: =Q161*U158 -> 60 | W161: =R161*U158 -> 100 | AA161: =Q161*Z158 -> 0 | AB161: =R161*Z158 -> 0
O163: Row | P163: 17 | Q163: =(Q158+($D$39/12))*P164 -> 64 | R163: =(R158)*P164 -> 100 | T163: Row | U163: 17 | V163: =Q163*U164 -> 64 | W163: =R163*U164 -> 100 | Y163: Row | Z163: 17 | AA163: =Q163*Z164 -> 0 | AB163: =R163*Z164 -> 0
O164: On/Off | P164: =IF(P163>$G$61,0,1) -> 1 | Q164: =(Q163+(P167/12))*P164 -> 68 | R164: =R163 -> 100 | T164: 4' or 5' | U164: =IF(P167<$D$9,1,0) -> 1 | V164: =Q164*U164 -> 68 | W164: =R164*U164 -> 100 | Y164: 4' or 5' | Z164: =IF(P167<$D$9,0,1) -> 0 | AA164: =Q164*Z164 -> 0 | AB164: =R164*Z164 -> 0
O165: Inside Reference | Q165: =Q164 -> 68 | R165: =(R164-($C$52/12))*P164 -> 0.5 | V165: =Q165*U164 -> 68 | W165: =R165*U164 -> 0.5 | AA165: =Q165*Z164 -> 0 | AB165: =R165*Z164 -> 0
O166: Outside Reference | Q166: =Q163 -> 64 | R166: =R165 -> 0.5 | V166: =Q166*U164 -> 64 | W166: =R166*U164 -> 0.5 | AA166: =Q166*Z164 -> 0 | AB166: =R166*Z164 -> 0
O167: 4' or 5' | P167: =IF(P163>$F$61,$C$9,$D$9) -> 48 | Q167: =Q163 -> 64 | R167: =R163 -> 100 | V167: =Q167*U164 -> 64 | W167: =R167*U164 -> 100 | AA167: =Q167*Z164 -> 0 | AB167: =R167*Z164 -> 0
O169: Row | P169: 18 | Q169: =(Q164+($D$39/12))*P170 -> 68 | R169: =(R164)*P170 -> 100 | T169: Row | U169: 18 | V169: =Q169*U170 -> 68 | W169: =R169*U170 -> 100 | Y169: Row | Z169: 18 | AA169: =Q169*Z170 -> 0 | AB169: =R169*Z170 -> 0
O170: On/Off | P170: =IF(P169>$G$61,0,1) -> 1 | Q170: =(Q169+(P173/12))*P170 -> 72 | R170: =R169 -> 100 | T170: 4' or 5' | U170: =IF(P173<$D$9,1,0) -> 1 | V170: =Q170*U170 -> 72 | W170: =R170*U170 -> 100 | Y170: 4' or 5' | Z170: =IF(P173<$D$9,0,1) -> 0 | AA170: =Q170*Z170 -> 0 | AB170: =R170*Z170 -> 0
O171: Inside Reference | Q171: =Q170 -> 72 | R171: =(R170-($C$52/12))*P170 -> 0.5 | V171: =Q171*U170 -> 72 | W171: =R171*U170 -> 0.5 | AA171: =Q171*Z170 -> 0 | AB171: =R171*Z170 -> 0
O172: Outside Reference | Q172: =Q169 -> 68 | R172: =R171 -> 0.5 | V172: =Q172*U170 -> 68 | W172: =R172*U170 -> 0.5 | AA172: =Q172*Z170 -> 0 | AB172: =R172*Z170 -> 0
O173: 4' or 5' | P173: =IF(P169>$F$61,$C$9,$D$9) -> 48 | Q173: =Q169 -> 68 | R173: =R169 -> 100 | V173: =Q173*U170 -> 68 | W173: =R173*U170 -> 100 | AA173: =Q173*Z170 -> 0 | AB173: =R173*Z170 -> 0
O175: Row | P175: 19 | Q175: =(Q170+($D$39/12))*P176 -> 72 | R175: =(R170)*P176 -> 100 | T175: Row | U175: 19 | V175: =Q175*U176 -> 72 | W175: =R175*U176 -> 100 | Y175: Row | Z175: 19 | AA175: =Q175*Z176 -> 0 | AB175: =R175*Z176 -> 0
O176: On/Off | P176: =IF(P175>$G$61,0,1) -> 1 | Q176: =(Q175+(P179/12))*P176 -> 76 | R176: =R175 -> 100 | T176: 4' or 5' | U176: =IF(P179<$D$9,1,0) -> 1 | V176: =Q176*U176 -> 76 | W176: =R176*U176 -> 100 | Y176: 4' or 5' | Z176: =IF(P179<$D$9,0,1) -> 0 | AA176: =Q176*Z176 -> 0 | AB176: =R176*Z176 -> 0
O177: Inside Reference | Q177: =Q176 -> 76 | R177: =(R176-($C$52/12))*P176 -> 0.5 | V177: =Q177*U176 -> 76 | W177: =R177*U176 -> 0.5 | AA177: =Q177*Z176 -> 0 | AB177: =R177*Z176 -> 0
O178: Outside Reference | Q178: =Q175 -> 72 | R178: =R177 -> 0.5 | V178: =Q178*U176 -> 72 | W178: =R178*U176 -> 0.5 | AA178: =Q178*Z176 -> 0 | AB178: =R178*Z176 -> 0
O179: 4' or 5' | P179: =IF(P175>$F$61,$C$9,$D$9) -> 48 | Q179: =Q175 -> 72 | R179: =R175 -> 100 | V179: =Q179*U176 -> 72 | W179: =R179*U176 -> 100 | AA179: =Q179*Z176 -> 0 | AB179: =R179*Z176 -> 0
O181: Row | P181: 20 | Q181: =(Q176+($D$39/12))*P182 -> 76 | R181: =(R176)*P182 -> 100 | T181: Row | U181: =P181 -> 20 | V181: =Q181*U182 -> 76 | W181: =R181*U182 -> 100 | Y181: Row | Z181: 20 | AA181: =Q181*Z182 -> 0 | AB181: =R181*Z182 -> 0
O182: On/Off | P182: =IF(P181>$G$61,0,1) -> 1 | Q182: =(Q181+(P185/12))*P182 -> 80 | R182: =R181 -> 100 | T182: 4' or 5' | U182: =IF(P185<$D$9,1,0) -> 1 | V182: =Q182*U182 -> 80 | W182: =R182*U182 -> 100 | Y182: 4' or 5' | Z182: =IF(P185<$D$9,0,1) -> 0 | AA182: =Q182*Z182 -> 0 | AB182: =R182*Z182 -> 0
O183: Inside Reference | Q183: =Q182 -> 80 | R183: =(R182-($C$52/12))*P182 -> 0.5 | V183: =Q183*U182 -> 80 | W183: =R183*U182 -> 0.5 | AA183: =Q183*Z182 -> 0 | AB183: =R183*Z182 -> 0
O184: Outside Reference | Q184: =Q181 -> 76 | R184: =R183 -> 0.5 | V184: =Q184*U182 -> 76 | W184: =R184*U182 -> 0.5 | AA184: =Q184*Z182 -> 0 | AB184: =R184*Z182 -> 0
O185: 4' or 5' | P185: =IF(P181>$F$61,$C$9,$D$9) -> 48 | Q185: =Q181 -> 76 | R185: =R181 -> 100 | V185: =Q185*U182 -> 76 | W185: =R185*U182 -> 100 | AA185: =Q185*Z182 -> 0 | AB185: =R185*Z182 -> 0
O187: Row | P187: 21 | Q187: =(Q182+($D$39/12))*P188 -> 80 | R187: =(R182)*P188 -> 100 | T187: Row | U187: =P187 -> 21 | V187: =Q187*U188 -> 80 | W187: =R187*U188 -> 100 | Y187: Row | Z187: =P187 -> 21 | AA187: =Q187*Z188 -> 0 | AB187: =R187*Z188 -> 0
O188: On/Off | P188: =IF(P187>$G$61,0,1) -> 1 | Q188: =(Q187+(P191/12))*P188 -> 84 | R188: =R187 -> 100 | T188: 4' or 5' | U188: =IF(P191<$D$9,1,0) -> 1 | V188: =Q188*U188 -> 84 | W188: =R188*U188 -> 100 | Y188: 4' or 5' | Z188: =IF(P191<$D$9,0,1) -> 0 | AA188: =Q188*Z188 -> 0 | AB188: =R188*Z188 -> 0
O189: Inside Reference | Q189: =Q188 -> 84 | R189: =(R188-($C$52/12))*P188 -> 0.5 | V189: =Q189*U188 -> 84 | W189: =R189*U188 -> 0.5 | AA189: =Q189*Z188 -> 0 | AB189: =R189*Z188 -> 0
O190: Outside Reference | Q190: =Q187 -> 80 | R190: =R189 -> 0.5 | V190: =Q190*U188 -> 80 | W190: =R190*U188 -> 0.5 | AA190: =Q190*Z188 -> 0 | AB190: =R190*Z188 -> 0
O191: 4' or 5' | P191: =IF(P187>$F$61,$C$9,$D$9) -> 48 | Q191: =Q187 -> 80 | R191: =R187 -> 100 | V191: =Q191*U188 -> 80 | W191: =R191*U188 -> 100 | AA191: =Q191*Z188 -> 0 | AB191: =R191*Z188 -> 0
O193: Row | P193: 22 | Q193: =(Q188+($D$39/12))*P194 -> 84 | R193: =(R188)*P194 -> 100 | T193: Row | U193: =P193 -> 22 | V193: =Q193*U194 -> 84 | W193: =R193*U194 -> 100 | Y193: Row | Z193: =P193 -> 22 | AA193: =Q193*Z194 -> 0 | AB193: =R193*Z194 -> 0
O194: On/Off | P194: =IF(P193>$G$61,0,1) -> 1 | Q194: =(Q193+(P197/12))*P194 -> 88 | R194: =R193 -> 100 | T194: 4' or 5' | U194: =IF(P197<$D$9,1,0) -> 1 | V194: =Q194*U194 -> 88 | W194: =R194*U194 -> 100 | Y194: 4' or 5' | Z194: =IF(P197<$D$9,0,1) -> 0 | AA194: =Q194*Z194 -> 0 | AB194: =R194*Z194 -> 0
O195: Inside Reference | Q195: =Q194 -> 88 | R195: =(R194-($C$52/12))*P194 -> 0.5 | V195: =Q195*U194 -> 88 | W195: =R195*U194 -> 0.5 | AA195: =Q195*Z194 -> 0 | AB195: =R195*Z194 -> 0
O196: Outside Reference | Q196: =Q193 -> 84 | R196: =R195 -> 0.5 | V196: =Q196*U194 -> 84 | W196: =R196*U194 -> 0.5 | AA196: =Q196*Z194 -> 0 | AB196: =R196*Z194 -> 0
O197: 4' or 5' | P197: =IF(P193>$F$61,$C$9,$D$9) -> 48 | Q197: =Q193 -> 84 | R197: =R193 -> 100 | V197: =Q197*U194 -> 84 | W197: =R197*U194 -> 100 | AA197: =Q197*Z194 -> 0 | AB197: =R197*Z194 -> 0
O199: Row | P199: 23 | Q199: =(Q194+($D$39/12))*P200 -> 88 | R199: =(R194)*P200 -> 100 | T199: Row | U199: =P199 -> 23 | V199: =Q199*U200 -> 88 | W199: =R199*U200 -> 100 | Y199: Row | Z199: =P199 -> 23 | AA199: =Q199*Z200 -> 0 | AB199: =R199*Z200 -> 0
O200: On/Off | P200: =IF(P199>$G$61,0,1) -> 1 | Q200: =(Q199+(P203/12))*P200 -> 92 | R200: =R199 -> 100 | T200: 4' or 5' | U200: =IF(P203<$D$9,1,0) -> 1 | V200: =Q200*U200 -> 92 | W200: =R200*U200 -> 100 | Y200: 4' or 5' | Z200: =IF(P203<$D$9,0,1) -> 0 | AA200: =Q200*Z200 -> 0 | AB200: =R200*Z200 -> 0
O201: Inside Reference | Q201: =Q200 -> 92 | R201: =(R200-($C$52/12))*P200 -> 0.5 | V201: =Q201*U200 -> 92 | W201: =R201*U200 -> 0.5 | AA201: =Q201*Z200 -> 0 | AB201: =R201*Z200 -> 0
O202: Outside Reference | Q202: =Q199 -> 88 | R202: =R201 -> 0.5 | V202: =Q202*U200 -> 88 | W202: =R202*U200 -> 0.5 | AA202: =Q202*Z200 -> 0 | AB202: =R202*Z200 -> 0
O203: 4' or 5' | P203: =IF(P199>$F$61,$C$9,$D$9) -> 48 | Q203: =Q199 -> 88 | R203: =R199 -> 100 | V203: =Q203*U200 -> 88 | W203: =R203*U200 -> 100 | AA203: =Q203*Z200 -> 0 | AB203: =R203*Z200 -> 0
O205: Row | P205: 24 | Q205: =(Q200+($D$39/12))*P206 -> 92 | R205: =(R200)*P206 -> 100 | T205: Row | U205: =P205 -> 24 | V205: =Q205*U206 -> 92 | W205: =R205*U206 -> 100 | Y205: Row | Z205: =P205 -> 24 | AA205: =Q205*Z206 -> 0 | AB205: =R205*Z206 -> 0
O206: On/Off | P206: =IF(P205>$G$61,0,1) -> 1 | Q206: =(Q205+(P209/12))*P206 -> 96 | R206: =R205 -> 100 | T206: 4' or 5' | U206: =IF(P209<$D$9,1,0) -> 1 | V206: =Q206*U206 -> 96 | W206: =R206*U206 -> 100 | Y206: 4' or 5' | Z206: =IF(P209<$D$9,0,1) -> 0 | AA206: =Q206*Z206 -> 0 | AB206: =R206*Z206 -> 0
O207: Inside Reference | Q207: =Q206 -> 96 | R207: =(R206-($C$52/12))*P206 -> 0.5 | V207: =Q207*U206 -> 96 | W207: =R207*U206 -> 0.5 | AA207: =Q207*Z206 -> 0 | AB207: =R207*Z206 -> 0
O208: Outside Reference | Q208: =Q205 -> 92 | R208: =R207 -> 0.5 | V208: =Q208*U206 -> 92 | W208: =R208*U206 -> 0.5 | AA208: =Q208*Z206 -> 0 | AB208: =R208*Z206 -> 0
O209: 4' or 5' | P209: =IF(P205>$F$61,$C$9,$D$9) -> 48 | Q209: =Q205 -> 92 | R209: =R205 -> 100 | V209: =Q209*U206 -> 92 | W209: =R209*U206 -> 100 | AA209: =Q209*Z206 -> 0 | AB209: =R209*Z206 -> 0
O211: Row | P211: 25 | Q211: =(Q206+($D$39/12))*P212 -> 0 | R211: =(R206)*P212 -> 0 | T211: Row | U211: =P211 -> 25 | V211: =Q211*U212 -> 0 | W211: =R211*U212 -> 0 | Y211: Row | Z211: =P211 -> 25 | AA211: =Q211*Z212 -> 0 | AB211: =R211*Z212 -> 0
O212: On/Off | P212: =IF(P211>$G$61,0,1) -> 0 | Q212: =(Q211+(P215/12))*P212 -> 0 | R212: =R211 -> 0 | T212: 4' or 5' | U212: =IF(P215<$D$9,1,0) -> 1 | V212: =Q212*U212 -> 0 | W212: =R212*U212 -> 0 | Y212: 4' or 5' | Z212: =IF(P215<$D$9,0,1) -> 0 | AA212: =Q212*Z212 -> 0 | AB212: =R212*Z212 -> 0
O213: Inside Reference | Q213: =Q212 -> 0 | R213: =(R212-($C$52/12))*P212 -> 0 | V213: =Q213*U212 -> 0 | W213: =R213*U212 -> 0 | AA213: =Q213*Z212 -> 0 | AB213: =R213*Z212 -> 0
O214: Outside Reference | Q214: =Q211 -> 0 | R214: =R213 -> 0 | V214: =Q214*U212 -> 0 | W214: =R214*U212 -> 0 | AA214: =Q214*Z212 -> 0 | AB214: =R214*Z212 -> 0
O215: 4' or 5' | P215: =IF(P211>$F$61,$C$9,$D$9) -> 48 | Q215: =Q211 -> 0 | R215: =R211 -> 0 | V215: =Q215*U212 -> 0 | W215: =R215*U212 -> 0 | AA215: =Q215*Z212 -> 0 | AB215: =R215*Z212 -> 0
O217: Row | P217: 26 | Q217: =(Q212+($D$39/12))*P218 -> 0 | R217: =(R212)*P218 -> 0 | T217: Row | U217: =P217 -> 26 | V217: =Q217*U218 -> 0 | W217: =R217*U218 -> 0 | Y217: Row | Z217: =P217 -> 26 | AA217: =Q217*Z218 -> 0 | AB217: =R217*Z218 -> 0
O218: On/Off | P218: =IF(P217>$G$61,0,1) -> 0 | Q218: =(Q217+(P221/12))*P218 -> 0 | R218: =R217 -> 0 | T218: 4' or 5' | U218: =IF(P221<$D$9,1,0) -> 1 | V218: =Q218*U218 -> 0 | W218: =R218*U218 -> 0 | Y218: 4' or 5' | Z218: =IF(P221<$D$9,0,1) -> 0 | AA218: =Q218*Z218 -> 0 | AB218: =R218*Z218 -> 0
O219: Inside Reference | Q219: =Q218 -> 0 | R219: =(R218-($C$52/12))*P218 -> 0 | V219: =Q219*U218 -> 0 | W219: =R219*U218 -> 0 | AA219: =Q219*Z218 -> 0 | AB219: =R219*Z218 -> 0
O220: Outside Reference | Q220: =Q217 -> 0 | R220: =R219 -> 0 | V220: =Q220*U218 -> 0 | W220: =R220*U218 -> 0 | AA220: =Q220*Z218 -> 0 | AB220: =R220*Z218 -> 0
O221: 4' or 5' | P221: =IF(P217>$F$61,$C$9,$D$9) -> 48 | Q221: =Q217 -> 0 | R221: =R217 -> 0 | V221: =Q221*U218 -> 0 | W221: =R221*U218 -> 0 | AA221: =Q221*Z218 -> 0 | AB221: =R221*Z218 -> 0
O223: Row | P223: 27 | Q223: =(Q218+($D$39/12))*P224 -> 0 | R223: =(R218)*P224 -> 0 | T223: Row | U223: =P223 -> 27 | V223: =Q223*U224 -> 0 | W223: =R223*U224 -> 0 | Y223: Row | Z223: =P223 -> 27 | AA223: =Q223*Z224 -> 0 | AB223: =R223*Z224 -> 0
... 24 more rows

Sheet LU Table (hidden)
A1: Range Name | C1: Index & Lookup Table
A2: Lookup | C2: Index # | D2: Length | E2: Length | F2: # Arches | G2: # Mid Trays | H2: 5'L End | I2: 4'L End | J2: 3'L End | K2: 2'L End | L2: +Antitip | M2: Height | N2: Widths
A3: ArchHeight | C3: 1 | D3: -- | E3: -- | F3: 0 | G3: 0 | H3: 0 | I3: 0 | J3: 0 | K3: 0 | L3: 0 | M3: -- | N3: 4' Only
A4: Widths | C4: 2 | D4: 7.5 | E4: 7' 6" | F4: 2 | G4: 0 | H4: 0 | I4: 0 | J4: 0 | K4: 1 | L4: 0 | M4: 12" | N4: 5' Only
C5: 3 | D5: 8.5 | E5: 8' 6" | F5: 2 | G5: 0 | H5: 0 | I5: 0 | J5: 1 | K5: 0 | L5: 0 | M5: 20" | N5: 4' & 5' Mixed
C6: 4 | D6: 9.5 | E6: 9' 6" | F6: 2 | G6: 0 | H6: 0 | I6: 1 | J6: 0 | K6: 0 | L6: 0 | M6: 30"
C7: 5 | D7: 10.5 | E7: 10' 6" | F7: 2 | G7: 0 | H7: 1 | I7: 0 | J7: 0 | K7: 0 | L7: 0
C8: 6 | D8: 12.5 | E8: 12' 6" | F8: 3 | G8: 1 | H8: 0 | I8: 0 | J8: 0 | K8: 1 | L8: 0
C9: 7 | D9: 13.5 | E9: 13' 6" | F9: 3 | G9: 1 | H9: 0 | I9: 0 | J9: 1 | K9: 0 | L9: 0
C10: 8 | D10: 14.5 | E10: 14' 6" | F10: 3 | G10: 1 | H10: 0 | I10: 1 | J10: 0 | K10: 0 | L10: 0
C11: 9 | D11: 15.5 | E11: 15' 6" | F11: 3 | G11: 1 | H11: 1 | I11: 0 | J11: 0 | K11: 0 | L11: 0
C12: 10 | D12: 17.5 | E12: 17' 6" | F12: 4 | G12: 2 | H12: 0 | I12: 0 | J12: 0 | K12: 1 | L12: 1
C13: 11 | D13: 18.5 | E13: 18' 6" | F13: 4 | G13: 2 | H13: 0 | I13: 0 | J13: 1 | K13: 0 | L13: 1
C14: 12 | D14: 19.5 | E14: 19' 6" | F14: 4 | G14: 2 | H14: 0 | I14: 1 | J14: 0 | K14: 0 | L14: 1
C15: 13 | D15: 20.5 | E15: 20' 6" | F15: 4 | G15: 2 | H15: 1 | I15: 0 | J15: 0 | K15: 0 | L15: 1
C16: 14 | D16: 22.5 | E16: 22' 6" | F16: 5 | G16: 3 | H16: 0 | I16: 0 | J16: 0 | K16: 1 | L16: 2
C17: 15 | D17: 23.5 | E17: 23' 6" | F17: 5 | G17: 3 | H17: 0 | I17: 0 | J17: 1 | K17: 0 | L17: 2
C18: 16 | D18: 24.5 | E18: 24' 6" | F18: 5 | G18: 3 | H18: 0 | I18: 1 | J18: 0 | K18: 0 | L18: 2
C19: 17 | D19: 25.5 | E19: 25' 6" | F19: 5 | G19: 3 | H19: 1 | I19: 0 | J19: 0 | K19: 0 | L19: 2
C20: 18 | D20: 27.5 | E20: 27' 6" | F20: 6 | G20: 4 | H20: 0 | I20: 0 | J20: 0 | K20: 1 | L20: 2
C21: 19 | D21: 28.5 | E21: 28' 6" | F21: 6 | G21: 4 | H21: 0 | I21: 0 | J21: 1 | K21: 0 | L21: 2
C22: 20 | D22: 29.5 | E22: 29' 6" | F22: 6 | G22: 4 | H22: 0 | I22: 1 | J22: 0 | K22: 0 | L22: 2
C23: 21 | D23: 30.5 | E23: 30' 6" | F23: 6 | G23: 4 | H23: 1 | I23: 0 | J23: 0 | K23: 0 | L23: 2
C24: 22 | D24: 32.5 | E24: 32' 6" | F24: 7 | G24: 5 | H24: 0 | I24: 0 | J24: 0 | K24: 1 | L24: 3
C25: 23 | D25: 33.5 | E25: 33' 6" | F25: 7 | G25: 5 | H25: 0 | I25: 0 | J25: 1 | K25: 0 | L25: 3
C26: 24 | D26: 34.5 | E26: 34' 6" | F26: 7 | G26: 5 | H26: 0 | I26: 1 | J26: 0 | K26: 0 | L26: 3
C27: 25 | D27: 35.5 | E27: 35' 6" | F27: 7 | G27: 5 | H27: 1 | I27: 0 | J27: 0 | K27: 0 | L27: 3
C28: 26 | D28: 37.5 | E28: 37' 6" | F28: 8 | G28: 6 | H28: 0 | I28: 0 | J28: 0 | K28: 1 | L28: 3
C29: 27 | D29: 38.5 | E29: 38' 6" | F29: 8 | G29: 6 | H29: 0 | I29: 0 | J29: 1 | K29: 0 | L29: 3
C30: 28 | D30: 39.5 | E30: 39' 6" | F30: 8 | G30: 6 | H30: 0 | I30: 1 | J30: 0 | K30: 0 | L30: 3
C31: 29 | D31: 40.5 | E31: 40' 6" | F31: 8 | G31: 6 | H31: 1 | I31: 0 | J31: 0 | K31: 0 | L31: 3
C32: 30 | D32: 42.5 | E32: 42' 6" | F32: 9 | G32: 7 | H32: 0 | I32: 0 | J32: 0 | K32: 1 | L32: 4
C33: 31 | D33: 43.5 | E33: 43' 6" | F33: 9 | G33: 7 | H33: 0 | I33: 0 | J33: 1 | K33: 0 | L33: 4
C34: 32 | D34: 44.5 | E34: 44' 6" | F34: 9 | G34: 7 | H34: 0 | I34: 1 | J34: 0 | K34: 0 | L34: 4
C35: 33 | D35: 45.5 | E35: 45' 6" | F35: 9 | G35: 7 | H35: 1 | I35: 0 | J35: 0 | K35: 0 | L35: 4
C36: 34 | D36: 47.5 | E36: 47' 6" | F36: 10 | G36: 8 | H36: 0 | I36: 0 | J36: 0 | K36: 1 | L36: 4
C37: 35 | D37: 48.5 | E37: 48' 6" | F37: 10 | G37: 8 | H37: 0 | I37: 0 | J37: 1 | K37: 0 | L37: 4
C38: 36 | D38: 49.5 | E38: 49' 6" | F38: 10 | G38: 8 | H38: 0 | I38: 1 | J38: 0 | K38: 0 | L38: 4
C39: 37 | D39: 50.5 | E39: 50' 6" | F39: 10 | G39: 8 | H39: 1 | I39: 0 | J39: 0 | K39: 0 | L39: 4
C40: 38 | D40: 52.5 | E40: 52' 6" | F40: 11 | G40: 9 | H40: 0 | I40: 0 | J40: 0 | K40: 1 | L40: 5
C41: 39 | D41: 53.5 | E41: 53' 6" | F41: 11 | G41: 9 | H41: 0 | I41: 0 | J41: 1 | K41: 0 | L41: 5
C42: 40 | D42: 54.5 | E42: 54' 6" | F42: 11 | G42: 9 | H42: 0 | I42: 1 | J42: 0 | K42: 0 | L42: 5
C43: 41 | D43: 55.5 | E43: 55' 6" | F43: 11 | G43: 9 | H43: 1 | I43: 0 | J43: 0 | K43: 0 | L43: 5
C44: 42 | D44: 57.5 | E44: 57' 6" | F44: 12 | G44: 10 | H44: 0 | I44: 0 | J44: 0 | K44: 1 | L44: 5
C45: 43 | D45: 58.5 | E45: 58' 6" | F45: 12 | G45: 10 | H45: 0 | I45: 0 | J45: 1 | K45: 0 | L45: 5
C46: 44 | D46: 59.5 | E46: 59' 6" | F46: 12 | G46: 10 | H46: 0 | I46: 1 | J46: 0 | K46: 0 | L46: 5
C47: 45 | D47: 60.5 | E47: 60' 6" | F47: 12 | G47: 10 | H47: 1 | I47: 0 | J47: 0 | K47: 0 | L47: 5
C48: 46 | D48: 62.5 | E48: 62' 6" | F48: 13 | G48: 11 | H48: 0 | I48: 0 | J48: 0 | K48: 1 | L48: 6
C49: 47 | D49: 63.5 | E49: 63' 6" | F49: 13 | G49: 11 | H49: 0 | I49: 0 | J49: 1 | K49: 0 | L49: 6
C50: 48 | D50: 64.5 | E50: 64' 6" | F50: 13 | G50: 11 | H50: 0 | I50: 1 | J50: 0 | K50: 0 | L50: 6
C51: 49 | D51: 65.5 | E51: 65' 6" | F51: 13 | G51: 11 | H51: 1 | I51: 0 | J51: 0 | K51: 0 | L51: 6
C52: 50 | D52: 67.5 | E52: 67' 6" | F52: 14 | G52: 12 | H52: 0 | I52: 0 | J52: 0 | K52: 1 | L52: 6
C53: 51 | D53: 68.5 | E53: 68' 6" | F53: 14 | G53: 12 | H53: 0 | I53: 0 | J53: 1 | K53: 0 | L53: 6
C54: 52 | D54: 69.5 | E54: 69' 6" | F54: 14 | G54: 12 | H54: 0 | I54: 1 | J54: 0 | K54: 0 | L54: 6
C55: 53 | D55: 70.5 | E55: 70' 6" | F55: 14 | G55: 12 | H55: 1 | I55: 0 | J55: 0 | K55: 0 | L55: 6
C56: 54 | D56: 72.5 | E56: 72' 6" | F56: 15 | G56: 13 | H56: 0 | I56: 0 | J56: 0 | K56: 1 | L56: 7
C57: 55 | D57: 73.5 | E57: 73' 6" | F57: 15 | G57: 13 | H57: 0 | I57: 0 | J57: 1 | K57: 0 | L57: 7
C58: 56 | D58: 74.5 | E58: 74' 6" | F58: 15 | G58: 13 | H58: 0 | I58: 1 | J58: 0 | K58: 0 | L58: 7
C59: 57 | D59: 75.5 | E59: 75' 6" | F59: 15 | G59: 13 | H59: 1 | I59: 0 | J59: 0 | K59: 0 | L59: 7
C60: 58 | D60: 77.5 | E60: 77' 6" | F60: 16 | G60: 14 | H60: 0 | I60: 0 | J60: 0 | K60: 1 | L60: 7
C61: 59 | D61: 78.5 | E61: 78' 6" | F61: 16 | G61: 14 | H61: 0 | I61: 0 | J61: 1 | K61: 0 | L61: 7
C62: 60 | D62: 79.5 | E62: 79' 6" | F62: 16 | G62: 14 | H62: 0 | I62: 1 | J62: 0 | K62: 0 | L62: 7
C63: 61 | D63: 80.5 | E63: 80' 6" | F63: 16 | G63: 14 | H63: 1 | I63: 0 | J63: 0 | K63: 0 | L63: 7
C64: 62 | D64: 82.5 | E64: 82' 6" | F64: 17 | G64: 15 | H64: 0 | I64: 0 | J64: 0 | K64: 1 | L64: 8
C65: 63 | D65: 83.5 | E65: 83' 6" | F65: 17 | G65: 15 | H65: 0 | I65: 0 | J65: 1 | K65: 0 | L65: 8
C66: 64 | D66: 84.5 | E66: 84' 6" | F66: 17 | G66: 15 | H66: 0 | I66: 1 | J66: 0 | K66: 0 | L66: 8
C67: 65 | D67: 85.5 | E67: 85' 6" | F67: 17 | G67: 15 | H67: 1 | I67: 0 | J67: 0 | K67: 0 | L67: 8
C68: 66 | D68: 87.5 | E68: 87' 6" | F68: 18 | G68: 16 | H68: 0 | I68: 0 | J68: 0 | K68: 1 | L68: 8
C69: 67 | D69: 88.5 | E69: 88' 6" | F69: 18 | G69: 16 | H69: 0 | I69: 0 | J69: 1 | K69: 0 | L69: 8
C70: 68 | D70: 89.5 | E70: 89' 6" | F70: 18 | G70: 16 | H70: 0 | I70: 1 | J70: 0 | K70: 0 | L70: 8
C71: 69 | D71: 90.5 | E71: 90' 6" | F71: 18 | G71: 16 | H71: 1 | I71: 0 | J71: 0 | K71: 0 | L71: 8
C72: 70 | D72: 92.5 | E72: 92' 6" | F72: 19 | G72: 17 | H72: 0 | I72: 0 | J72: 0 | K72: 1 | L72: 9
C73: 71 | D73: 93.5 | E73: 93' 6" | F73: 19 | G73: 17 | H73: 0 | I73: 0 | J73: 1 | K73: 0 | L73: 9
C74: 72 | D74: 94.5 | E74: 94' 6" | F74: 19 | G74: 17 | H74: 0 | I74: 1 | J74: 0 | K74: 0 | L74: 9
C75: 73 | D75: 95.5 | E75: 95' 6" | F75: 19 | G75: 17 | H75: 1 | I75: 0 | J75: 0 | K75: 0 | L75: 9
C76: 74 | D76: 97.5 | E76: 97' 6" | F76: 20 | G76: 18 | H76: 0 | I76: 0 | J76: 0 | K76: 1 | L76: 9
C77: 75 | D77: 98.5 | E77: 98' 6" | F77: 20 | G77: 18 | H77: 0 | I77: 0 | J77: 1 | K77: 0 | L77: 9
C78: 76 | D78: 99.5 | E78: 99' 6" | F78: 20 | G78: 18 | H78: 0 | I78: 1 | J78: 0 | K78: 0 | L78: 9
C79: 77 | D79: 100.5 | E79: 100' 6" | F79: 20 | G79: 18 | H79: 1 | I79: 0 | J79: 0 | K79: 0 | L79: 9

Sheet Order BOM's (hidden)
B1: Top Level Order BOM | H1: Screw Kits
A2: Transfer Filter | B2: SKU | C2: Description | D2: Order Qty | E2: Resale Price | F2: Notes | H2: SKU | I2: Description | J2: Order Qty | K2: Notes
A3: =IF(D3=0,0,1) -> 0 | B3: HGC705997 | C3: 4' Slide Bench Drain Kit | D3: =Calcs!Y15 -> 0 | E3: 284.16
A4: =IF(D4=0,0,MAX(A3)+1) -> 0 | B4: HGC705998 | C4: 4' Slide Bench Middle Kit | D4: =Calcs!Z15 -> 0 | E4: 284.16 | H4: LC3165 | I4: Arch Screw Kit | J4: 1 | K4: 1 pkg for each 12", 20" & 30" arch kit | L4: LC3642 will replace
A5: =IF(D5=0,0,MAX($A$3:A4)+1) -> 0 | B5: HGC705999 | C5: 4' Slide Bench 5' Long End Kit | D5: =Calcs!AA15 -> 0 | E5: 284.16 | H5: MS3271 | I5: SCREW - HEX HD, FLNG, 1/4"-20 UNC X 3/8" | J5: 4
A6: =IF(D6=0,0,MAX($A$3:A5)+1) -> 0 | B6: HGC706156 | C6: 4' End Tray, 4' Long End Kit | D6: =Calcs!AB15 -> 0 | E6: 244.73 | H6: MS3255 | I6: NUT-HEX, 5/8"-11 UNC-2B | J6: 4 | L6: Eliminate
A7: =IF(D7=0,0,MAX($A$3:A6)+1) -> 0 | B7: HGC706157 | C7: 4' End Tray, 3' Long End Kit | D7: =Calcs!AC15 -> 0 | E7: 222.48 | H7: MS3256 | I7: Wshr, 11/16" ID | J7: 4 | L7: Eliminate
A8: =IF(D8=0,0,MAX($A$3:A7)+1) -> 0 | B8: HGC706158 | C8: 4' End Tray, 2' Long End Kit | D8: =Calcs!AD15 -> 0 | E8: 210.24
A9: =IF(D9=0,0,MAX($A$3:A8)+1) -> 0 | B9: HGC705994 | C9: 5' Slide Bench Drain Kit | D9: =Calcs!Y27 -> 0 | E9: 383.83
A10: =IF(D10=0,0,MAX($A$3:A9)+1) -> 0 | B10: HGC705995 | C10: 5' Slide Bench Middle Kit | D10: =Calcs!Z27 -> 0 | E10: 383.83 | H10: LC3166 | I10: Tube Screw Kit | J10: 1 | K10: 1 pkg for each short tube & long tube kit
A11: =IF(D11=0,0,MAX($A$3:A10)+1) -> 0 | B11: HGC705996 | C11: 5' Slide Bench 5' Long End Kit | D11: =Calcs!AA27 -> 0 | E11: 383.83 | H11: MS3271 | I11: SCREW, HEX HD, FLANGE, 1/4"-20 UN x 0.375" | J11: 9
A12: =IF(D12=0,0,MAX($A$3:A11)+1) -> 0 | B12: HGC706159 | C12: 5' End Tray, 4' Long End Kit | D12: =Calcs!AB27 -> 0 | E12: 305.91 | H12: MS3291 | I12: SCREW, HEX HD, 10-32 X .5IN, THREAD-CUTTING | J12: 52
A13: =IF(D13=0,0,MAX($A$3:A12)+1) -> 0 | B13: HGC706160 | C13: 5' End Tray, 3' Long End Kit | D13: =Calcs!AC27 -> 0 | E13: 278.1
A14: =IF(D14=0,0,MAX($A$3:A13)+1) -> 0 | B14: HGC706161 | C14: 5' End Tray, 2' Long End Kit | D14: =Calcs!AD27 -> 0 | E14: 262.8 | H14: LC3167 | I14: Extrusion Screw Kit | J14: 1 | K14: 1 pkg for each 4' & 5' extrusion kit
A15: =IF(D15=0,0,MAX($A$3:A14)+1) -> 0 | B15: HGC706000 | C15: 12" Arch Kit | D15: =Calcs!T15+Calcs!T27 -> 0 | E15: 47.43 | H15: MS3298 | I15: SCREW, THUMB, 10-32X.5IN | J15: 2
A16: =IF(D16=0,0,MAX($A$3:A15)+1) -> 0 | B16: HGC706001 | C16: 20" Arch Kit | D16: =Calcs!V15+Calcs!V27 -> 0 | E16: 50.07 | H16: MS3299 | I16: SCREW, HEX HD, 10-32 X 1IN, THREAD-CUTTING | J16: 13
A17: =IF(D17=0,0,MAX($A$3:A16)+1) -> 0 | B17: HGC706002 | C17: 30" Arch Kit | D17: =Calcs!X15+Calcs!X27 -> 0 | E17: 54.31
A18: =IF(D18=0,0,MAX($A$3:A17)+1) -> 0 | B18: HGC706003 | C18: Anti-tip Kit (for Middles)(4' Only) | D18: =Calcs!AE15 -> 0 | E18: 20.73 | H18: LC3168 | I18: Anti-Tip Screw Kit | J18: 1 | K18: 1 pkg for each anti-tip kit
A19: =IF(D19=0,0,MAX($A$3:A18)+1) -> 0 | B19: 706016 | C19: Bond Three Sealant | D19: =Calcs!C83 -> 0 | E19: 14.89 | H19: MS3299 | I19: SCREW, HEX HD, 10-32 X 1IN, THREAD-CUTTING | J19: 4
A20: =IF(D20=0,0,MAX($A$3:A19)+1) ->  | B20: 117004 | C20: Slide Bench Instruction Manual | D20: =Calcs!M31+Calcs!M32 ->  | E20: 0 | H20: MS3291 | I20: SCREW, HEX HD, 10-32 X .5IN, THREAD-CUTTING | J20: 2
H21: MS3260 | I21: SCREW, HEX HD, 10-16X0.5IN, SELF-DRILLING | J21: 2
H22: MC2083 | I22: PLUG, TUBE, 1X1 | J22: 4
B23: Part Level Order BOM | H23: MC2084 | I23: PLUG, .625DIA | J23: 4
A24: Transfer Filter | B24: SKU | C24: Description | D24: Order Qty | E24: Notes | H24: MC2085 | I24: SPRING, COMPRESSION RUBBER | J24: 2
A25: =IF(D25=0,0,1) -> 0 | B25: 706009 | C25: 4' Black ABS Drain Tray/1 | D25: =D3 -> 0 | E25: From Top Level BOM
A26: =IF(D26=0,0,MAX(A25)+1) -> 0 | B26: 706012 | C26: 4' Black ABS Middle Tray/1 | D26: 0 | E26: From Top Level BOM
A27: =IF(D27=0,0,MAX(A$25:$A26)+1) -> 0 | B27: 706010 | C27: 4' Black ABS End Tray, 5' Long | D27: 0 | E27: From Top Level BOM
A28: =IF(D28=0,0,MAX(A$25:$A27)+1) -> 0 | B28: 706162 | C28: 4' Black ABS End Tray, 4' Long | D28: 0 | E28: From Top Level BOM
A29: =IF(D29=0,0,MAX(A$25:$A28)+1) -> 0 | B29: 706163 | C29: 4' Black ABS End Tray, 3' Long | D29: 0 | E29: From Top Level BOM
A30: =IF(D30=0,0,MAX(A$25:$A29)+1) -> 0 | B30: 706164 | C30: 4' Black ABS End Tray, 2' Long | D30: 0 | E30: From Top Level BOM
A31: =IF(D31=0,0,MAX(A$25:$A30)+1) -> 0 | B31: 706663 | C31: 5' Black ABS Drain Tray | D31: 0 | E31: From Top Level BOM
A32: =IF(D32=0,0,MAX(A$25:$A31)+1) -> 0 | B32: 706667 | C32: 5' Black ABS Middle Tray | D32: 0 | E32: From Top Level BOM
A33: =IF(D33=0,0,MAX(A$25:$A32)+1) -> 0 | B33: 706668 | C33: 5' Black ABS End Tray, 5' Long | D33: 0 | E33: From Top Level BOM
A34: =IF(D34=0,0,MAX(A$25:$A33)+1) -> 0 | B34: 706165 | C34: 5' Black ABS End Tray, 4' Long | D34: 0 | E34: From Top Level BOM
A35: =IF(D35=0,0,MAX(A$25:$A34)+1) -> 0 | B35: 706166 | C35: 5' Black ABS End Tray, 3' Long | D35: 0 | E35: From Top Level BOM
A36: =IF(D36=0,0,MAX(A$25:$A35)+1) -> 0 | B36: 706167 | C36: 5' Black ABS End Tray, 2' Long | D36: 0 | E36: From Top Level BOM
A37: =IF(D37=0,0,MAX(A$25:$A36)+1) -> 0 | B37: MS3257 | C37: TUBE - RECTANGLE, BRIDGE | D37: =D15+D16+D17 -> 0 | E37: Arch Kit Qty
A38: =IF(D38=0,0,MAX(A$25:$A37)+1) -> 0 | B38: MS3292 | C38: TUBE - RECTANGLE, FRAME (LONG) | D38: =((D3+D4)*2)+((D9+D10)*2) -> 0 | E38: ( 4' & 5' Drain + Middle )*2
A39: =IF(D39=0,0,MAX(A$25:$A38)+1) -> 0 | B39: MS3286 | C39: TUBE - RECTANGLE, FRAME (SHORT) | D39: =(D5+D11)*2 -> 0 | E39: 4' & 5' End Kit *2
A40: =IF(D40=0,0,MAX(A$25:$A39)+1) -> 0 | B40: MS3806 | C40: Tube - Rectangular, Frame (40.45") | D40: =(D6+D12)*2 -> 0 | E40: 4' & 5' End Kit *2
A41: =IF(D41=0,0,MAX(A$25:$A40)+1) -> 0 | B41: MS3807 | C41: Tube - Rectangular, Frame (28.45") | D41: =(D7+D13)*2 -> 0 | E41: 4' & 5' End Kit *2
A42: =IF(D42=0,0,MAX(A$25:$A41)+1) -> 0 | B42: MS3808 | C42: Tube - Rectangular, Frame (16.45") | D42: =(D8+D14)*2 -> 0 | E42: 4' & 5' End Kit *2
A43: =IF(D43=0,0,MAX(A$25:$A42)+1) -> 0 | B43: MS3295 | C43: TUBE - PLATFORM (LONG) | D43: =((D3+D4)*3)+((D9+D10)*5) -> 0 | E43: ( 4' Drain+Middle *3) + (5' Drain + Middle * 5)
A44: =IF(D44=0,0,MAX(A$25:$A43)+1) -> 0 | B44: MS3290 | C44: TUBE - PLATFORM (SHORT), 5' Long | D44: =(D5*3)+(D11*5) -> 0 | E44: 4' End Kit *3 + 5' End Kit *5
A45: =IF(D45=0,0,MAX(A$25:$A44)+1) -> 0 | B45: MS3809 | C45: Tube-Platform (38.96") | D45: =(D6*3)+(D12*5) -> 0 | E45: 4' End Kit *3 + 5' End Kit *5
A46: =IF(D46=0,0,MAX(A$25:$A45)+1) -> 0 | B46: MS3810 | C46: Tube-Platform (26.96") | D46: =(D7*3)+(D13*5) -> 0 | E46: 4' End Kit *3 + 5' End Kit *5
A47: =IF(D47=0,0,MAX(A$25:$A46)+1) -> 0 | B47: MS3821 | C47: Tube-Platform (14.96") | D47: =(D8*3)+(D14*5) -> 0 | E47: 4' End Kit *3 + 5' End Kit *5
A48: =IF(D48=0,0,MAX(A$25:$A47)+1) -> 0 | B48: MS3294 | C48: TUBE - ROLLER (LONG) | D48: =D62 -> 0 | E48: Same as Frame Tube
A49: =IF(D49=0,0,MAX(A$25:$A48)+1) -> 0 | B49: MS3288 | C49: TUBE - ROLLER (SHORT), 5' Long | D49: =(D5+D11)*2 -> 0 | E49: 4' & 5' End Kit *2
A50: =IF(D50=0,0,MAX(A$25:$A49)+1) -> 0 | B50: MS3822 | C50: Tube-Roller (37.96") | D50: =(D6+D12)*2 -> 0 | E50: 4' & 5' End Kit *2
A51: =IF(D51=0,0,MAX(A$25:$A50)+1) -> 0 | B51: MS3823 | C51: Tube-Roller (25.96") | D51: =(D7+D13)*2 -> 0 | E51: 4' & 5' End Kit *2
A52: =IF(D52=0,0,MAX(A$25:$A51)+1) -> 0 | B52: MS3824 | C52: Tube-Roller (13.96") | D52: =(D8+D14)*2 -> 0 | E52: 4' & 5' End Kit *2
A53: =IF(D53=0,0,MAX(A$25:$A52)+1) -> 0 | B53: MS3296 | C53: SLIDE RAIL - 4FT | D53: =(D3+D4+((D5+D6+D7+D8))*2) -> 0 | E53: Top Level BOM:4' Drain + Middle + 2*End Kit
A54: =IF(D54=0,0,MAX(A$25:$A53)+1) -> 0 | B54: MS3431 | C54: SLIDE RAIL - 5FT | D54: =D9+D10+((D11+D12+D13+D14)*2) -> 0 | E54: 4' Drain + Middle + 2*End Kit
A55: =IF(D55=0,0,MAX(A$25:$A54)+1) -> 0 | B55: MS3281 | C55: CONNECTOR - FRAME | D55: =(D15*2)+(D16*2)+(D17*2) -> 0 | E55: Arch kits Qty*2
A56: =IF(D56=0,0,MAX(A$25:$A55)+1) -> 0 | B56: MS3283 | C56: LEG ASSEMBLY - 20" BENCH | D56: =D16*2 -> 0 | E56: 20" Arch kit Qty*2
A57: =IF(D57=0,0,MAX(A$25:$A56)+1) -> 0 | B57: MS3285 | C57: LEG ASSEMBLY - 30" BENCH | D57: =D17*2 -> 0 | E57: 30" Arch kit Qty*2
A58: =IF(D58=0,0,MAX(A$25:$A57)+1) -> 0 | B58: MS3258 | C58: LEG ASSEMBLY - 12" BENCH | D58: =D15*2 -> 0 | E58: 12" Arch kit Qty*2
A59: =IF(D59=0,0,MAX(A$25:$A58)+1) -> 0 | B59: MS3284 | C59: ROD - THREADED, 20-30" BENCH | D59: =(D16*2)+(D17*2) -> 0 | E59: 20" & 30" Arch kits Qty *2
A60: =IF(D60=0,0,MAX(A$25:$A59)+1) -> 0 | B60: MS3282 | C60: ROD - THREADED, 12" BENCH | D60: =D58 -> 0 | E60: Same as 12" Arch Leg
A61: =IF(D61=0,0,MAX(A$25:$A60)+1) -> 0 | B61: MS3287 | C61: CONNECTOR - ROLLERS, 1.5" DIAM (SHORT) | D61: =(D3+D9)*4 -> 0 | E61: Drain Kit *4
A62: =IF(D62=0,0,MAX(A$25:$A61)+1) -> 0 | B62: MS3293 | C62: CONNECTOR - ROLLERS, 1.5" DIAMETR (LONG) | D62: =(D4+D10 +D5+D6+D7+D8+D11+D12+D13+D14)*2 -> 0 | E62: 4' & 5' Middle + End *2
A63: =IF(D63=0,0,MAX(A$25:$A62)+1) -> 0 | B63: MS3289 | C63: BRACKET - CORNER | D63: =(D3+D4+D5+D6+D7+D8+D9+D10+D11+D12+D13+D14)*8 -> 0 | E63: 4' & 5' Kits *8
A64: =IF(D64=0,0,MAX(A$25:$A63)+1) -> 0 | B64: MC2081 | C64: BUMPER - TRELLIS, SLIDE RAIL | D64: =((D3+D4+((D5+D6+D7+D8)*2))+(D9+D10+((D11+D12+D13+D14)*2)))*2 -> 0 | E64: (4' Drain + Middle + 2*End Kit)*2
A65: =IF(D65=0,0,MAX(A$25:$A64)+1) -> 0 | B65: MS3783 | C65: MOUNT - TRELLIS | D65: =D64 -> 0 | E65: Same as bumper quantity | F65: Rev A MS3297, Rev B MS3783
A66: =IF(D66=0,0,MAX(A$25:$A65)+1) -> 0 | B66: MS3300 | C66: ANTI-TIP - WELDMENT | D66: =D3+D5+D6+D7+D8+D18+D9+D10+((D11+D12+D13+D14)*2) -> 0 | E66: 4' Drain + End + Anti-tip Kit + 5' Drain + Middle + End Kit
A67: =IF(D67=0,0,MAX(A$25:$A66)+1) -> 0 | B67: MS3301 | C67: BRACKET - GUIDE | D67: =D66 -> 0 | E67: Same as Anti-tip Weldment
A68: =IF(D68=0,0,MAX(A$25:$A67)+1) -> 0 | B68: MC2082 | C68: ALIGNER - ROLLER | D68: =D66 -> 0 | E68: Anti-tp Qty | H68: Reference from previous methods
A69: =IF(D69=0,0,MAX(A$25:$A68)+1) -> 0 | B69: 708573 | C69: Screen | D69: =$D$3+$D$9 -> 0 | E69: 4' & 5' Drain Kit | H69: MC2083 | I69: PLUG - TUBE, 1X1 | J69: =D66*4 -> 0 | K69: Anti-tp Qty*4
A70: =IF(D70=0,0,MAX(A$25:$A69)+1) -> 0 | B70: 708558 | C70: 1" Bulk head | D70: =($D$3*2)+($D$9*2) -> 0 | E70: 4' & 5' Drain Kit * 2 | H70: MC2084 | I70: PLUG - 5/8" DIAMETER | J70: =D66*4 -> 0 | K70: Anti-tp Qty*4
A71: =IF(D71=0,0,MAX(A$25:$A70)+1) -> 0 | B71: 708552 | C71: 3/4" Bulk head | D71: =$D$3+$D$9 -> 0 | E71: 4' & 5' Drain Kit | H71: MC2085 | I71: SPRING - COMPRESSION, RUBBER | J71: =D66*2 -> 0 | K71: Anti-tp Qty*2
A72: =IF(D72=0,0,MAX(A$25:$A71)+1) -> 0 | B72: 706016 | C72: Bond Three Sealant | D72: =$D$19 -> 0 | E72: From Top Level BOM | H72: MS3255 | I72: NUT - HEX, 5/8"-11 UNC-2B | J72: =(D15*4)+(D16*4)+(D17*4) -> 0 | K72: Each Arch Kit *4
A73: =IF(D73=0,0,MAX(A$25:$A72)+1) ->  | B73: 117004 | C73: Slide Bench Instruction Manual | D73: =$D$20 ->  | E73: From Top Level BOM | H73: MS3256 | I73: WASHER - 11/16" ID | J73: =J72 -> 0 | K73: Same as Hex Nut
A74: =IF(D74=0,0,MAX(A$25:$A73)+1) -> 0 | B74: MS3531 | C74: End Cap Emblem | D74: =($D$3+$D$9)*4 -> 0 | E74: 4' & 5' Drain Kit * 4 | H74: MS3260 | I74: SCREW, HEX HD, 10-16 X 1/2", SELF-DRILL | J74: =D66*2 -> 0 | K74: Anti-tp Qty*2
A75: =IF(D75=0,0,MAX(A$25:$A74)+1) -> 0 | B75: LC3165 | C75: Arch Screw Kit | D75: =D15+D16+D17 -> 0 | E75: 1 pkg for each Arch Kit | H75: MS3271 | I75: SCREW - HEX HD, FLNG, 1/4"-20 UNC X 3/8" | J75: =((D15+D16+D17)*4)+((D3+D4+D5+D6+D7+D8+D9+D10+D11+D12+D13+D14)*9) -> 0 | K75: Arch kits (4), Section Kits (9)
A76: =IF(D76=0,0,MAX(A$25:$A75)+1) -> 0 | B76: MS3271 | C76: SCREW - HEX HD, FLNG, 1/4"-20 UNC X 3/8" | D76: =-(D75*4) -> 0 | E76: 4 per pkg | H76: MS3291 | I76: SCREW - HEX HD, 10-32 X 1/2", THREAD-CUT | J76: =(D61*2)+(D62*4)+(D63*4)+((D43+D44+D45+D46+D47)*3)+(D66*2) -> 0 | K76: Roller ends *2 + Rollers *4 + brackets *4 + table tubes *3(1 spare) + Antitip *2
A77: =IF(D77=0,0,MAX(A$25:$A76)+1) -> 0 | B77: MS3255 | C77: NUT-HEX, 5/8"-11 UNC-2B | D77: =-(D75*4) -> 0 | E77: 4 per pkg | H77: MS3298 | I77: SCREW - THUMB, 10-32 UNF X 1/2" | J77: =D65 -> 0 | K77: Same as Trellis Mount
A78: =IF(D78=0,0,MAX(A$25:$A77)+1) -> 0 | B78: MS3256 | C78: Wshr, 11/16" ID | D78: =-(D75*4) -> 0 | E78: 4 per pkg | H78: MS3299 | I78: SCREW - HEX HD, 10-32 X 1", THREAD-CUT | J78: =(D66*5)+(D64*6) -> 0 | K78: Anti-tip *5 (1 spare) + Bumper*6
A79: =IF(D79=0,0,MAX(A$25:$A78)+1) -> 0 | B79: LC3166 | C79: Tubes Screw Kit | D79: =SUM(D3:D14) -> 0 | E79: 1 pkg for long tubes, short tubes kit
A80: =IF(D80=0,0,MAX(A$25:$A79)+1) -> 0 | B80: MS3271 | C80: SCREW, HEX HD, FLANGE, 1/4"-20 UN x 0.375" | D80: =-(D79*9) -> 0 | E80: 9 per pkg
A81: =IF(D81=0,0,MAX(A$25:$A80)+1) -> 0 | B81: MS3291 | C81: SCREW, HEX HD, 10-32 X .5IN, THREAD-CUTTING | D81: =-(D79*52) -> 0 | E81: 52 per pkg
A82: =IF(D82=0,0,MAX(A$25:$A81)+1) -> 0 | B82: LC3167 | C82: Extrusion Screw Kit | D82: =D53+D54 -> 0 | E82: 1 pkg for each extrusion
A83: =IF(D83=0,0,MAX(A$25:$A82)+1) -> 0 | B83: MS3298 | C83: SCREW, THUMB, 10-32X.5IN | D83: =-(D82*2) -> 0 | E83: 2 per pkg
A84: =IF(D84=0,0,MAX(A$25:$A83)+1) -> 0 | B84: MS3299 | C84: SCREW, HEX HD, 10-32 X 1IN, THREAD-CUTTING | D84: =-(D82*13) -> 0 | E84: 13 per pkg
A85: =IF(D85=0,0,MAX(A$25:$A84)+1) -> 0 | B85: LC3168 | C85: Anti-Tip Screw Kit | D85: =D66 -> 0 | E85: 1 pkg for each anti-tip
A86: =IF(D86=0,0,MAX(A$25:$A85)+1) -> 0 | B86: MS3299 | C86: SCREW, HEX HD, 10-32 X 1IN, THREAD-CUTTING | D86: =-(D85*4) -> 0 | E86: 4 per pkg
A87: =IF(D87=0,0,MAX(A$25:$A86)+1) -> 0 | B87: MS3291 | C87: SCREW, HEX HD, 10-32 X .5IN, THREAD-CUTTING | D87: =-(D85*2) -> 0 | E87: 2 per pkg
A88: =IF(D88=0,0,MAX(A$25:$A87)+1) -> 0 | B88: MS3260 | C88: SCREW, HEX HD, 10-16X0.5IN, SELF-DRILLING | D88: =-(D85*2) -> 0 | E88: 2 per pkg
A89: =IF(D89=0,0,MAX(A$25:$A88)+1) -> 0 | B89: MC2083 | C89: PLUG, TUBE, 1X1 | D89: =-(D85*4) -> 0 | E89: 4 per pkg
A90: =IF(D90=0,0,MAX(A$25:$A89)+1) -> 0 | B90: MC2084 | C90: PLUG, .625DIA | D90: =-(D85*4) -> 0 | E90: 4 per pkg
A91: =IF(D91=0,0,MAX(A$25:$A90)+1) -> 0 | B91: MC2085 | C91: SPRING, COMPRESSION RUBBER | D91: =-(D85*2) -> 0 | E91: 2 per pkg
A92: =IF(D92=0,0,MAX(A$25:$A91)+1) -> 0
A93: =IF(D93=0,0,MAX(A$25:$A92)+1) -> 0
A94: =IF(D94=0,0,MAX(A$25:$A93)+1) -> 0

Sheet New Order BOM's (hidden)
A1: Transfer Filter | B1: Virtual SKU Designation | C1: SAP Description (40 character max) | D1: WS Price (USD) | E1: MSRP (USD) | F1: WS Price (CAD) | G1: MSRP (CAD)
A2: =IF(H2=0,0,1) ->  | B2: SB48-90-12B | C2: SLIDE BENCH: 4FTx7.5FTx12INxB | D2: 651.58 | E2: 1009.2 | F2: 814.48 | G2: 1261.5 | H2: =_xlfn.IFS(B2=Calcs!$R$38,Calcs!$Q$38,B2=Calcs!$R$39,Calcs!$Q$39,TRUE,0) -> 
A3: =IF(H3=0,0,MAX(A2)+1) ->  | B3: SB48-102-12B | C3: SLIDE BENCH: 4FTx8.5FTx12INxB | D3: 663.82 | E3: 1027 | F3: 829.78 | G3: 1283.75 | H3: =_xlfn.IFS(B3=Calcs!$R$38,Calcs!$Q$38,B3=Calcs!$R$39,Calcs!$Q$39,TRUE,0) -> 
A4: =IF(H4=0,0,MAX($A$2:A3)+1) ->  | B4: SB48-114-12B | C4: SLIDE BENCH: 4FTx9.5FTx12INxB | D4: 686.07 | E4: 1060.37 | F4: 857.59 | G4: 1325.46 | H4: =_xlfn.IFS(B4=Calcs!$R$38,Calcs!$Q$38,B4=Calcs!$R$39,Calcs!$Q$39,TRUE,0) -> 
A5: =IF(H5=0,0,MAX($A$2:A4)+1) ->  | B5: SB48-126-12B | C5: SLIDE BENCH: 4FTx10.5FTx12INxB | D5: 725.5 | E5: 1123.24 | F5: 906.88 | G5: 1404.05 | H5: =_xlfn.IFS(B5=Calcs!$R$38,Calcs!$Q$38,B5=Calcs!$R$39,Calcs!$Q$39,TRUE,0) -> 
A6: =IF(H6=0,0,MAX($A$2:A5)+1) ->  | B6: SB48-150-12B | C6: SLIDE BENCH: 4FTx12.5FTx12INxB | D6: 983.17 | E6: 1522.44 | F6: 1228.96 | G6: 1903.05 | H6: =_xlfn.IFS(B6=Calcs!$R$38,Calcs!$Q$38,B6=Calcs!$R$39,Calcs!$Q$39,TRUE,0) -> 
A7: =IF(H7=0,0,MAX($A$2:A6)+1) ->  | B7: SB48-162-12B | C7: SLIDE BENCH: 4FTx13.5FTx12INxB | D7: 995.41 | E7: 1540.24 | F7: 1244.26 | G7: 1925.3 | H7: =_xlfn.IFS(B7=Calcs!$R$38,Calcs!$Q$38,B7=Calcs!$R$39,Calcs!$Q$39,TRUE,0) -> 
A8: =IF(H8=0,0,MAX($A$2:A7)+1) ->  | B8: SB48-174-12B | C8: SLIDE BENCH: 4FTx14.5FTx12INxB | D8: 1017.66 | E8: 1573.61 | F8: 1272.08 | G8: 1967.01 | H8: =_xlfn.IFS(B8=Calcs!$R$38,Calcs!$Q$38,B8=Calcs!$R$39,Calcs!$Q$39,TRUE,0) -> 
A9: =IF(H9=0,0,MAX($A$2:A8)+1) ->  | B9: SB48-186-12B | C9: SLIDE BENCH: 4FTx15.5FTx12INxB | D9: 1057.09 | E9: 1636.48 | F9: 1321.36 | G9: 2045.6 | H9: =_xlfn.IFS(B9=Calcs!$R$38,Calcs!$Q$38,B9=Calcs!$R$39,Calcs!$Q$39,TRUE,0) -> 
A10: =IF(H10=0,0,MAX($A$2:A9)+1) ->  | B10: SB48-210-12B | C10: SLIDE BENCH: 4FTx17.5FTx12INxB | D10: 1335.49 | E10: 2067.7 | F10: 1669.36 | G10: 2584.63 | H10: =_xlfn.IFS(B10=Calcs!$R$38,Calcs!$Q$38,B10=Calcs!$R$39,Calcs!$Q$39,TRUE,0) -> 
A11: =IF(H11=0,0,MAX($A$2:A10)+1) ->  | B11: SB48-222-12B | C11: SLIDE BENCH: 4FTx18.5FTx12INxB | D11: 1347.73 | E11: 2085.5 | F11: 1684.66 | G11: 2606.88 | H11: =_xlfn.IFS(B11=Calcs!$R$38,Calcs!$Q$38,B11=Calcs!$R$39,Calcs!$Q$39,TRUE,0) -> 
A12: =IF(H12=0,0,MAX($A$2:A11)+1) ->  | B12: SB48-234-12B | C12: SLIDE BENCH: 4FTx19.5FTx12INxB | D12: 1369.98 | E12: 2118.87 | F12: 1712.48 | G12: 2648.59 | H12: =_xlfn.IFS(B12=Calcs!$R$38,Calcs!$Q$38,B12=Calcs!$R$39,Calcs!$Q$39,TRUE,0) -> 
A13: =IF(H13=0,0,MAX($A$2:A12)+1) ->  | B13: SB48-246-12B | C13: SLIDE BENCH: 4FTx20.5FTx12INxB | D13: 1409.41 | E13: 2181.74 | F13: 1761.76 | G13: 2727.18 | H13: =_xlfn.IFS(B13=Calcs!$R$38,Calcs!$Q$38,B13=Calcs!$R$39,Calcs!$Q$39,TRUE,0) -> 
A14: =IF(H14=0,0,MAX($A$2:A13)+1) ->  | B14: SB48-270-12B | C14: SLIDE BENCH: 4FTx22.5FTx12INxB | D14: 1702.7 | E14: 2636.45 | F14: 2128.38 | G14: 3295.56 | H14: =_xlfn.IFS(B14=Calcs!$R$38,Calcs!$Q$38,B14=Calcs!$R$39,Calcs!$Q$39,TRUE,0) -> 
A15: =IF(H15=0,0,MAX($A$2:A14)+1) ->  | B15: SB48-282-12B | C15: SLIDE BENCH: 4FTx23.5FTx12INxB | D15: 1714.94 | E15: 2654.25 | F15: 2143.68 | G15: 3317.81 | H15: =_xlfn.IFS(B15=Calcs!$R$38,Calcs!$Q$38,B15=Calcs!$R$39,Calcs!$Q$39,TRUE,0) -> 
A16: =IF(H16=0,0,MAX($A$2:A15)+1) ->  | B16: SB48-294-12B | C16: SLIDE BENCH: 4FTx24.5FTx12INxB | D16: 1737.19 | E16: 2687.62 | F16: 2171.49 | G16: 3359.53 | H16: =_xlfn.IFS(B16=Calcs!$R$38,Calcs!$Q$38,B16=Calcs!$R$39,Calcs!$Q$39,TRUE,0) -> 
A17: =IF(H17=0,0,MAX($A$2:A16)+1) ->  | B17: SB48-306-12B | C17: SLIDE BENCH: 4FTx25.5FTx12INxB | D17: 1776.62 | E17: 2750.49 | F17: 2220.78 | G17: 3438.11 | H17: =_xlfn.IFS(B17=Calcs!$R$38,Calcs!$Q$38,B17=Calcs!$R$39,Calcs!$Q$39,TRUE,0) -> 
A18: =IF(H18=0,0,MAX($A$2:A17)+1) ->  | B18: SB48-330-12B | C18: SLIDE BENCH: 4FTx27.5FTx12INxB | D18: 2034.29 | E18: 3149.69 | F18: 2542.86 | G18: 3937.11 | H18: =_xlfn.IFS(B18=Calcs!$R$38,Calcs!$Q$38,B18=Calcs!$R$39,Calcs!$Q$39,TRUE,0) -> 
A19: =IF(H19=0,0,MAX($A$2:A18)+1) ->  | B19: SB48-342-12B | C19: SLIDE BENCH: 4FTx28.5FTx12INxB | D19: 2046.53 | E19: 3167.49 | F19: 2558.16 | G19: 3959.36 | H19: =_xlfn.IFS(B19=Calcs!$R$38,Calcs!$Q$38,B19=Calcs!$R$39,Calcs!$Q$39,TRUE,0) -> 
A20: =IF(H20=0,0,MAX($A$2:A19)+1) ->  | B20: SB48-354-12B | C20: SLIDE BENCH: 4FTx29.5FTx12INxB | D20: 2068.78 | E20: 3200.86 | F20: 2585.98 | G20: 4001.08 | H20: =_xlfn.IFS(B20=Calcs!$R$38,Calcs!$Q$38,B20=Calcs!$R$39,Calcs!$Q$39,TRUE,0) -> 
A21: =IF(H21=0,0,MAX($A$2:A20)+1) ->  | B21: SB48-366-12B | C21: SLIDE BENCH: 4FTx30.5FTx12INxB | D21: 2108.21 | E21: 3263.73 | F21: 2635.26 | G21: 4079.66 | H21: =_xlfn.IFS(B21=Calcs!$R$38,Calcs!$Q$38,B21=Calcs!$R$39,Calcs!$Q$39,TRUE,0) -> 
A22: =IF(H22=0,0,MAX($A$2:A21)+1) ->  | B22: SB48-390-12B | C22: SLIDE BENCH: 4FTx32.5FTx12INxB | D22: 2386.61 | E22: 3694.95 | F22: 2983.26 | G22: 4618.69 | H22: =_xlfn.IFS(B22=Calcs!$R$38,Calcs!$Q$38,B22=Calcs!$R$39,Calcs!$Q$39,TRUE,0) -> 
A23: =IF(H23=0,0,MAX($A$2:A22)+1) ->  | B23: SB48-402-12B | C23: SLIDE BENCH: 4FTx33.5FTx12INxB | D23: 2398.85 | E23: 3712.75 | F23: 2998.56 | G23: 4640.94 | H23: =_xlfn.IFS(B23=Calcs!$R$38,Calcs!$Q$38,B23=Calcs!$R$39,Calcs!$Q$39,TRUE,0) -> 
A24: =IF(H24=0,0,MAX($A$2:A23)+1) ->  | B24: SB48-414-12B | C24: SLIDE BENCH: 4FTx34.5FTx12INxB | D24: 2421.1 | E24: 3746.12 | F24: 3026.38 | G24: 4682.65 | H24: =_xlfn.IFS(B24=Calcs!$R$38,Calcs!$Q$38,B24=Calcs!$R$39,Calcs!$Q$39,TRUE,0) -> 
A25: =IF(H25=0,0,MAX($A$2:A24)+1) ->  | B25: SB48-426-12B | C25: SLIDE BENCH: 4FTx35.5FTx12INxB | D25: 2460.53 | E25: 3808.99 | F25: 3075.66 | G25: 4761.24 | H25: =_xlfn.IFS(B25=Calcs!$R$38,Calcs!$Q$38,B25=Calcs!$R$39,Calcs!$Q$39,TRUE,0) -> 
A26: =IF(H26=0,0,MAX($A$2:A25)+1) ->  | B26: SB48-450-12B | C26: SLIDE BENCH: 4FTx37.5FTx12INxB | D26: 2718.2 | E26: 4208.19 | F26: 3397.75 | G26: 5260.24 | H26: =_xlfn.IFS(B26=Calcs!$R$38,Calcs!$Q$38,B26=Calcs!$R$39,Calcs!$Q$39,TRUE,0) -> 
A27: =IF(H27=0,0,MAX($A$2:A26)+1) ->  | B27: SB48-462-12B | C27: SLIDE BENCH: 4FTx38.5FTx12INxB | D27: 2730.44 | E27: 4225.99 | F27: 3413.05 | G27: 5282.49 | H27: =_xlfn.IFS(B27=Calcs!$R$38,Calcs!$Q$38,B27=Calcs!$R$39,Calcs!$Q$39,TRUE,0) -> 
A28: =IF(H28=0,0,MAX($A$2:A27)+1) ->  | B28: SB48-474-12B | C28: SLIDE BENCH: 4FTx39.5FTx12INxB | D28: 2752.69 | E28: 4259.36 | F28: 3440.86 | G28: 5324.2 | H28: =_xlfn.IFS(B28=Calcs!$R$38,Calcs!$Q$38,B28=Calcs!$R$39,Calcs!$Q$39,TRUE,0) -> 
A29: =IF(H29=0,0,MAX($A$2:A28)+1) ->  | B29: SB48-486-12B | C29: SLIDE BENCH: 4FTx40.5FTx12INxB | D29: 2792.12 | E29: 4322.23 | F29: 3490.15 | G29: 5402.79 | H29: =_xlfn.IFS(B29=Calcs!$R$38,Calcs!$Q$38,B29=Calcs!$R$39,Calcs!$Q$39,TRUE,0) -> 
A30: =IF(H30=0,0,MAX($A$2:A29)+1) ->  | B30: SB48-510-12B | C30: SLIDE BENCH: 4FTx42.5FTx12INxB | D30: 3085.41 | E30: 4776.94 | F30: 3856.76 | G30: 5971.18 | H30: =_xlfn.IFS(B30=Calcs!$R$38,Calcs!$Q$38,B30=Calcs!$R$39,Calcs!$Q$39,TRUE,0) -> 
A31: =IF(H31=0,0,MAX($A$2:A30)+1) ->  | B31: SB48-522-12B | C31: SLIDE BENCH: 4FTx43.5FTx12INxB | D31: 3097.65 | E31: 4794.74 | F31: 3872.06 | G31: 5993.43 | H31: =_xlfn.IFS(B31=Calcs!$R$38,Calcs!$Q$38,B31=Calcs!$R$39,Calcs!$Q$39,TRUE,0) -> 
A32: =IF(H32=0,0,MAX($A$2:A31)+1) ->  | B32: SB48-534-12B | C32: SLIDE BENCH: 4FTx44.5FTx12INxB | D32: 3119.9 | E32: 4828.11 | F32: 3899.88 | G32: 6035.14 | H32: =_xlfn.IFS(B32=Calcs!$R$38,Calcs!$Q$38,B32=Calcs!$R$39,Calcs!$Q$39,TRUE,0) -> 
A33: =IF(H33=0,0,MAX($A$2:A32)+1) ->  | B33: SB48-546-12B | C33: SLIDE BENCH: 4FTx45.5FTx12INxB | D33: 3159.33 | E33: 4890.98 | F33: 3949.16 | G33: 6113.73 | H33: =_xlfn.IFS(B33=Calcs!$R$38,Calcs!$Q$38,B33=Calcs!$R$39,Calcs!$Q$39,TRUE,0) -> 
A34: =IF(H34=0,0,MAX($A$2:A33)+1) ->  | B34: SB48-570-12B | C34: SLIDE BENCH: 4FTx47.5FTx12INxB | D34: 3417 | E34: 5290.18 | F34: 4271.25 | G34: 6612.73 | H34: =_xlfn.IFS(B34=Calcs!$R$38,Calcs!$Q$38,B34=Calcs!$R$39,Calcs!$Q$39,TRUE,0) -> 
A35: =IF(H35=0,0,MAX($A$2:A34)+1) ->  | B35: SB48-582-12B | C35: SLIDE BENCH: 4FTx48.5FTx12INxB | D35: 3429.24 | E35: 5307.98 | F35: 4286.55 | G35: 6634.98 | H35: =_xlfn.IFS(B35=Calcs!$R$38,Calcs!$Q$38,B35=Calcs!$R$39,Calcs!$Q$39,TRUE,0) -> 
A36: =IF(H36=0,0,MAX($A$2:A35)+1) ->  | B36: SB48-594-12B | C36: SLIDE BENCH: 4FTx49.5FTx12INxB | D36: 3451.49 | E36: 5341.35 | F36: 4314.36 | G36: 6676.69 | H36: =_xlfn.IFS(B36=Calcs!$R$38,Calcs!$Q$38,B36=Calcs!$R$39,Calcs!$Q$39,TRUE,0) -> 
A37: =IF(H37=0,0,MAX($A$2:A36)+1) ->  | B37: SB48-606-12B | C37: SLIDE BENCH: 4FTx50.5FTx12INxB | D37: 3490.92 | E37: 5404.22 | F37: 4363.65 | G37: 6755.28 | H37: =_xlfn.IFS(B37=Calcs!$R$38,Calcs!$Q$38,B37=Calcs!$R$39,Calcs!$Q$39,TRUE,0) -> 
A38: =IF(H38=0,0,MAX($A$2:A37)+1) ->  | B38: SB48-630-12B | C38: SLIDE BENCH: 4FTx52.5FTx12INxB | D38: 3769.32 | E38: 5835.44 | F38: 4711.65 | G38: 7294.3 | H38: =_xlfn.IFS(B38=Calcs!$R$38,Calcs!$Q$38,B38=Calcs!$R$39,Calcs!$Q$39,TRUE,0) -> 
A39: =IF(H39=0,0,MAX($A$2:A38)+1) ->  | B39: SB48-642-12B | C39: SLIDE BENCH: 4FTx53.5FTx12INxB | D39: 3781.56 | E39: 5853.24 | F39: 4726.95 | G39: 7316.55 | H39: =_xlfn.IFS(B39=Calcs!$R$38,Calcs!$Q$38,B39=Calcs!$R$39,Calcs!$Q$39,TRUE,0) -> 
A40: =IF(H40=0,0,MAX($A$2:A39)+1) ->  | B40: SB48-654-12B | C40: SLIDE BENCH: 4FTx54.5FTx12INxB | D40: 3803.81 | E40: 5886.61 | F40: 4754.76 | G40: 7358.26 | H40: =_xlfn.IFS(B40=Calcs!$R$38,Calcs!$Q$38,B40=Calcs!$R$39,Calcs!$Q$39,TRUE,0) -> 
A41: =IF(H41=0,0,MAX($A$2:A40)+1) ->  | B41: SB48-666-12B | C41: SLIDE BENCH: 4FTx55.5FTx12INxB | D41: 3843.24 | E41: 5949.48 | F41: 4804.05 | G41: 7436.85 | H41: =_xlfn.IFS(B41=Calcs!$R$38,Calcs!$Q$38,B41=Calcs!$R$39,Calcs!$Q$39,TRUE,0) -> 
A42: =IF(H42=0,0,MAX($A$2:A41)+1) ->  | B42: SB48-690-12B | C42: SLIDE BENCH: 4FTx57.5FTx12INxB | D42: 4100.91 | E42: 6348.68 | F42: 5126.14 | G42: 7935.85 | H42: =_xlfn.IFS(B42=Calcs!$R$38,Calcs!$Q$38,B42=Calcs!$R$39,Calcs!$Q$39,TRUE,0) -> 
A43: =IF(H43=0,0,MAX($A$2:A42)+1) ->  | B43: SB48-702-12B | C43: SLIDE BENCH: 4FTx58.5FTx12INxB | D43: 4113.15 | E43: 6366.48 | F43: 5141.44 | G43: 7958.1 | H43: =_xlfn.IFS(B43=Calcs!$R$38,Calcs!$Q$38,B43=Calcs!$R$39,Calcs!$Q$39,TRUE,0) -> 
A44: =IF(H44=0,0,MAX($A$2:A43)+1) ->  | B44: SB48-714-12B | C44: SLIDE BENCH: 4FTx59.5FTx12INxB | D44: 4135.4 | E44: 6399.85 | F44: 5169.25 | G44: 7999.81 | H44: =_xlfn.IFS(B44=Calcs!$R$38,Calcs!$Q$38,B44=Calcs!$R$39,Calcs!$Q$39,TRUE,0) -> 
A45: =IF(H45=0,0,MAX($A$2:A44)+1) ->  | B45: SB48-726-12B | C45: SLIDE BENCH: 4FTx60.5FTx12INxB | D45: 4174.83 | E45: 6462.72 | F45: 5218.54 | G45: 8078.4 | H45: =_xlfn.IFS(B45=Calcs!$R$38,Calcs!$Q$38,B45=Calcs!$R$39,Calcs!$Q$39,TRUE,0) -> 
A46: =IF(H46=0,0,MAX($A$2:A45)+1) ->  | B46: SB48-750-12B | C46: SLIDE BENCH: 4FTx62.5FTx12INxB | D46: 4468.12 | E46: 6917.43 | F46: 5585.15 | G46: 8646.79 | H46: =_xlfn.IFS(B46=Calcs!$R$38,Calcs!$Q$38,B46=Calcs!$R$39,Calcs!$Q$39,TRUE,0) -> 
A47: =IF(H47=0,0,MAX($A$2:A46)+1) ->  | B47: SB48-762-12B | C47: SLIDE BENCH: 4FTx63.5FTx12INxB | D47: 4480.36 | E47: 6935.23 | F47: 5600.45 | G47: 8669.04 | H47: =_xlfn.IFS(B47=Calcs!$R$38,Calcs!$Q$38,B47=Calcs!$R$39,Calcs!$Q$39,TRUE,0) -> 
A48: =IF(H48=0,0,MAX($A$2:A47)+1) ->  | B48: SB48-774-12B | C48: SLIDE BENCH: 4FTx64.5FTx12INxB | D48: 4502.61 | E48: 6968.6 | F48: 5628.26 | G48: 8710.75 | H48: =_xlfn.IFS(B48=Calcs!$R$38,Calcs!$Q$38,B48=Calcs!$R$39,Calcs!$Q$39,TRUE,0) -> 
A49: =IF(H49=0,0,MAX($A$2:A48)+1) ->  | B49: SB48-786-12B | C49: SLIDE BENCH: 4FTx65.5FTx12INxB | D49: 4542.04 | E49: 7031.47 | F49: 5677.55 | G49: 8789.34 | H49: =_xlfn.IFS(B49=Calcs!$R$38,Calcs!$Q$38,B49=Calcs!$R$39,Calcs!$Q$39,TRUE,0) -> 
A50: =IF(H50=0,0,MAX($A$2:A49)+1) ->  | B50: SB48-810-12B | C50: SLIDE BENCH: 4FTx67.5FTx12INxB | D50: 4799.71 | E50: 7430.67 | F50: 5999.64 | G50: 9288.34 | H50: =_xlfn.IFS(B50=Calcs!$R$38,Calcs!$Q$38,B50=Calcs!$R$39,Calcs!$Q$39,TRUE,0) -> 
A51: =IF(H51=0,0,MAX($A$2:A50)+1) ->  | B51: SB48-822-12B | C51: SLIDE BENCH: 4FTx68.5FTx12INxB | D51: 4811.95 | E51: 7448.47 | F51: 6014.94 | G51: 9310.59 | H51: =_xlfn.IFS(B51=Calcs!$R$38,Calcs!$Q$38,B51=Calcs!$R$39,Calcs!$Q$39,TRUE,0) -> 
A52: =IF(H52=0,0,MAX($A$2:A51)+1) ->  | B52: SB48-834-12B | C52: SLIDE BENCH: 4FTx69.5FTx12INxB | D52: 4834.2 | E52: 7481.84 | F52: 6042.75 | G52: 9352.3 | H52: =_xlfn.IFS(B52=Calcs!$R$38,Calcs!$Q$38,B52=Calcs!$R$39,Calcs!$Q$39,TRUE,0) -> 
A53: =IF(H53=0,0,MAX($A$2:A52)+1) ->  | B53: SB48-846-12B | C53: SLIDE BENCH: 4FTx70.5FTx12INxB | D53: 4873.63 | E53: 7544.71 | F53: 6092.04 | G53: 9430.89 | H53: =_xlfn.IFS(B53=Calcs!$R$38,Calcs!$Q$38,B53=Calcs!$R$39,Calcs!$Q$39,TRUE,0) -> 
A54: =IF(H54=0,0,MAX($A$2:A53)+1) ->  | B54: SB48-870-12B | C54: SLIDE BENCH: 4FTx72.5FTx12INxB | D54: 5152.03 | E54: 7975.93 | F54: 6440.04 | G54: 9969.91 | H54: =_xlfn.IFS(B54=Calcs!$R$38,Calcs!$Q$38,B54=Calcs!$R$39,Calcs!$Q$39,TRUE,0) -> 
A55: =IF(H55=0,0,MAX($A$2:A54)+1) ->  | B55: SB48-882-12B | C55: SLIDE BENCH: 4FTx73.5FTx12INxB | D55: 5164.27 | E55: 7993.73 | F55: 6455.34 | G55: 9992.16 | H55: =_xlfn.IFS(B55=Calcs!$R$38,Calcs!$Q$38,B55=Calcs!$R$39,Calcs!$Q$39,TRUE,0) -> 
A56: =IF(H56=0,0,MAX($A$2:A55)+1) ->  | B56: SB48-894-12B | C56: SLIDE BENCH: 4FTx74.5FTx12INxB | D56: 5186.52 | E56: 8027.1 | F56: 6483.15 | G56: 10033.88 | H56: =_xlfn.IFS(B56=Calcs!$R$38,Calcs!$Q$38,B56=Calcs!$R$39,Calcs!$Q$39,TRUE,0) -> 
A57: =IF(H57=0,0,MAX($A$2:A56)+1) ->  | B57: SB48-906-12B | C57: SLIDE BENCH: 4FTx75.5FTx12INxB | D57: 5225.95 | E57: 8089.97 | F57: 6532.44 | G57: 10112.46 | H57: =_xlfn.IFS(B57=Calcs!$R$38,Calcs!$Q$38,B57=Calcs!$R$39,Calcs!$Q$39,TRUE,0) -> 
A58: =IF(H58=0,0,MAX($A$2:A57)+1) ->  | B58: SB48-930-12B | C58: SLIDE BENCH: 4FTx77.5FTx12INxB | D58: 5498.51 | E58: 8512.66 | F58: 6873.14 | G58: 10640.83 | H58: =_xlfn.IFS(B58=Calcs!$R$38,Calcs!$Q$38,B58=Calcs!$R$39,Calcs!$Q$39,TRUE,0) -> 
A59: =IF(H59=0,0,MAX($A$2:A58)+1) ->  | B59: SB48-942-12B | C59: SLIDE BENCH: 4FTx78.5FTx12INxB | D59: 5510.75 | E59: 8530.46 | F59: 6888.44 | G59: 10663.08 | H59: =_xlfn.IFS(B59=Calcs!$R$38,Calcs!$Q$38,B59=Calcs!$R$39,Calcs!$Q$39,TRUE,0) -> 
A60: =IF(H60=0,0,MAX($A$2:A59)+1) ->  | B60: SB48-954-12B | C60: SLIDE BENCH: 4FTx79.5FTx12INxB | D60: 5533 | E60: 8563.83 | F60: 6916.25 | G60: 10704.79 | H60: =_xlfn.IFS(B60=Calcs!$R$38,Calcs!$Q$38,B60=Calcs!$R$39,Calcs!$Q$39,TRUE,0) -> 
A61: =IF(H61=0,0,MAX($A$2:A60)+1) ->  | B61: SB48-966-12B | C61: SLIDE BENCH: 4FTx80.5FTx12INxB | D61: 5572.43 | E61: 8626.7 | F61: 6965.54 | G61: 10783.38 | H61: =_xlfn.IFS(B61=Calcs!$R$38,Calcs!$Q$38,B61=Calcs!$R$39,Calcs!$Q$39,TRUE,0) -> 
A62: =IF(H62=0,0,MAX($A$2:A61)+1) ->  | B62: SB48-990-12B | C62: SLIDE BENCH: 4FTx82.5FTx12INxB | D62: 5850.83 | E62: 9057.92 | F62: 7313.54 | G62: 11322.4 | H62: =_xlfn.IFS(B62=Calcs!$R$38,Calcs!$Q$38,B62=Calcs!$R$39,Calcs!$Q$39,TRUE,0) -> 
A63: =IF(H63=0,0,MAX($A$2:A62)+1) ->  | B63: SB48-1002-12B | C63: SLIDE BENCH: 4FTx83.5FTx12INxB | D63: 5863.07 | E63: 9075.72 | F63: 7328.84 | G63: 11344.65 | H63: =_xlfn.IFS(B63=Calcs!$R$38,Calcs!$Q$38,B63=Calcs!$R$39,Calcs!$Q$39,TRUE,0) -> 
A64: =IF(H64=0,0,MAX($A$2:A63)+1) ->  | B64: SB48-1014-12B | C64: SLIDE BENCH: 4FTx84.5FTx12INxB | D64: 5885.32 | E64: 9109.09 | F64: 7356.65 | G64: 11386.36 | H64: =_xlfn.IFS(B64=Calcs!$R$38,Calcs!$Q$38,B64=Calcs!$R$39,Calcs!$Q$39,TRUE,0) -> 
A65: =IF(H65=0,0,MAX($A$2:A64)+1) ->  | B65: SB48-1026-12B | C65: SLIDE BENCH: 4FTx85.5FTx12INxB | D65: 5924.75 | E65: 9171.96 | F65: 7405.94 | G65: 11464.95 | H65: =_xlfn.IFS(B65=Calcs!$R$38,Calcs!$Q$38,B65=Calcs!$R$39,Calcs!$Q$39,TRUE,0) -> 
A66: =IF(H66=0,0,MAX($A$2:A65)+1) ->  | B66: SB48-1050-12B | C66: SLIDE BENCH: 4FTx87.5FTx12INxB | D66: 6182.42 | E66: 9571.16 | F66: 7728.03 | G66: 11963.95 | H66: =_xlfn.IFS(B66=Calcs!$R$38,Calcs!$Q$38,B66=Calcs!$R$39,Calcs!$Q$39,TRUE,0) -> 
A67: =IF(H67=0,0,MAX($A$2:A66)+1) ->  | B67: SB48-1062-12B | C67: SLIDE BENCH: 4FTx88.5FTx12INxB | D67: 6194.66 | E67: 9588.96 | F67: 7743.33 | G67: 11986.2 | H67: =_xlfn.IFS(B67=Calcs!$R$38,Calcs!$Q$38,B67=Calcs!$R$39,Calcs!$Q$39,TRUE,0) -> 
A68: =IF(H68=0,0,MAX($A$2:A67)+1) ->  | B68: SB48-1074-12B | C68: SLIDE BENCH: 4FTx89.5FTx12INxB | D68: 6216.91 | E68: 9622.33 | F68: 7771.14 | G68: 12027.91 | H68: =_xlfn.IFS(B68=Calcs!$R$38,Calcs!$Q$38,B68=Calcs!$R$39,Calcs!$Q$39,TRUE,0) -> 
A69: =IF(H69=0,0,MAX($A$2:A68)+1) ->  | B69: SB48-1086-12B | C69: SLIDE BENCH: 4FTx90.5FTx12INxB | D69: 6256.34 | E69: 9685.2 | F69: 7820.43 | G69: 12106.5 | H69: =_xlfn.IFS(B69=Calcs!$R$38,Calcs!$Q$38,B69=Calcs!$R$39,Calcs!$Q$39,TRUE,0) -> 
A70: =IF(H70=0,0,MAX($A$2:A69)+1) ->  | B70: SB48-1110-12B | C70: SLIDE BENCH: 4FTx92.5FTx12INxB | D70: 6534.74 | E70: 10116.42 | F70: 8168.43 | G70: 12645.53 | H70: =_xlfn.IFS(B70=Calcs!$R$38,Calcs!$Q$38,B70=Calcs!$R$39,Calcs!$Q$39,TRUE,0) -> 
A71: =IF(H71=0,0,MAX($A$2:A70)+1) ->  | B71: SB48-1122-12B | C71: SLIDE BENCH: 4FTx93.5FTx12INxB | D71: 6546.98 | E71: 10134.22 | F71: 8183.73 | G71: 12667.78 | H71: =_xlfn.IFS(B71=Calcs!$R$38,Calcs!$Q$38,B71=Calcs!$R$39,Calcs!$Q$39,TRUE,0) -> 
A72: =IF(H72=0,0,MAX($A$2:A71)+1) ->  | B72: SB48-1134-12B | C72: SLIDE BENCH: 4FTx94.5FTx12INxB | D72: 6569.23 | E72: 10167.59 | F72: 8211.54 | G72: 12709.49 | H72: =_xlfn.IFS(B72=Calcs!$R$38,Calcs!$Q$38,B72=Calcs!$R$39,Calcs!$Q$39,TRUE,0) -> 
A73: =IF(H73=0,0,MAX($A$2:A72)+1) ->  | B73: SB48-1146-12B | C73: SLIDE BENCH: 4FTx95.5FTx12INxB | D73: 6608.66 | E73: 10230.46 | F73: 8260.83 | G73: 12788.08 | H73: =_xlfn.IFS(B73=Calcs!$R$38,Calcs!$Q$38,B73=Calcs!$R$39,Calcs!$Q$39,TRUE,0) -> 
A74: =IF(H74=0,0,MAX($A$2:A73)+1) ->  | B74: SB48-1170-12B | C74: SLIDE BENCH: 4FTx97.5FTx12INxB | D74: 6881.22 | E74: 10653.15 | F74: 8601.53 | G74: 13316.44 | H74: =_xlfn.IFS(B74=Calcs!$R$38,Calcs!$Q$38,B74=Calcs!$R$39,Calcs!$Q$39,TRUE,0) -> 
A75: =IF(H75=0,0,MAX($A$2:A74)+1) ->  | B75: SB48-1182-12B | C75: SLIDE BENCH: 4FTx98.5FTx12INxB | D75: 6893.46 | E75: 10670.95 | F75: 8616.83 | G75: 13338.69 | H75: =_xlfn.IFS(B75=Calcs!$R$38,Calcs!$Q$38,B75=Calcs!$R$39,Calcs!$Q$39,TRUE,0) -> 
A76: =IF(H76=0,0,MAX($A$2:A75)+1) ->  | B76: SB48-1194-12B | C76: SLIDE BENCH: 4FTx99.5FTx12INxB | D76: 6915.71 | E76: 10704.32 | F76: 8644.64 | G76: 13380.4 | H76: =_xlfn.IFS(B76=Calcs!$R$38,Calcs!$Q$38,B76=Calcs!$R$39,Calcs!$Q$39,TRUE,0) -> 
A77: =IF(H77=0,0,MAX($A$2:A76)+1) ->  | B77: SB48-1206-12B | C77: SLIDE BENCH: 4FTx100.5FTx12INxB | D77: 6955.14 | E77: 10767.19 | F77: 8693.93 | G77: 13458.99 | H77: =_xlfn.IFS(B77=Calcs!$R$38,Calcs!$Q$38,B77=Calcs!$R$39,Calcs!$Q$39,TRUE,0) -> 
A78: =IF(H78=0,0,MAX($A$2:A77)+1) ->  | B78: SB48-90-20B | C78: SLIDE BENCH: 4FTx7.5FTx20INxB | D78: 659.5 | E78: 1021.41 | F78: 824.38 | G78: 1276.76 | H78: =_xlfn.IFS(B78=Calcs!$R$38,Calcs!$Q$38,B78=Calcs!$R$39,Calcs!$Q$39,TRUE,0) -> 
A79: =IF(H79=0,0,MAX($A$2:A78)+1) ->  | B79: SB48-102-20B | C79: SLIDE BENCH: 4FTx8.5FTx20INxB | D79: 671.74 | E79: 1039.21 | F79: 839.68 | G79: 1299.01 | H79: =_xlfn.IFS(B79=Calcs!$R$38,Calcs!$Q$38,B79=Calcs!$R$39,Calcs!$Q$39,TRUE,0) -> 
A80: =IF(H80=0,0,MAX($A$2:A79)+1) ->  | B80: SB48-114-20B | C80: SLIDE BENCH: 4FTx9.5FTx20INxB | D80: 693.99 | E80: 1072.58 | F80: 867.49 | G80: 1340.73 | H80: =_xlfn.IFS(B80=Calcs!$R$38,Calcs!$Q$38,B80=Calcs!$R$39,Calcs!$Q$39,TRUE,0) -> 
A81: =IF(H81=0,0,MAX($A$2:A80)+1) ->  | B81: SB48-126-20B | C81: SLIDE BENCH: 4FTx10.5FTx20INxB | D81: 733.42 | E81: 1135.45 | F81: 916.78 | G81: 1419.31 | H81: =_xlfn.IFS(B81=Calcs!$R$38,Calcs!$Q$38,B81=Calcs!$R$39,Calcs!$Q$39,TRUE,0) -> 
A82: =IF(H82=0,0,MAX($A$2:A81)+1) ->  | B82: SB48-150-20B | C82: SLIDE BENCH: 4FTx12.5FTx20INxB | D82: 993.73 | E82: 1538.72 | F82: 1242.16 | G82: 1923.4 | H82: =_xlfn.IFS(B82=Calcs!$R$38,Calcs!$Q$38,B82=Calcs!$R$39,Calcs!$Q$39,TRUE,0) -> 
A83: =IF(H83=0,0,MAX($A$2:A82)+1) ->  | B83: SB48-162-20B | C83: SLIDE BENCH: 4FTx13.5FTx20INxB | D83: 1005.97 | E83: 1556.52 | F83: 1257.46 | G83: 1945.65 | H83: =_xlfn.IFS(B83=Calcs!$R$38,Calcs!$Q$38,B83=Calcs!$R$39,Calcs!$Q$39,TRUE,0) -> 
A84: =IF(H84=0,0,MAX($A$2:A83)+1) ->  | B84: SB48-174-20B | C84: SLIDE BENCH: 4FTx14.5FTx20INxB | D84: 1028.22 | E84: 1589.89 | F84: 1285.28 | G84: 1987.36 | H84: =_xlfn.IFS(B84=Calcs!$R$38,Calcs!$Q$38,B84=Calcs!$R$39,Calcs!$Q$39,TRUE,0) -> 
A85: =IF(H85=0,0,MAX($A$2:A84)+1) ->  | B85: SB48-186-20B | C85: SLIDE BENCH: 4FTx15.5FTx20INxB | D85: 1067.65 | E85: 1652.76 | F85: 1334.56 | G85: 2065.95 | H85: =_xlfn.IFS(B85=Calcs!$R$38,Calcs!$Q$38,B85=Calcs!$R$39,Calcs!$Q$39,TRUE,0) -> 
A86: =IF(H86=0,0,MAX($A$2:A85)+1) ->  | B86: SB48-210-20B | C86: SLIDE BENCH: 4FTx17.5FTx20INxB | D86: 1348.69 | E86: 2088.05 | F86: 1685.86 | G86: 2610.06 | H86: =_xlfn.IFS(B86=Calcs!$R$38,Calcs!$Q$38,B86=Calcs!$R$39,Calcs!$Q$39,TRUE,0) -> 
A87: =IF(H87=0,0,MAX($A$2:A86)+1) ->  | B87: SB48-222-20B | C87: SLIDE BENCH: 4FTx18.5FTx20INxB | D87: 1360.93 | E87: 2105.85 | F87: 1701.16 | G87: 2632.31 | H87: =_xlfn.IFS(B87=Calcs!$R$38,Calcs!$Q$38,B87=Calcs!$R$39,Calcs!$Q$39,TRUE,0) -> 
A88: =IF(H88=0,0,MAX($A$2:A87)+1) ->  | B88: SB48-234-20B | C88: SLIDE BENCH: 4FTx19.5FTx20INxB | D88: 1383.18 | E88: 2139.22 | F88: 1728.98 | G88: 2674.03 | H88: =_xlfn.IFS(B88=Calcs!$R$38,Calcs!$Q$38,B88=Calcs!$R$39,Calcs!$Q$39,TRUE,0) -> 
A89: =IF(H89=0,0,MAX($A$2:A88)+1) ->  | B89: SB48-246-20B | C89: SLIDE BENCH: 4FTx20.5FTx20INxB | D89: 1422.61 | E89: 2202.09 | F89: 1778.26 | G89: 2752.61 | H89: =_xlfn.IFS(B89=Calcs!$R$38,Calcs!$Q$38,B89=Calcs!$R$39,Calcs!$Q$39,TRUE,0) -> 
A90: =IF(H90=0,0,MAX($A$2:A89)+1) ->  | B90: SB48-270-20B | C90: SLIDE BENCH: 4FTx22.5FTx20INxB | D90: 1718.54 | E90: 2660.87 | F90: 2148.18 | G90: 3326.09 | H90: =_xlfn.IFS(B90=Calcs!$R$38,Calcs!$Q$38,B90=Calcs!$R$39,Calcs!$Q$39,TRUE,0) -> 
A91: =IF(H91=0,0,MAX($A$2:A90)+1) ->  | B91: SB48-282-20B | C91: SLIDE BENCH: 4FTx23.5FTx20INxB | D91: 1730.78 | E91: 2678.67 | F91: 2163.48 | G91: 3348.34 | H91: =_xlfn.IFS(B91=Calcs!$R$38,Calcs!$Q$38,B91=Calcs!$R$39,Calcs!$Q$39,TRUE,0) -> 
A92: =IF(H92=0,0,MAX($A$2:A91)+1) ->  | B92: SB48-294-20B | C92: SLIDE BENCH: 4FTx24.5FTx20INxB | D92: 1753.03 | E92: 2712.04 | F92: 2191.29 | G92: 3390.05 | H92: =_xlfn.IFS(B92=Calcs!$R$38,Calcs!$Q$38,B92=Calcs!$R$39,Calcs!$Q$39,TRUE,0) -> 
A93: =IF(H93=0,0,MAX($A$2:A92)+1) ->  | B93: SB48-306-20B | C93: SLIDE BENCH: 4FTx25.5FTx20INxB | D93: 1792.46 | E93: 2774.91 | F93: 2240.58 | G93: 3468.64 | H93: =_xlfn.IFS(B93=Calcs!$R$38,Calcs!$Q$38,B93=Calcs!$R$39,Calcs!$Q$39,TRUE,0) -> 
A94: =IF(H94=0,0,MAX($A$2:A93)+1) ->  | B94: SB48-330-20B | C94: SLIDE BENCH: 4FTx27.5FTx20INxB | D94: 2052.77 | E94: 3178.18 | F94: 2565.96 | G94: 3972.73 | H94: =_xlfn.IFS(B94=Calcs!$R$38,Calcs!$Q$38,B94=Calcs!$R$39,Calcs!$Q$39,TRUE,0) -> 
A95: =IF(H95=0,0,MAX($A$2:A94)+1) ->  | B95: SB48-342-20B | C95: SLIDE BENCH: 4FTx28.5FTx20INxB | D95: 2065.01 | E95: 3195.98 | F95: 2581.26 | G95: 3994.98 | H95: =_xlfn.IFS(B95=Calcs!$R$38,Calcs!$Q$38,B95=Calcs!$R$39,Calcs!$Q$39,TRUE,0) -> 
A96: =IF(H96=0,0,MAX($A$2:A95)+1) ->  | B96: SB48-354-20B | C96: SLIDE BENCH: 4FTx29.5FTx20INxB | D96: 2087.26 | E96: 3229.35 | F96: 2609.08 | G96: 4036.69 | H96: =_xlfn.IFS(B96=Calcs!$R$38,Calcs!$Q$38,B96=Calcs!$R$39,Calcs!$Q$39,TRUE,0) -> 
A97: =IF(H97=0,0,MAX($A$2:A96)+1) ->  | B97: SB48-366-20B | C97: SLIDE BENCH: 4FTx30.5FTx20INxB | D97: 2126.69 | E97: 3292.22 | F97: 2658.36 | G97: 4115.28 | H97: =_xlfn.IFS(B97=Calcs!$R$38,Calcs!$Q$38,B97=Calcs!$R$39,Calcs!$Q$39,TRUE,0) -> 
A98: =IF(H98=0,0,MAX($A$2:A97)+1) ->  | B98: SB48-390-20B | C98: SLIDE BENCH: 4FTx32.5FTx20INxB | D98: 2407.73 | E98: 3727.51 | F98: 3009.66 | G98: 4659.39 | H98: =_xlfn.IFS(B98=Calcs!$R$38,Calcs!$Q$38,B98=Calcs!$R$39,Calcs!$Q$39,TRUE,0) -> 
A99: =IF(H99=0,0,MAX($A$2:A98)+1) ->  | B99: SB48-402-20B | C99: SLIDE BENCH: 4FTx33.5FTx20INxB | D99: 2419.97 | E99: 3745.31 | F99: 3024.96 | G99: 4681.64 | H99: =_xlfn.IFS(B99=Calcs!$R$38,Calcs!$Q$38,B99=Calcs!$R$39,Calcs!$Q$39,TRUE,0) -> 
A100: =IF(H100=0,0,MAX($A$2:A99)+1) ->  | B100: SB48-414-20B | C100: SLIDE BENCH: 4FTx34.5FTx20INxB | D100: 2442.22 | E100: 3778.68 | F100: 3052.78 | G100: 4723.35 | H100: =_xlfn.IFS(B100=Calcs!$R$38,Calcs!$Q$38,B100=Calcs!$R$39,Calcs!$Q$39,TRUE,0) -> 
A101: =IF(H101=0,0,MAX($A$2:A100)+1) ->  | B101: SB48-426-20B | C101: SLIDE BENCH: 4FTx35.5FTx20INxB | D101: 2481.65 | E101: 3841.55 | F101: 3102.06 | G101: 4801.94 | H101: =_xlfn.IFS(B101=Calcs!$R$38,Calcs!$Q$38,B101=Calcs!$R$39,Calcs!$Q$39,TRUE,0) -> 
A102: =IF(H102=0,0,MAX($A$2:A101)+1) ->  | B102: SB48-450-20B | C102: SLIDE BENCH: 4FTx37.5FTx20INxB | D102: 2741.96 | E102: 4244.82 | F102: 3427.45 | G102: 5306.03 | H102: =_xlfn.IFS(B102=Calcs!$R$38,Calcs!$Q$38,B102=Calcs!$R$39,Calcs!$Q$39,TRUE,0) -> 
A103: =IF(H103=0,0,MAX($A$2:A102)+1) ->  | B103: SB48-462-20B | C103: SLIDE BENCH: 4FTx38.5FTx20INxB | D103: 2754.2 | E103: 4262.62 | F103: 3442.75 | G103: 5328.28 | H103: =_xlfn.IFS(B103=Calcs!$R$38,Calcs!$Q$38,B103=Calcs!$R$39,Calcs!$Q$39,TRUE,0) -> 
A104: =IF(H104=0,0,MAX($A$2:A103)+1) ->  | B104: SB48-474-20B | C104: SLIDE BENCH: 4FTx39.5FTx20INxB | D104: 2776.45 | E104: 4295.99 | F104: 3470.56 | G104: 5369.99 | H104: =_xlfn.IFS(B104=Calcs!$R$38,Calcs!$Q$38,B104=Calcs!$R$39,Calcs!$Q$39,TRUE,0) -> 
A105: =IF(H105=0,0,MAX($A$2:A104)+1) ->  | B105: SB48-486-20B | C105: SLIDE BENCH: 4FTx40.5FTx20INxB | D105: 2815.88 | E105: 4358.86 | F105: 3519.85 | G105: 5448.58 | H105: =_xlfn.IFS(B105=Calcs!$R$38,Calcs!$Q$38,B105=Calcs!$R$39,Calcs!$Q$39,TRUE,0) -> 
A106: =IF(H106=0,0,MAX($A$2:A105)+1) ->  | B106: SB48-510-20B | C106: SLIDE BENCH: 4FTx42.5FTx20INxB | D106: 3111.81 | E106: 4817.64 | F106: 3889.76 | G106: 6022.05 | H106: =_xlfn.IFS(B106=Calcs!$R$38,Calcs!$Q$38,B106=Calcs!$R$39,Calcs!$Q$39,TRUE,0) -> 
A107: =IF(H107=0,0,MAX($A$2:A106)+1) ->  | B107: SB48-522-20B | C107: SLIDE BENCH: 4FTx43.5FTx20INxB | D107: 3124.05 | E107: 4835.44 | F107: 3905.06 | G107: 6044.3 | H107: =_xlfn.IFS(B107=Calcs!$R$38,Calcs!$Q$38,B107=Calcs!$R$39,Calcs!$Q$39,TRUE,0) -> 
A108: =IF(H108=0,0,MAX($A$2:A107)+1) ->  | B108: SB48-534-20B | C108: SLIDE BENCH: 4FTx44.5FTx20INxB | D108: 3146.3 | E108: 4868.81 | F108: 3932.88 | G108: 6086.01 | H108: =_xlfn.IFS(B108=Calcs!$R$38,Calcs!$Q$38,B108=Calcs!$R$39,Calcs!$Q$39,TRUE,0) -> 
A109: =IF(H109=0,0,MAX($A$2:A108)+1) ->  | B109: SB48-546-20B | C109: SLIDE BENCH: 4FTx45.5FTx20INxB | D109: 3185.73 | E109: 4931.68 | F109: 3982.16 | G109: 6164.6 | H109: =_xlfn.IFS(B109=Calcs!$R$38,Calcs!$Q$38,B109=Calcs!$R$39,Calcs!$Q$39,TRUE,0) -> 
A110: =IF(H110=0,0,MAX($A$2:A109)+1) ->  | B110: SB48-570-20B | C110: SLIDE BENCH: 4FTx47.5FTx20INxB | D110: 3446.04 | E110: 5334.95 | F110: 4307.55 | G110: 6668.69 | H110: =_xlfn.IFS(B110=Calcs!$R$38,Calcs!$Q$38,B110=Calcs!$R$39,Calcs!$Q$39,TRUE,0) -> 
A111: =IF(H111=0,0,MAX($A$2:A110)+1) ->  | B111: SB48-582-20B | C111: SLIDE BENCH: 4FTx48.5FTx20INxB | D111: 3458.28 | E111: 5352.75 | F111: 4322.85 | G111: 6690.94 | H111: =_xlfn.IFS(B111=Calcs!$R$38,Calcs!$Q$38,B111=Calcs!$R$39,Calcs!$Q$39,TRUE,0) -> 
A112: =IF(H112=0,0,MAX($A$2:A111)+1) ->  | B112: SB48-594-20B | C112: SLIDE BENCH: 4FTx49.5FTx20INxB | D112: 3480.53 | E112: 5386.12 | F112: 4350.66 | G112: 6732.65 | H112: =_xlfn.IFS(B112=Calcs!$R$38,Calcs!$Q$38,B112=Calcs!$R$39,Calcs!$Q$39,TRUE,0) -> 
A113: =IF(H113=0,0,MAX($A$2:A112)+1) ->  | B113: SB48-606-20B | C113: SLIDE BENCH: 4FTx50.5FTx20INxB | D113: 3519.96 | E113: 5448.99 | F113: 4399.95 | G113: 6811.24 | H113: =_xlfn.IFS(B113=Calcs!$R$38,Calcs!$Q$38,B113=Calcs!$R$39,Calcs!$Q$39,TRUE,0) -> 
A114: =IF(H114=0,0,MAX($A$2:A113)+1) ->  | B114: SB48-630-20B | C114: SLIDE BENCH: 4FTx52.5FTx20INxB | D114: 3801 | E114: 5884.28 | F114: 4751.25 | G114: 7355.35 | H114: =_xlfn.IFS(B114=Calcs!$R$38,Calcs!$Q$38,B114=Calcs!$R$39,Calcs!$Q$39,TRUE,0) -> 
A115: =IF(H115=0,0,MAX($A$2:A114)+1) ->  | B115: SB48-642-20B | C115: SLIDE BENCH: 4FTx53.5FTx20INxB | D115: 3813.24 | E115: 5902.08 | F115: 4766.55 | G115: 7377.6 | H115: =_xlfn.IFS(B115=Calcs!$R$38,Calcs!$Q$38,B115=Calcs!$R$39,Calcs!$Q$39,TRUE,0) -> 
A116: =IF(H116=0,0,MAX($A$2:A115)+1) ->  | B116: SB48-654-20B | C116: SLIDE BENCH: 4FTx54.5FTx20INxB | D116: 3835.49 | E116: 5935.45 | F116: 4794.36 | G116: 7419.31 | H116: =_xlfn.IFS(B116=Calcs!$R$38,Calcs!$Q$38,B116=Calcs!$R$39,Calcs!$Q$39,TRUE,0) -> 
A117: =IF(H117=0,0,MAX($A$2:A116)+1) ->  | B117: SB48-666-20B | C117: SLIDE BENCH: 4FTx55.5FTx20INxB | D117: 3874.92 | E117: 5998.32 | F117: 4843.65 | G117: 7497.9 | H117: =_xlfn.IFS(B117=Calcs!$R$38,Calcs!$Q$38,B117=Calcs!$R$39,Calcs!$Q$39,TRUE,0) -> 
A118: =IF(H118=0,0,MAX($A$2:A117)+1) ->  | B118: SB48-690-20B | C118: SLIDE BENCH: 4FTx57.5FTx20INxB | D118: 4135.23 | E118: 6401.59 | F118: 5169.04 | G118: 8001.99 | H118: =_xlfn.IFS(B118=Calcs!$R$38,Calcs!$Q$38,B118=Calcs!$R$39,Calcs!$Q$39,TRUE,0) -> 
A119: =IF(H119=0,0,MAX($A$2:A118)+1) ->  | B119: SB48-702-20B | C119: SLIDE BENCH: 4FTx58.5FTx20INxB | D119: 4147.47 | E119: 6419.39 | F119: 5184.34 | G119: 8024.24 | H119: =_xlfn.IFS(B119=Calcs!$R$38,Calcs!$Q$38,B119=Calcs!$R$39,Calcs!$Q$39,TRUE,0) -> 
A120: =IF(H120=0,0,MAX($A$2:A119)+1) ->  | B120: SB48-714-20B | C120: SLIDE BENCH: 4FTx59.5FTx20INxB | D120: 4169.72 | E120: 6452.76 | F120: 5212.15 | G120: 8065.95 | H120: =_xlfn.IFS(B120=Calcs!$R$38,Calcs!$Q$38,B120=Calcs!$R$39,Calcs!$Q$39,TRUE,0) -> 
A121: =IF(H121=0,0,MAX($A$2:A120)+1) ->  | B121: SB48-726-20B | C121: SLIDE BENCH: 4FTx60.5FTx20INxB | D121: 4209.15 | E121: 6515.63 | F121: 5261.44 | G121: 8144.54 | H121: =_xlfn.IFS(B121=Calcs!$R$38,Calcs!$Q$38,B121=Calcs!$R$39,Calcs!$Q$39,TRUE,0) -> 
A122: =IF(H122=0,0,MAX($A$2:A121)+1) ->  | B122: SB48-750-20B | C122: SLIDE BENCH: 4FTx62.5FTx20INxB | D122: 4505.08 | E122: 6974.41 | F122: 5631.35 | G122: 8718.01 | H122: =_xlfn.IFS(B122=Calcs!$R$38,Calcs!$Q$38,B122=Calcs!$R$39,Calcs!$Q$39,TRUE,0) -> 
A123: =IF(H123=0,0,MAX($A$2:A122)+1) ->  | B123: SB48-762-20B | C123: SLIDE BENCH: 4FTx63.5FTx20INxB | D123: 4517.32 | E123: 6992.21 | F123: 5646.65 | G123: 8740.26 | H123: =_xlfn.IFS(B123=Calcs!$R$38,Calcs!$Q$38,B123=Calcs!$R$39,Calcs!$Q$39,TRUE,0) -> 
A124: =IF(H124=0,0,MAX($A$2:A123)+1) ->  | B124: SB48-774-20B | C124: SLIDE BENCH: 4FTx64.5FTx20INxB | D124: 4539.57 | E124: 7025.58 | F124: 5674.46 | G124: 8781.98 | H124: =_xlfn.IFS(B124=Calcs!$R$38,Calcs!$Q$38,B124=Calcs!$R$39,Calcs!$Q$39,TRUE,0) -> 
A125: =IF(H125=0,0,MAX($A$2:A124)+1) ->  | B125: SB48-786-20B | C125: SLIDE BENCH: 4FTx65.5FTx20INxB | D125: 4579 | E125: 7088.45 | F125: 5723.75 | G125: 8860.56 | H125: =_xlfn.IFS(B125=Calcs!$R$38,Calcs!$Q$38,B125=Calcs!$R$39,Calcs!$Q$39,TRUE,0) -> 
A126: =IF(H126=0,0,MAX($A$2:A125)+1) ->  | B126: SB48-810-20B | C126: SLIDE BENCH: 4FTx67.5FTx20INxB | D126: 4839.31 | E126: 7491.72 | F126: 6049.14 | G126: 9364.65 | H126: =_xlfn.IFS(B126=Calcs!$R$38,Calcs!$Q$38,B126=Calcs!$R$39,Calcs!$Q$39,TRUE,0) -> 
A127: =IF(H127=0,0,MAX($A$2:A126)+1) ->  | B127: SB48-822-20B | C127: SLIDE BENCH: 4FTx68.5FTx20INxB | D127: 4851.55 | E127: 7509.52 | F127: 6064.44 | G127: 9386.9 | H127: =_xlfn.IFS(B127=Calcs!$R$38,Calcs!$Q$38,B127=Calcs!$R$39,Calcs!$Q$39,TRUE,0) -> 
A128: =IF(H128=0,0,MAX($A$2:A127)+1) ->  | B128: SB48-834-20B | C128: SLIDE BENCH: 4FTx69.5FTx20INxB | D128: 4873.8 | E128: 7542.89 | F128: 6092.25 | G128: 9428.61 | H128: =_xlfn.IFS(B128=Calcs!$R$38,Calcs!$Q$38,B128=Calcs!$R$39,Calcs!$Q$39,TRUE,0) -> 
A129: =IF(H129=0,0,MAX($A$2:A128)+1) ->  | B129: SB48-846-20B | C129: SLIDE BENCH: 4FTx70.5FTx20INxB | D129: 4913.23 | E129: 7605.76 | F129: 6141.54 | G129: 9507.2 | H129: =_xlfn.IFS(B129=Calcs!$R$38,Calcs!$Q$38,B129=Calcs!$R$39,Calcs!$Q$39,TRUE,0) -> 
A130: =IF(H130=0,0,MAX($A$2:A129)+1) ->  | B130: SB48-870-20B | C130: SLIDE BENCH: 4FTx72.5FTx20INxB | D130: 5194.27 | E130: 8041.05 | F130: 6492.84 | G130: 10051.31 | H130: =_xlfn.IFS(B130=Calcs!$R$38,Calcs!$Q$38,B130=Calcs!$R$39,Calcs!$Q$39,TRUE,0) -> 
A131: =IF(H131=0,0,MAX($A$2:A130)+1) ->  | B131: SB48-882-20B | C131: SLIDE BENCH: 4FTx73.5FTx20INxB | D131: 5206.51 | E131: 8058.85 | F131: 6508.14 | G131: 10073.56 | H131: =_xlfn.IFS(B131=Calcs!$R$38,Calcs!$Q$38,B131=Calcs!$R$39,Calcs!$Q$39,TRUE,0) -> 
A132: =IF(H132=0,0,MAX($A$2:A131)+1) ->  | B132: SB48-894-20B | C132: SLIDE BENCH: 4FTx74.5FTx20INxB | D132: 5228.76 | E132: 8092.22 | F132: 6535.95 | G132: 10115.28 | H132: =_xlfn.IFS(B132=Calcs!$R$38,Calcs!$Q$38,B132=Calcs!$R$39,Calcs!$Q$39,TRUE,0) -> 
A133: =IF(H133=0,0,MAX($A$2:A132)+1) ->  | B133: SB48-906-20B | C133: SLIDE BENCH: 4FTx75.5FTx20INxB | D133: 5268.19 | E133: 8155.09 | F133: 6585.24 | G133: 10193.86 | H133: =_xlfn.IFS(B133=Calcs!$R$38,Calcs!$Q$38,B133=Calcs!$R$39,Calcs!$Q$39,TRUE,0) -> 
A134: =IF(H134=0,0,MAX($A$2:A133)+1) ->  | B134: SB48-930-20B | C134: SLIDE BENCH: 4FTx77.5FTx20INxB | D134: 5543.39 | E134: 8581.85 | F134: 6929.24 | G134: 10727.31 | H134: =_xlfn.IFS(B134=Calcs!$R$38,Calcs!$Q$38,B134=Calcs!$R$39,Calcs!$Q$39,TRUE,0) -> 
A135: =IF(H135=0,0,MAX($A$2:A134)+1) ->  | B135: SB48-942-20B | C135: SLIDE BENCH: 4FTx78.5FTx20INxB | D135: 5555.63 | E135: 8599.65 | F135: 6944.54 | G135: 10749.56 | H135: =_xlfn.IFS(B135=Calcs!$R$38,Calcs!$Q$38,B135=Calcs!$R$39,Calcs!$Q$39,TRUE,0) -> 
A136: =IF(H136=0,0,MAX($A$2:A135)+1) ->  | B136: SB48-954-20B | C136: SLIDE BENCH: 4FTx79.5FTx20INxB | D136: 5577.88 | E136: 8633.02 | F136: 6972.35 | G136: 10791.28 | H136: =_xlfn.IFS(B136=Calcs!$R$38,Calcs!$Q$38,B136=Calcs!$R$39,Calcs!$Q$39,TRUE,0) -> 
A137: =IF(H137=0,0,MAX($A$2:A136)+1) ->  | B137: SB48-966-20B | C137: SLIDE BENCH: 4FTx80.5FTx20INxB | D137: 5617.31 | E137: 8695.89 | F137: 7021.64 | G137: 10869.86 | H137: =_xlfn.IFS(B137=Calcs!$R$38,Calcs!$Q$38,B137=Calcs!$R$39,Calcs!$Q$39,TRUE,0) -> 
A138: =IF(H138=0,0,MAX($A$2:A137)+1) ->  | B138: SB48-990-20B | C138: SLIDE BENCH: 4FTx82.5FTx20INxB | D138: 5898.35 | E138: 9131.18 | F138: 7372.94 | G138: 11413.98 | H138: =_xlfn.IFS(B138=Calcs!$R$38,Calcs!$Q$38,B138=Calcs!$R$39,Calcs!$Q$39,TRUE,0) -> 
A139: =IF(H139=0,0,MAX($A$2:A138)+1) ->  | B139: SB48-1002-20B | C139: SLIDE BENCH: 4FTx83.5FTx20INxB | D139: 5910.59 | E139: 9148.98 | F139: 7388.24 | G139: 11436.23 | H139: =_xlfn.IFS(B139=Calcs!$R$38,Calcs!$Q$38,B139=Calcs!$R$39,Calcs!$Q$39,TRUE,0) -> 
A140: =IF(H140=0,0,MAX($A$2:A139)+1) ->  | B140: SB48-1014-20B | C140: SLIDE BENCH: 4FTx84.5FTx20INxB | D140: 5932.84 | E140: 9182.35 | F140: 7416.05 | G140: 11477.94 | H140: =_xlfn.IFS(B140=Calcs!$R$38,Calcs!$Q$38,B140=Calcs!$R$39,Calcs!$Q$39,TRUE,0) -> 
A141: =IF(H141=0,0,MAX($A$2:A140)+1) ->  | B141: SB48-1026-20B | C141: SLIDE BENCH: 4FTx85.5FTx20INxB | D141: 5972.27 | E141: 9245.22 | F141: 7465.34 | G141: 11556.53 | H141: =_xlfn.IFS(B141=Calcs!$R$38,Calcs!$Q$38,B141=Calcs!$R$39,Calcs!$Q$39,TRUE,0) -> 
A142: =IF(H142=0,0,MAX($A$2:A141)+1) ->  | B142: SB48-1050-20B | C142: SLIDE BENCH: 4FTx87.5FTx20INxB | D142: 6232.58 | E142: 9648.49 | F142: 7790.73 | G142: 12060.61 | H142: =_xlfn.IFS(B142=Calcs!$R$38,Calcs!$Q$38,B142=Calcs!$R$39,Calcs!$Q$39,TRUE,0) -> 
A143: =IF(H143=0,0,MAX($A$2:A142)+1) ->  | B143: SB48-1062-20B | C143: SLIDE BENCH: 4FTx88.5FTx20INxB | D143: 6244.82 | E143: 9666.29 | F143: 7806.03 | G143: 12082.86 | H143: =_xlfn.IFS(B143=Calcs!$R$38,Calcs!$Q$38,B143=Calcs!$R$39,Calcs!$Q$39,TRUE,0) -> 
A144: =IF(H144=0,0,MAX($A$2:A143)+1) ->  | B144: SB48-1074-20B | C144: SLIDE BENCH: 4FTx89.5FTx20INxB | D144: 6267.07 | E144: 9699.66 | F144: 7833.84 | G144: 12124.58 | H144: =_xlfn.IFS(B144=Calcs!$R$38,Calcs!$Q$38,B144=Calcs!$R$39,Calcs!$Q$39,TRUE,0) -> 
A145: =IF(H145=0,0,MAX($A$2:A144)+1) ->  | B145: SB48-1086-20B | C145: SLIDE BENCH: 4FTx90.5FTx20INxB | D145: 6306.5 | E145: 9762.53 | F145: 7883.13 | G145: 12203.16 | H145: =_xlfn.IFS(B145=Calcs!$R$38,Calcs!$Q$38,B145=Calcs!$R$39,Calcs!$Q$39,TRUE,0) -> 
A146: =IF(H146=0,0,MAX($A$2:A145)+1) ->  | B146: SB48-1110-20B | C146: SLIDE BENCH: 4FTx92.5FTx20INxB | D146: 6587.54 | E146: 10197.82 | F146: 8234.43 | G146: 12747.28 | H146: =_xlfn.IFS(B146=Calcs!$R$38,Calcs!$Q$38,B146=Calcs!$R$39,Calcs!$Q$39,TRUE,0) -> 
A147: =IF(H147=0,0,MAX($A$2:A146)+1) ->  | B147: SB48-1122-20B | C147: SLIDE BENCH: 4FTx93.5FTx20INxB | D147: 6599.78 | E147: 10215.62 | F147: 8249.73 | G147: 12769.53 | H147: =_xlfn.IFS(B147=Calcs!$R$38,Calcs!$Q$38,B147=Calcs!$R$39,Calcs!$Q$39,TRUE,0) -> 
A148: =IF(H148=0,0,MAX($A$2:A147)+1) ->  | B148: SB48-1134-20B | C148: SLIDE BENCH: 4FTx94.5FTx20INxB | D148: 6622.03 | E148: 10248.99 | F148: 8277.54 | G148: 12811.24 | H148: =_xlfn.IFS(B148=Calcs!$R$38,Calcs!$Q$38,B148=Calcs!$R$39,Calcs!$Q$39,TRUE,0) -> 
A149: =IF(H149=0,0,MAX($A$2:A148)+1) ->  | B149: SB48-1146-20B | C149: SLIDE BENCH: 4FTx95.5FTx20INxB | D149: 6661.46 | E149: 10311.86 | F149: 8326.83 | G149: 12889.83 | H149: =_xlfn.IFS(B149=Calcs!$R$38,Calcs!$Q$38,B149=Calcs!$R$39,Calcs!$Q$39,TRUE,0) -> 
A150: =IF(H150=0,0,MAX($A$2:A149)+1) ->  | B150: SB48-1170-20B | C150: SLIDE BENCH: 4FTx97.5FTx20INxB | D150: 6936.66 | E150: 10738.62 | F150: 8670.83 | G150: 13423.28 | H150: =_xlfn.IFS(B150=Calcs!$R$38,Calcs!$Q$38,B150=Calcs!$R$39,Calcs!$Q$39,TRUE,0) -> 
A151: =IF(H151=0,0,MAX($A$2:A150)+1) ->  | B151: SB48-1182-20B | C151: SLIDE BENCH: 4FTx98.5FTx20INxB | D151: 6948.9 | E151: 10756.42 | F151: 8686.13 | G151: 13445.53 | H151: =_xlfn.IFS(B151=Calcs!$R$38,Calcs!$Q$38,B151=Calcs!$R$39,Calcs!$Q$39,TRUE,0) -> 
A152: =IF(H152=0,0,MAX($A$2:A151)+1) ->  | B152: SB48-1194-20B | C152: SLIDE BENCH: 4FTx99.5FTx20INxB | D152: 6971.15 | E152: 10789.79 | F152: 8713.94 | G152: 13487.24 | H152: =_xlfn.IFS(B152=Calcs!$R$38,Calcs!$Q$38,B152=Calcs!$R$39,Calcs!$Q$39,TRUE,0) -> 
A153: =IF(H153=0,0,MAX($A$2:A152)+1) ->  | B153: SB48-1206-20B | C153: SLIDE BENCH: 4FTx100.5FTx20INxB | D153: 7010.58 | E153: 10852.66 | F153: 8763.23 | G153: 13565.83 | H153: =_xlfn.IFS(B153=Calcs!$R$38,Calcs!$Q$38,B153=Calcs!$R$39,Calcs!$Q$39,TRUE,0) -> 
A154: =IF(H154=0,0,MAX($A$2:A153)+1) ->  | B154: SB48-90-30B | C154: SLIDE BENCH: 4FTx7.5FTx30INxB | D154: 672.22 | E154: 1040.13 | F154: 840.28 | G154: 1300.16 | H154: =_xlfn.IFS(B154=Calcs!$R$38,Calcs!$Q$38,B154=Calcs!$R$39,Calcs!$Q$39,TRUE,0) -> 
A155: =IF(H155=0,0,MAX($A$2:A154)+1) ->  | B155: SB48-102-30B | C155: SLIDE BENCH: 4FTx8.5FTx30INxB | D155: 684.46 | E155: 1057.93 | F155: 855.58 | G155: 1322.41 | H155: =_xlfn.IFS(B155=Calcs!$R$38,Calcs!$Q$38,B155=Calcs!$R$39,Calcs!$Q$39,TRUE,0) -> 
A156: =IF(H156=0,0,MAX($A$2:A155)+1) ->  | B156: SB48-114-30B | C156: SLIDE BENCH: 4FTx9.5FTx30INxB | D156: 706.71 | E156: 1091.3 | F156: 883.39 | G156: 1364.13 | H156: =_xlfn.IFS(B156=Calcs!$R$38,Calcs!$Q$38,B156=Calcs!$R$39,Calcs!$Q$39,TRUE,0) -> 
A157: =IF(H157=0,0,MAX($A$2:A156)+1) ->  | B157: SB48-126-30B | C157: SLIDE BENCH: 4FTx10.5FTx30INxB | D157: 746.14 | E157: 1154.17 | F157: 932.68 | G157: 1442.71 | H157: =_xlfn.IFS(B157=Calcs!$R$38,Calcs!$Q$38,B157=Calcs!$R$39,Calcs!$Q$39,TRUE,0) -> 
A158: =IF(H158=0,0,MAX($A$2:A157)+1) ->  | B158: SB48-150-30B | C158: SLIDE BENCH: 4FTx12.5FTx30INxB | D158: 1010.69 | E158: 1563.68 | F158: 1263.36 | G158: 1954.6 | H158: =_xlfn.IFS(B158=Calcs!$R$38,Calcs!$Q$38,B158=Calcs!$R$39,Calcs!$Q$39,TRUE,0) -> 
A159: =IF(H159=0,0,MAX($A$2:A158)+1) ->  | B159: SB48-162-30B | C159: SLIDE BENCH: 4FTx13.5FTx30INxB | D159: 1022.93 | E159: 1581.48 | F159: 1278.66 | G159: 1976.85 | H159: =_xlfn.IFS(B159=Calcs!$R$38,Calcs!$Q$38,B159=Calcs!$R$39,Calcs!$Q$39,TRUE,0) -> 
A160: =IF(H160=0,0,MAX($A$2:A159)+1) ->  | B160: SB48-174-30B | C160: SLIDE BENCH: 4FTx14.5FTx30INxB | D160: 1045.18 | E160: 1614.85 | F160: 1306.48 | G160: 2018.56 | H160: =_xlfn.IFS(B160=Calcs!$R$38,Calcs!$Q$38,B160=Calcs!$R$39,Calcs!$Q$39,TRUE,0) -> 
A161: =IF(H161=0,0,MAX($A$2:A160)+1) ->  | B161: SB48-186-30B | C161: SLIDE BENCH: 4FTx15.5FTx30INxB | D161: 1084.61 | E161: 1677.72 | F161: 1355.76 | G161: 2097.15 | H161: =_xlfn.IFS(B161=Calcs!$R$38,Calcs!$Q$38,B161=Calcs!$R$39,Calcs!$Q$39,TRUE,0) -> 
A162: =IF(H162=0,0,MAX($A$2:A161)+1) ->  | B162: SB48-210-30B | C162: SLIDE BENCH: 4FTx17.5FTx30INxB | D162: 1369.89 | E162: 2119.25 | F162: 1712.36 | G162: 2649.06 | H162: =_xlfn.IFS(B162=Calcs!$R$38,Calcs!$Q$38,B162=Calcs!$R$39,Calcs!$Q$39,TRUE,0) -> 
A163: =IF(H163=0,0,MAX($A$2:A162)+1) ->  | B163: SB48-222-30B | C163: SLIDE BENCH: 4FTx18.5FTx30INxB | D163: 1382.13 | E163: 2137.05 | F163: 1727.66 | G163: 2671.31 | H163: =_xlfn.IFS(B163=Calcs!$R$38,Calcs!$Q$38,B163=Calcs!$R$39,Calcs!$Q$39,TRUE,0) -> 
A164: =IF(H164=0,0,MAX($A$2:A163)+1) ->  | B164: SB48-234-30B | C164: SLIDE BENCH: 4FTx19.5FTx30INxB | D164: 1404.38 | E164: 2170.42 | F164: 1755.48 | G164: 2713.03 | H164: =_xlfn.IFS(B164=Calcs!$R$38,Calcs!$Q$38,B164=Calcs!$R$39,Calcs!$Q$39,TRUE,0) -> 
A165: =IF(H165=0,0,MAX($A$2:A164)+1) ->  | B165: SB48-246-30B | C165: SLIDE BENCH: 4FTx20.5FTx30INxB | D165: 1443.81 | E165: 2233.29 | F165: 1804.76 | G165: 2791.61 | H165: =_xlfn.IFS(B165=Calcs!$R$38,Calcs!$Q$38,B165=Calcs!$R$39,Calcs!$Q$39,TRUE,0) -> 
A166: =IF(H166=0,0,MAX($A$2:A165)+1) ->  | B166: SB48-270-30B | C166: SLIDE BENCH: 4FTx22.5FTx30INxB | D166: 1743.98 | E166: 2698.31 | F166: 2179.98 | G166: 3372.89 | H166: =_xlfn.IFS(B166=Calcs!$R$38,Calcs!$Q$38,B166=Calcs!$R$39,Calcs!$Q$39,TRUE,0) -> 
A167: =IF(H167=0,0,MAX($A$2:A166)+1) ->  | B167: SB48-282-30B | C167: SLIDE BENCH: 4FTx23.5FTx30INxB | D167: 1756.22 | E167: 2716.11 | F167: 2195.28 | G167: 3395.14 | H167: =_xlfn.IFS(B167=Calcs!$R$38,Calcs!$Q$38,B167=Calcs!$R$39,Calcs!$Q$39,TRUE,0) -> 
A168: =IF(H168=0,0,MAX($A$2:A167)+1) ->  | B168: SB48-294-30B | C168: SLIDE BENCH: 4FTx24.5FTx30INxB | D168: 1778.47 | E168: 2749.48 | F168: 2223.09 | G168: 3436.85 | H168: =_xlfn.IFS(B168=Calcs!$R$38,Calcs!$Q$38,B168=Calcs!$R$39,Calcs!$Q$39,TRUE,0) -> 
A169: =IF(H169=0,0,MAX($A$2:A168)+1) ->  | B169: SB48-306-30B | C169: SLIDE BENCH: 4FTx25.5FTx30INxB | D169: 1817.9 | E169: 2812.35 | F169: 2272.38 | G169: 3515.44 | H169: =_xlfn.IFS(B169=Calcs!$R$38,Calcs!$Q$38,B169=Calcs!$R$39,Calcs!$Q$39,TRUE,0) -> 
A170: =IF(H170=0,0,MAX($A$2:A169)+1) ->  | B170: SB48-330-30B | C170: SLIDE BENCH: 4FTx27.5FTx30INxB | D170: 2082.45 | E170: 3221.86 | F170: 2603.06 | G170: 4027.33 | H170: =_xlfn.IFS(B170=Calcs!$R$38,Calcs!$Q$38,B170=Calcs!$R$39,Calcs!$Q$39,TRUE,0) -> 
A171: =IF(H171=0,0,MAX($A$2:A170)+1) ->  | B171: SB48-342-30B | C171: SLIDE BENCH: 4FTx28.5FTx30INxB | D171: 2094.69 | E171: 3239.66 | F171: 2618.36 | G171: 4049.58 | H171: =_xlfn.IFS(B171=Calcs!$R$38,Calcs!$Q$38,B171=Calcs!$R$39,Calcs!$Q$39,TRUE,0) -> 
A172: =IF(H172=0,0,MAX($A$2:A171)+1) ->  | B172: SB48-354-30B | C172: SLIDE BENCH: 4FTx29.5FTx30INxB | D172: 2116.94 | E172: 3273.03 | F172: 2646.18 | G172: 4091.29 | H172: =_xlfn.IFS(B172=Calcs!$R$38,Calcs!$Q$38,B172=Calcs!$R$39,Calcs!$Q$39,TRUE,0) -> 
A173: =IF(H173=0,0,MAX($A$2:A172)+1) ->  | B173: SB48-366-30B | C173: SLIDE BENCH: 4FTx30.5FTx30INxB | D173: 2156.37 | E173: 3335.9 | F173: 2695.46 | G173: 4169.88 | H173: =_xlfn.IFS(B173=Calcs!$R$38,Calcs!$Q$38,B173=Calcs!$R$39,Calcs!$Q$39,TRUE,0) -> 
A174: =IF(H174=0,0,MAX($A$2:A173)+1) ->  | B174: SB48-390-30B | C174: SLIDE BENCH: 4FTx32.5FTx30INxB | D174: 2441.65 | E174: 3777.43 | F174: 3052.06 | G174: 4721.79 | H174: =_xlfn.IFS(B174=Calcs!$R$38,Calcs!$Q$38,B174=Calcs!$R$39,Calcs!$Q$39,TRUE,0) -> 
A175: =IF(H175=0,0,MAX($A$2:A174)+1) ->  | B175: SB48-402-30B | C175: SLIDE BENCH: 4FTx33.5FTx30INxB | D175: 2453.89 | E175: 3795.23 | F175: 3067.36 | G175: 4744.04 | H175: =_xlfn.IFS(B175=Calcs!$R$38,Calcs!$Q$38,B175=Calcs!$R$39,Calcs!$Q$39,TRUE,0) -> 
A176: =IF(H176=0,0,MAX($A$2:A175)+1) ->  | B176: SB48-414-30B | C176: SLIDE BENCH: 4FTx34.5FTx30INxB | D176: 2476.14 | E176: 3828.6 | F176: 3095.18 | G176: 4785.75 | H176: =_xlfn.IFS(B176=Calcs!$R$38,Calcs!$Q$38,B176=Calcs!$R$39,Calcs!$Q$39,TRUE,0) -> 
A177: =IF(H177=0,0,MAX($A$2:A176)+1) ->  | B177: SB48-426-30B | C177: SLIDE BENCH: 4FTx35.5FTx30INxB | D177: 2515.57 | E177: 3891.47 | F177: 3144.46 | G177: 4864.34 | H177: =_xlfn.IFS(B177=Calcs!$R$38,Calcs!$Q$38,B177=Calcs!$R$39,Calcs!$Q$39,TRUE,0) -> 
A178: =IF(H178=0,0,MAX($A$2:A177)+1) ->  | B178: SB48-450-30B | C178: SLIDE BENCH: 4FTx37.5FTx30INxB | D178: 2780.12 | E178: 4300.98 | F178: 3475.15 | G178: 5376.23 | H178: =_xlfn.IFS(B178=Calcs!$R$38,Calcs!$Q$38,B178=Calcs!$R$39,Calcs!$Q$39,TRUE,0) -> 
A179: =IF(H179=0,0,MAX($A$2:A178)+1) ->  | B179: SB48-462-30B | C179: SLIDE BENCH: 4FTx38.5FTx30INxB | D179: 2792.36 | E179: 4318.78 | F179: 3490.45 | G179: 5398.48 | H179: =_xlfn.IFS(B179=Calcs!$R$38,Calcs!$Q$38,B179=Calcs!$R$39,Calcs!$Q$39,TRUE,0) -> 
A180: =IF(H180=0,0,MAX($A$2:A179)+1) ->  | B180: SB48-474-30B | C180: SLIDE BENCH: 4FTx39.5FTx30INxB | D180: 2814.61 | E180: 4352.15 | F180: 3518.26 | G180: 5440.19 | H180: =_xlfn.IFS(B180=Calcs!$R$38,Calcs!$Q$38,B180=Calcs!$R$39,Calcs!$Q$39,TRUE,0) -> 
A181: =IF(H181=0,0,MAX($A$2:A180)+1) ->  | B181: SB48-486-30B | C181: SLIDE BENCH: 4FTx40.5FTx30INxB | D181: 2854.04 | E181: 4415.02 | F181: 3567.55 | G181: 5518.78 | H181: =_xlfn.IFS(B181=Calcs!$R$38,Calcs!$Q$38,B181=Calcs!$R$39,Calcs!$Q$39,TRUE,0) -> 
A182: =IF(H182=0,0,MAX($A$2:A181)+1) ->  | B182: SB48-510-30B | C182: SLIDE BENCH: 4FTx42.5FTx30INxB | D182: 3154.21 | E182: 4880.04 | F182: 3942.76 | G182: 6100.05 | H182: =_xlfn.IFS(B182=Calcs!$R$38,Calcs!$Q$38,B182=Calcs!$R$39,Calcs!$Q$39,TRUE,0) -> 
A183: =IF(H183=0,0,MAX($A$2:A182)+1) ->  | B183: SB48-522-30B | C183: SLIDE BENCH: 4FTx43.5FTx30INxB | D183: 3166.45 | E183: 4897.84 | F183: 3958.06 | G183: 6122.3 | H183: =_xlfn.IFS(B183=Calcs!$R$38,Calcs!$Q$38,B183=Calcs!$R$39,Calcs!$Q$39,TRUE,0) -> 
A184: =IF(H184=0,0,MAX($A$2:A183)+1) ->  | B184: SB48-534-30B | C184: SLIDE BENCH: 4FTx44.5FTx30INxB | D184: 3188.7 | E184: 4931.21 | F184: 3985.88 | G184: 6164.01 | H184: =_xlfn.IFS(B184=Calcs!$R$38,Calcs!$Q$38,B184=Calcs!$R$39,Calcs!$Q$39,TRUE,0) -> 
A185: =IF(H185=0,0,MAX($A$2:A184)+1) ->  | B185: SB48-546-30B | C185: SLIDE BENCH: 4FTx45.5FTx30INxB | D185: 3228.13 | E185: 4994.08 | F185: 4035.16 | G185: 6242.6 | H185: =_xlfn.IFS(B185=Calcs!$R$38,Calcs!$Q$38,B185=Calcs!$R$39,Calcs!$Q$39,TRUE,0) -> 
A186: =IF(H186=0,0,MAX($A$2:A185)+1) ->  | B186: SB48-570-30B | C186: SLIDE BENCH: 4FTx47.5FTx30INxB | D186: 3492.68 | E186: 5403.59 | F186: 4365.85 | G186: 6754.49 | H186: =_xlfn.IFS(B186=Calcs!$R$38,Calcs!$Q$38,B186=Calcs!$R$39,Calcs!$Q$39,TRUE,0) -> 
A187: =IF(H187=0,0,MAX($A$2:A186)+1) ->  | B187: SB48-582-30B | C187: SLIDE BENCH: 4FTx48.5FTx30INxB | D187: 3504.92 | E187: 5421.39 | F187: 4381.15 | G187: 6776.74 | H187: =_xlfn.IFS(B187=Calcs!$R$38,Calcs!$Q$38,B187=Calcs!$R$39,Calcs!$Q$39,TRUE,0) -> 
A188: =IF(H188=0,0,MAX($A$2:A187)+1) ->  | B188: SB48-594-30B | C188: SLIDE BENCH: 4FTx49.5FTx30INxB | D188: 3527.17 | E188: 5454.76 | F188: 4408.96 | G188: 6818.45 | H188: =_xlfn.IFS(B188=Calcs!$R$38,Calcs!$Q$38,B188=Calcs!$R$39,Calcs!$Q$39,TRUE,0) -> 
A189: =IF(H189=0,0,MAX($A$2:A188)+1) ->  | B189: SB48-606-30B | C189: SLIDE BENCH: 4FTx50.5FTx30INxB | D189: 3566.6 | E189: 5517.63 | F189: 4458.25 | G189: 6897.04 | H189: =_xlfn.IFS(B189=Calcs!$R$38,Calcs!$Q$38,B189=Calcs!$R$39,Calcs!$Q$39,TRUE,0) -> 
A190: =IF(H190=0,0,MAX($A$2:A189)+1) ->  | B190: SB48-630-30B | C190: SLIDE BENCH: 4FTx52.5FTx30INxB | D190: 3851.88 | E190: 5959.16 | F190: 4814.85 | G190: 7448.95 | H190: =_xlfn.IFS(B190=Calcs!$R$38,Calcs!$Q$38,B190=Calcs!$R$39,Calcs!$Q$39,TRUE,0) -> 
A191: =IF(H191=0,0,MAX($A$2:A190)+1) ->  | B191: SB48-642-30B | C191: SLIDE BENCH: 4FTx53.5FTx30INxB | D191: 3864.12 | E191: 5976.96 | F191: 4830.15 | G191: 7471.2 | H191: =_xlfn.IFS(B191=Calcs!$R$38,Calcs!$Q$38,B191=Calcs!$R$39,Calcs!$Q$39,TRUE,0) -> 
A192: =IF(H192=0,0,MAX($A$2:A191)+1) ->  | B192: SB48-654-30B | C192: SLIDE BENCH: 4FTx54.5FTx30INxB | D192: 3886.37 | E192: 6010.33 | F192: 4857.96 | G192: 7512.91 | H192: =_xlfn.IFS(B192=Calcs!$R$38,Calcs!$Q$38,B192=Calcs!$R$39,Calcs!$Q$39,TRUE,0) -> 
A193: =IF(H193=0,0,MAX($A$2:A192)+1) ->  | B193: SB48-666-30B | C193: SLIDE BENCH: 4FTx55.5FTx30INxB | D193: 3925.8 | E193: 6073.2 | F193: 4907.25 | G193: 7591.5 | H193: =_xlfn.IFS(B193=Calcs!$R$38,Calcs!$Q$38,B193=Calcs!$R$39,Calcs!$Q$39,TRUE,0) -> 
A194: =IF(H194=0,0,MAX($A$2:A193)+1) ->  | B194: SB48-690-30B | C194: SLIDE BENCH: 4FTx57.5FTx30INxB | D194: 4190.35 | E194: 6482.71 | F194: 5237.94 | G194: 8103.39 | H194: =_xlfn.IFS(B194=Calcs!$R$38,Calcs!$Q$38,B194=Calcs!$R$39,Calcs!$Q$39,TRUE,0) -> 
A195: =IF(H195=0,0,MAX($A$2:A194)+1) ->  | B195: SB48-702-30B | C195: SLIDE BENCH: 4FTx58.5FTx30INxB | D195: 4202.59 | E195: 6500.51 | F195: 5253.24 | G195: 8125.64 | H195: =_xlfn.IFS(B195=Calcs!$R$38,Calcs!$Q$38,B195=Calcs!$R$39,Calcs!$Q$39,TRUE,0) -> 
A196: =IF(H196=0,0,MAX($A$2:A195)+1) ->  | B196: SB48-714-30B | C196: SLIDE BENCH: 4FTx59.5FTx30INxB | D196: 4224.84 | E196: 6533.88 | F196: 5281.05 | G196: 8167.35 | H196: =_xlfn.IFS(B196=Calcs!$R$38,Calcs!$Q$38,B196=Calcs!$R$39,Calcs!$Q$39,TRUE,0) -> 
A197: =IF(H197=0,0,MAX($A$2:A196)+1) ->  | B197: SB48-726-30B | C197: SLIDE BENCH: 4FTx60.5FTx30INxB | D197: 4264.27 | E197: 6596.75 | F197: 5330.34 | G197: 8245.94 | H197: =_xlfn.IFS(B197=Calcs!$R$38,Calcs!$Q$38,B197=Calcs!$R$39,Calcs!$Q$39,TRUE,0) -> 
A198: =IF(H198=0,0,MAX($A$2:A197)+1) ->  | B198: SB48-750-30B | C198: SLIDE BENCH: 4FTx62.5FTx30INxB | D198: 4564.44 | E198: 7061.77 | F198: 5705.55 | G198: 8827.21 | H198: =_xlfn.IFS(B198=Calcs!$R$38,Calcs!$Q$38,B198=Calcs!$R$39,Calcs!$Q$39,TRUE,0) -> 
A199: =IF(H199=0,0,MAX($A$2:A198)+1) ->  | B199: SB48-762-30B | C199: SLIDE BENCH: 4FTx63.5FTx30INxB | D199: 4576.68 | E199: 7079.57 | F199: 5720.85 | G199: 8849.46 | H199: =_xlfn.IFS(B199=Calcs!$R$38,Calcs!$Q$38,B199=Calcs!$R$39,Calcs!$Q$39,TRUE,0) -> 
A200: =IF(H200=0,0,MAX($A$2:A199)+1) ->  | B200: SB48-774-30B | C200: SLIDE BENCH: 4FTx64.5FTx30INxB | D200: 4598.93 | E200: 7112.94 | F200: 5748.66 | G200: 8891.18 | H200: =_xlfn.IFS(B200=Calcs!$R$38,Calcs!$Q$38,B200=Calcs!$R$39,Calcs!$Q$39,TRUE,0) -> 
... 257 more rows

Sheet Purchase Order
B5: Hawthorne Hydroponics | E5: Order Information
B6: 3204 NW 38th Circle | E6: Order Date:
B7: Vancouver, WA 98660 | E7: Requested Delivery Date:
B8: Phone 877-753-0404 | E8: Customer P.O.:
B10: Payer: | E10: Bill To: | H10: Ship To:
B11: name | E11: name | H11: name
B12: address 1 | E12: address 1 | H12: address 1
B13: address 2 | E13: address 2 | H13: address 2
B14: city, state, zip | E14: city, state, zip | H14: city, state, zip
B16: Stock Number | C16: Description | H16: Quantity | I16: Unit Price | J16: Ext Price
A17: 1 | B17: =IFERROR(VLOOKUP($A17,'New Order BOM''s'!$A$2:$H$457,2,FALSE), "") ->  | C17: =IFERROR(VLOOKUP($A17,'New Order BOM''s'!$A$2:$H$457,3,FALSE), "") ->  | D17: =IFERROR(VLOOKUP($A17,'Order BOM''s'!$A$3:$E$20,2,FALSE), "") ->  | E17: =IFERROR(VLOOKUP($A17,'Order BOM''s'!$A$3:$E$20,2,FALSE), "") ->  | F17: =IFERROR(VLOOKUP($A17,'Order BOM''s'!$A$3:$E$20,2,FALSE), "") ->  | G17: =IFERROR(VLOOKUP($A17,'Order BOM''s'!$A$3:$E$20,2,FALSE), "") ->  | H17: =IFERROR(VLOOKUP($A17,'New Order BOM''s'!$A$2:$H$457,8,FALSE), 0) -> 0 | I17: =IFERROR(VLOOKUP($A17,'New Order BOM''s'!$A$2:$H$457,4,FALSE), 0) -> 0 | J17: =I17*H17 -> 0
A18: 2 | B18: =IFERROR(VLOOKUP($A18,'New Order BOM''s'!$A$2:$H$457,2,FALSE), "") ->  | C18: =IFERROR(VLOOKUP($A18,'New Order BOM''s'!$A$2:$H$457,3,FALSE), "") ->  | D18: =IFERROR(VLOOKUP($A18,'Order BOM''s'!$A$3:$E$20,2,FALSE), "") ->  | E18: =IFERROR(VLOOKUP($A18,'Order BOM''s'!$A$3:$E$20,2,FALSE), "") ->  | F18: =IFERROR(VLOOKUP($A18,'Order BOM''s'!$A$3:$E$20,2,FALSE), "") ->  | G18: =IFERROR(VLOOKUP($A18,'Order BOM''s'!$A$3:$E$20,2,FALSE), "") ->  | H18: =IFERROR(VLOOKUP($A18,'New Order BOM''s'!$A$2:$H$457,8,FALSE), 0) -> 0 | I18: =IFERROR(VLOOKUP($A18,'New Order BOM''s'!$A$2:$H$457,4,FALSE), 0) -> 0 | J18: =I18*H18 -> 0
A19: 3 | B19: =IFERROR(VLOOKUP($A19,'New Order BOM''s'!$A$2:$H$457,2,FALSE), "") ->  | C19: =IFERROR(VLOOKUP($A19,'New Order BOM''s'!$A$2:$H$457,3,FALSE), "") ->  | D19: =IFERROR(VLOOKUP($A19,'Order BOM''s'!$A$3:$E$20,2,FALSE), "") ->  | E19: =IFERROR(VLOOKUP($A19,'Order BOM''s'!$A$3:$E$20,2,FALSE), "") ->  | F19: =IFERROR(VLOOKUP($A19,'Order BOM''s'!$A$3:$E$20,2,FALSE), "") ->  | G19: =IFERROR(VLOOKUP($A19,'Order BOM''s'!$A$3:$E$20,2,FALSE), "") ->  | H19: =IFERROR(VLOOKUP($A19,'New Order BOM''s'!$A$2:$H$457,8,FALSE), 0) -> 0 | I19: =IFERROR(VLOOKUP($A19,'New Order BOM''s'!$A$2:$H$457,4,FALSE), 0) -> 0 | J19: 0
A20: 4 | B20: =IFERROR(VLOOKUP($A20,'New Order BOM''s'!$A$2:$H$457,2,FALSE), "") ->  | C20: =IFERROR(VLOOKUP($A20,'New Order BOM''s'!$A$2:$H$457,3,FALSE), "") ->  | D20: =IFERROR(VLOOKUP($A20,'Order BOM''s'!$A$3:$E$20,2,FALSE), "") ->  | E20: =IFERROR(VLOOKUP($A20,'Order BOM''s'!$A$3:$E$20,2,FALSE), "") ->  | F20: =IFERROR(VLOOKUP($A20,'Order BOM''s'!$A$3:$E$20,2,FALSE), "") ->  | G20: =IFERROR(VLOOKUP($A20,'Order BOM''s'!$A$3:$E$20,2,FALSE), "") ->  | H20: =IFERROR(VLOOKUP($A20,'New Order BOM''s'!$A$2:$H$457,8,FALSE), 0) -> 0 | I20: =IFERROR(VLOOKUP($A20,'New Order BOM''s'!$A$2:$H$457,4,FALSE), 0) -> 0 | J20: 0
A21: 5 | B21: =IFERROR(VLOOKUP($A21,'New Order BOM''s'!$A$2:$H$457,2,FALSE), "") ->  | C21: =IFERROR(VLOOKUP($A21,'New Order BOM''s'!$A$2:$H$457,3,FALSE), "") ->  | D21: =IFERROR(VLOOKUP($A21,'Order BOM''s'!$A$3:$E$20,2,FALSE), "") ->  | E21: =IFERROR(VLOOKUP($A21,'Order BOM''s'!$A$3:$E$20,2,FALSE), "") ->  | F21: =IFERROR(VLOOKUP($A21,'Order BOM''s'!$A$3:$E$20,2,FALSE), "") ->  | G21: =IFERROR(VLOOKUP($A21,'Order BOM''s'!$A$3:$E$20,2,FALSE), "") ->  | H21: =IFERROR(VLOOKUP($A21,'New Order BOM''s'!$A$2:$H$457,8,FALSE), 0) -> 0 | I21: =IFERROR(VLOOKUP($A21,'New Order BOM''s'!$A$2:$H$457,4,FALSE), 0) -> 0 | J21: 0
A22: 6 | B22: =IFERROR(VLOOKUP($A22,'New Order BOM''s'!$A$2:$H$457,2,FALSE), "") ->  | C22: =IFERROR(VLOOKUP($A22,'New Order BOM''s'!$A$2:$H$457,3,FALSE), "") ->  | D22: =IFERROR(VLOOKUP($A22,'Order BOM''s'!$A$3:$E$20,2,FALSE), "") ->  | E22: =IFERROR(VLOOKUP($A22,'Order BOM''s'!$A$3:$E$20,2,FALSE), "") ->  | F22: =IFERROR(VLOOKUP($A22,'Order BOM''s'!$A$3:$E$20,2,FALSE), "") ->  | G22: =IFERROR(VLOOKUP($A22,'Order BOM''s'!$A$3:$E$20,2,FALSE), "") ->  | H22: =IFERROR(VLOOKUP($A22,'New Order BOM''s'!$A$2:$H$457,8,FALSE), 0) -> 0 | I22: =IFERROR(VLOOKUP($A22,'New Order BOM''s'!$A$2:$H$457,4,FALSE), 0) -> 0 | J22: 0
A23: 7 | B23: =IFERROR(VLOOKUP($A23,'New Order BOM''s'!$A$2:$H$457,2,FALSE), "") ->  | C23: =IFERROR(VLOOKUP($A23,'New Order BOM''s'!$A$2:$H$457,3,FALSE), "") ->  | D23: =IFERROR(VLOOKUP($A23,'Order BOM''s'!$A$3:$E$20,2,FALSE), "") ->  | E23: =IFERROR(VLOOKUP($A23,'Order BOM''s'!$A$3:$E$20,2,FALSE), "") ->  | F23: =IFERROR(VLOOKUP($A23,'Order BOM''s'!$A$3:$E$20,2,FALSE), "") ->  | G23: =IFERROR(VLOOKUP($A23,'Order BOM''s'!$A$3:$E$20,2,FALSE), "") ->  | H23: =IFERROR(VLOOKUP($A23,'New Order BOM''s'!$A$2:$H$457,8,FALSE), 0) -> 0 | I23: =IFERROR(VLOOKUP($A23,'New Order BOM''s'!$A$2:$H$457,4,FALSE), 0) -> 0 | J23: 0
A24: 8 | B24: =IFERROR(VLOOKUP($A24,'New Order BOM''s'!$A$2:$H$457,2,FALSE), "") ->  | C24: =IFERROR(VLOOKUP($A24,'New Order BOM''s'!$A$2:$H$457,3,FALSE), "") ->  | D24: =IFERROR(VLOOKUP($A24,'Order BOM''s'!$A$3:$E$20,2,FALSE), "") ->  | E24: =IFERROR(VLOOKUP($A24,'Order BOM''s'!$A$3:$E$20,2,FALSE), "") ->  | F24: =IFERROR(VLOOKUP($A24,'Order BOM''s'!$A$3:$E$20,2,FALSE), "") ->  | G24: =IFERROR(VLOOKUP($A24,'Order BOM''s'!$A$3:$E$20,2,FALSE), "") ->  | H24: =IFERROR(VLOOKUP($A24,'New Order BOM''s'!$A$2:$H$457,8,FALSE), 0) -> 0 | I24: =IFERROR(VLOOKUP($A24,'New Order BOM''s'!$A$2:$H$457,4,FALSE), 0) -> 0 | J24: 0
A25: 9 | B25: =IFERROR(VLOOKUP($A25,'New Order BOM''s'!$A$2:$H$457,2,FALSE), "") ->  | C25: =IFERROR(VLOOKUP($A25,'New Order BOM''s'!$A$2:$H$457,3,FALSE), "") ->  | D25: =IFERROR(VLOOKUP($A25,'Order BOM''s'!$A$3:$E$20,2,FALSE), "") ->  | E25: =IFERROR(VLOOKUP($A25,'Order BOM''s'!$A$3:$E$20,2,FALSE), "") ->  | F25: =IFERROR(VLOOKUP($A25,'Order BOM''s'!$A$3:$E$20,2,FALSE), "") ->  | G25: =IFERROR(VLOOKUP($A25,'Order BOM''s'!$A$3:$E$20,2,FALSE), "") ->  | H25: =IFERROR(VLOOKUP($A25,'New Order BOM''s'!$A$2:$H$457,8,FALSE), 0) -> 0 | I25: =IFERROR(VLOOKUP($A25,'New Order BOM''s'!$A$2:$H$457,4,FALSE), 0) -> 0 | J25: 0
A26: 10 | B26: =IFERROR(VLOOKUP($A26,'New Order BOM''s'!$A$2:$H$457,2,FALSE), "") ->  | C26: =IFERROR(VLOOKUP($A26,'New Order BOM''s'!$A$2:$H$457,3,FALSE), "") ->  | D26: =IFERROR(VLOOKUP($A26,'Order BOM''s'!$A$3:$E$20,2,FALSE), "") ->  | E26: =IFERROR(VLOOKUP($A26,'Order BOM''s'!$A$3:$E$20,2,FALSE), "") ->  | F26: =IFERROR(VLOOKUP($A26,'Order BOM''s'!$A$3:$E$20,2,FALSE), "") ->  | G26: =IFERROR(VLOOKUP($A26,'Order BOM''s'!$A$3:$E$20,2,FALSE), "") ->  | H26: =IFERROR(VLOOKUP($A26,'New Order BOM''s'!$A$2:$H$457,8,FALSE), 0) -> 0 | I26: =IFERROR(VLOOKUP($A26,'New Order BOM''s'!$A$2:$H$457,4,FALSE), 0) -> 0 | J26: 0
A27: 11 | B27: =IFERROR(VLOOKUP($A27,'New Order BOM''s'!$A$2:$H$457,2,FALSE), "") ->  | C27: =IFERROR(VLOOKUP($A27,'New Order BOM''s'!$A$2:$H$457,3,FALSE), "") ->  | D27: =IFERROR(VLOOKUP($A27,'Order BOM''s'!$A$3:$E$20,2,FALSE), "") ->  | E27: =IFERROR(VLOOKUP($A27,'Order BOM''s'!$A$3:$E$20,2,FALSE), "") ->  | F27: =IFERROR(VLOOKUP($A27,'Order BOM''s'!$A$3:$E$20,2,FALSE), "") ->  | G27: =IFERROR(VLOOKUP($A27,'Order BOM''s'!$A$3:$E$20,2,FALSE), "") ->  | H27: =IFERROR(VLOOKUP($A27,'New Order BOM''s'!$A$2:$H$457,8,FALSE), 0) -> 0 | I27: =IFERROR(VLOOKUP($A27,'New Order BOM''s'!$A$2:$H$457,4,FALSE), 0) -> 0 | J27: 0
A28: 12 | B28: =IFERROR(VLOOKUP($A28,'New Order BOM''s'!$A$2:$H$457,2,FALSE), "") ->  | C28: =IFERROR(VLOOKUP($A28,'New Order BOM''s'!$A$2:$H$457,3,FALSE), "") ->  | D28: =IFERROR(VLOOKUP($A28,'Order BOM''s'!$A$3:$E$20,2,FALSE), "") ->  | E28: =IFERROR(VLOOKUP($A28,'Order BOM''s'!$A$3:$E$20,2,FALSE), "") ->  | F28: =IFERROR(VLOOKUP($A28,'Order BOM''s'!$A$3:$E$20,2,FALSE), "") ->  | G28: =IFERROR(VLOOKUP($A28,'Order BOM''s'!$A$3:$E$20,2,FALSE), "") ->  | H28: =IFERROR(VLOOKUP($A28,'New Order BOM''s'!$A$2:$H$457,8,FALSE), 0) -> 0 | I28: =IFERROR(VLOOKUP($A28,'New Order BOM''s'!$A$2:$H$457,4,FALSE), 0) -> 0 | J28: 0
A29: 13 | B29: =IFERROR(VLOOKUP($A29,'New Order BOM''s'!$A$2:$H$457,2,FALSE), "") ->  | C29: =IFERROR(VLOOKUP($A29,'New Order BOM''s'!$A$2:$H$457,3,FALSE), "") ->  | D29: =IFERROR(VLOOKUP($A29,'Order BOM''s'!$A$3:$E$20,2,FALSE), "") ->  | E29: =IFERROR(VLOOKUP($A29,'Order BOM''s'!$A$3:$E$20,2,FALSE), "") ->  | F29: =IFERROR(VLOOKUP($A29,'Order BOM''s'!$A$3:$E$20,2,FALSE), "") ->  | G29: =IFERROR(VLOOKUP($A29,'Order BOM''s'!$A$3:$E$20,2,FALSE), "") ->  | H29: =IFERROR(VLOOKUP($A29,'New Order BOM''s'!$A$2:$H$457,8,FALSE), 0) -> 0 | I29: =IFERROR(VLOOKUP($A29,'New Order BOM''s'!$A$2:$H$457,4,FALSE), 0) -> 0 | J29: =I29*H29 -> 0
A30: 14 | B30: =IFERROR(VLOOKUP($A30,'New Order BOM''s'!$A$2:$H$457,2,FALSE), "") ->  | C30: =IFERROR(VLOOKUP($A30,'New Order BOM''s'!$A$2:$H$457,3,FALSE), "") ->  | D30: =IFERROR(VLOOKUP($A30,'Order BOM''s'!$A$3:$E$20,2,FALSE), "") ->  | E30: =IFERROR(VLOOKUP($A30,'Order BOM''s'!$A$3:$E$20,2,FALSE), "") ->  | F30: =IFERROR(VLOOKUP($A30,'Order BOM''s'!$A$3:$E$20,2,FALSE), "") ->  | G30: =IFERROR(VLOOKUP($A30,'Order BOM''s'!$A$3:$E$20,2,FALSE), "") ->  | H30: =IFERROR(VLOOKUP($A30,'New Order BOM''s'!$A$2:$H$457,8,FALSE), 0) -> 0 | I30: =IFERROR(VLOOKUP($A30,'New Order BOM''s'!$A$2:$H$457,4,FALSE), 0) -> 0 | J30: 0
A31: 15 | B31: =IFERROR(VLOOKUP($A31,'New Order BOM''s'!$A$2:$H$457,2,FALSE), "") ->  | C31: =IFERROR(VLOOKUP($A31,'New Order BOM''s'!$A$2:$H$457,3,FALSE), "") ->  | D31: =IFERROR(VLOOKUP($A31,'Order BOM''s'!$A$3:$E$20,2,FALSE), "") ->  | E31: =IFERROR(VLOOKUP($A31,'Order BOM''s'!$A$3:$E$20,2,FALSE), "") ->  | F31: =IFERROR(VLOOKUP($A31,'Order BOM''s'!$A$3:$E$20,2,FALSE), "") ->  | G31: =IFERROR(VLOOKUP($A31,'Order BOM''s'!$A$3:$E$20,2,FALSE), "") ->  | H31: =IFERROR(VLOOKUP($A31,'New Order BOM''s'!$A$2:$H$457,8,FALSE), 0) -> 0 | I31: =IFERROR(VLOOKUP($A31,'New Order BOM''s'!$A$2:$H$457,4,FALSE), 0) -> 0 | J31: 0
A32: 16 | B32: =IFERROR(VLOOKUP($A32,'New Order BOM''s'!$A$2:$H$457,2,FALSE), "") ->  | C32: =IFERROR(VLOOKUP($A32,'New Order BOM''s'!$A$2:$H$457,3,FALSE), "") ->  | D32: =IFERROR(VLOOKUP($A32,'Order BOM''s'!$A$3:$E$20,2,FALSE), "") ->  | E32: =IFERROR(VLOOKUP($A32,'Order BOM''s'!$A$3:$E$20,2,FALSE), "") ->  | F32: =IFERROR(VLOOKUP($A32,'Order BOM''s'!$A$3:$E$20,2,FALSE), "") ->  | G32: =IFERROR(VLOOKUP($A32,'Order BOM''s'!$A$3:$E$20,2,FALSE), "") ->  | H32: =IFERROR(VLOOKUP($A32,'New Order BOM''s'!$A$2:$H$457,8,FALSE), 0) -> 0 | I32: =IFERROR(VLOOKUP($A32,'New Order BOM''s'!$A$2:$H$457,4,FALSE), 0) -> 0 | J32: 0
A33: 17 | B33: =IFERROR(VLOOKUP($A33,'New Order BOM''s'!$A$2:$H$457,2,FALSE), "") ->  | C33: =IFERROR(VLOOKUP($A33,'New Order BOM''s'!$A$2:$H$457,3,FALSE), "") ->  | D33: =IFERROR(VLOOKUP($A33,'Order BOM''s'!$A$3:$E$20,2,FALSE), "") ->  | E33: =IFERROR(VLOOKUP($A33,'Order BOM''s'!$A$3:$E$20,2,FALSE), "") ->  | F33: =IFERROR(VLOOKUP($A33,'Order BOM''s'!$A$3:$E$20,2,FALSE), "") ->  | G33: =IFERROR(VLOOKUP($A33,'Order BOM''s'!$A$3:$E$20,2,FALSE), "") ->  | H33: =IFERROR(VLOOKUP($A33,'New Order BOM''s'!$A$2:$H$457,8,FALSE), 0) -> 0 | I33: =IFERROR(VLOOKUP($A33,'New Order BOM''s'!$A$2:$H$457,4,FALSE), 0) -> 0 | J33: 0
A34: 18 | B34: =IFERROR(VLOOKUP($A34,'New Order BOM''s'!$A$2:$H$457,2,FALSE), "") ->  | C34: =IFERROR(VLOOKUP($A34,'New Order BOM''s'!$A$2:$H$457,3,FALSE), "") ->  | D34: =IFERROR(VLOOKUP($A34,'Order BOM''s'!$A$3:$E$20,2,FALSE), "") ->  | E34: =IFERROR(VLOOKUP($A34,'Order BOM''s'!$A$3:$E$20,2,FALSE), "") ->  | F34: =IFERROR(VLOOKUP($A34,'Order BOM''s'!$A$3:$E$20,2,FALSE), "") ->  | G34: =IFERROR(VLOOKUP($A34,'Order BOM''s'!$A$3:$E$20,2,FALSE), "") ->  | H34: =IFERROR(VLOOKUP($A34,'New Order BOM''s'!$A$2:$H$457,8,FALSE), 0) -> 0 | I34: =IFERROR(VLOOKUP($A34,'New Order BOM''s'!$A$2:$H$457,4,FALSE), 0) -> 0 | J34: 0
B35: Subtotal | I35: =SUM(J17:J34) -> 0
B36: Freight Charges | I36: 0
B37: Total | I37: =I35+J36 -> 0
B39: Special Instructions

Sheet Room Layout Summary
A32: Requested Dimensions | D32: Actual Dimensions | E32: Minimum | G32: Maximum
A33: Drain End Spacing to Wall | B33: ='Room Layout'!B19 -> 0 | C33: Inches | D33: Room Right Side Actual Aisle | E33: ='Room Layout'!B32 -> 31 | F33: Inches | G33: ='Room Layout'!D32 -> 48 | H33: Inches
A34: Aisle Between Benches Width | B34: ='Room Layout'!B20 -> 17 | C34: Inches | D34: Room Left Side Actual Aisle Width | E34: ='Room Layout'!B33 -> 0 | F34: Inches | G34: ='Room Layout'!D33 -> 17 | H34: Inches
D35: Room Front Aisle Actual Width | E35: ='Room Layout'!B34 -> 6 | F35: Inches

Sheet Layout Dimensions
G2: Slide Bench Room Layout Dimensions
B3: Dimensions
B4: A | C4: =Calcs!C85 -> 5.125 | D4: in
B5: B | C5: =Calcs!C86 -> 19.25 | D5: in
B6: L | C6: =Calcs!C90 -> 1182 | D6: in
B7: C | C7: =Calcs!C87 -> 48 | D7: in | E7: 4' to 4' Bench
C8: =Calcs!C88 -> 54 | D8: in | E8: 4' to 5' Bench
C9: =Calcs!C89 -> 60 | D9: in | E9: 5' to 5' Bench

Sheet Bulk Order Parts List (hidden)
E2: Bulk Order Parts List
B4: Sold By: | E4: Ship To:
B5: name | E5: name
B6: address 1 | E6: address 1
B7: address 2 | E7: address 2
B8: city, state, zip | E8: city, state, zip
B10: Stock Number | C10: Description | H10: Quantity
A11: 1 | B11: =IFERROR(VLOOKUP($A11,'Order BOM''s'!$A$25:$D$94,2,FALSE)," ") ->  | C11: =IFERROR(VLOOKUP($A11,'Order BOM''s'!$A$25:$D$94,3,FALSE)," ") ->  | H11: =IFERROR(VLOOKUP($A11,'Order BOM''s'!$A$25:$D$94,4,FALSE)," ") -> 
A12: 2 | B12: =IFERROR(VLOOKUP($A12,'Order BOM''s'!$A$25:$D$94,2,FALSE)," ") ->  | C12: =IFERROR(VLOOKUP($A12,'Order BOM''s'!$A$25:$D$94,3,FALSE)," ") ->  | H12: =IFERROR(VLOOKUP($A12,'Order BOM''s'!$A$25:$D$94,4,FALSE)," ") -> 
A13: 3 | B13: =IFERROR(VLOOKUP($A13,'Order BOM''s'!$A$25:$D$94,2,FALSE)," ") ->  | C13: =IFERROR(VLOOKUP($A13,'Order BOM''s'!$A$25:$D$94,3,FALSE)," ") ->  | H13: =IFERROR(VLOOKUP($A13,'Order BOM''s'!$A$25:$D$94,4,FALSE)," ") -> 
A14: 4 | B14: =IFERROR(VLOOKUP($A14,'Order BOM''s'!$A$25:$D$94,2,FALSE)," ") ->  | C14: =IFERROR(VLOOKUP($A14,'Order BOM''s'!$A$25:$D$94,3,FALSE)," ") ->  | H14: =IFERROR(VLOOKUP($A14,'Order BOM''s'!$A$25:$D$94,4,FALSE)," ") -> 
A15: 5 | B15: =IFERROR(VLOOKUP($A15,'Order BOM''s'!$A$25:$D$94,2,FALSE)," ") ->  | C15: =IFERROR(VLOOKUP($A15,'Order BOM''s'!$A$25:$D$94,3,FALSE)," ") ->  | H15: =IFERROR(VLOOKUP($A15,'Order BOM''s'!$A$25:$D$94,4,FALSE)," ") -> 
A16: 6 | B16: =IFERROR(VLOOKUP($A16,'Order BOM''s'!$A$25:$D$94,2,FALSE)," ") ->  | C16: =IFERROR(VLOOKUP($A16,'Order BOM''s'!$A$25:$D$94,3,FALSE)," ") ->  | H16: =IFERROR(VLOOKUP($A16,'Order BOM''s'!$A$25:$D$94,4,FALSE)," ") -> 
A17: 7 | B17: =IFERROR(VLOOKUP($A17,'Order BOM''s'!$A$25:$D$94,2,FALSE)," ") ->  | C17: =IFERROR(VLOOKUP($A17,'Order BOM''s'!$A$25:$D$94,3,FALSE)," ") ->  | H17: =IFERROR(VLOOKUP($A17,'Order BOM''s'!$A$25:$D$94,4,FALSE)," ") -> 
A18: 8 | B18: =IFERROR(VLOOKUP($A18,'Order BOM''s'!$A$25:$D$94,2,FALSE)," ") ->  | C18: =IFERROR(VLOOKUP($A18,'Order BOM''s'!$A$25:$D$94,3,FALSE)," ") ->  | H18: =IFERROR(VLOOKUP($A18,'Order BOM''s'!$A$25:$D$94,4,FALSE)," ") -> 
A19: 9 | B19: =IFERROR(VLOOKUP($A19,'Order BOM''s'!$A$25:$D$94,2,FALSE)," ") ->  | C19: =IFERROR(VLOOKUP($A19,'Order BOM''s'!$A$25:$D$94,3,FALSE)," ") ->  | H19: =IFERROR(VLOOKUP($A19,'Order BOM''s'!$A$25:$D$94,4,FALSE)," ") -> 
A20: 10 | B20: =IFERROR(VLOOKUP($A20,'Order BOM''s'!$A$25:$D$94,2,FALSE)," ") ->  | C20: =IFERROR(VLOOKUP($A20,'Order BOM''s'!$A$25:$D$94,3,FALSE)," ") ->  | H20: =IFERROR(VLOOKUP($A20,'Order BOM''s'!$A$25:$D$94,4,FALSE)," ") -> 
A21: 11 | B21: =IFERROR(VLOOKUP($A21,'Order BOM''s'!$A$25:$D$94,2,FALSE)," ") ->  | C21: =IFERROR(VLOOKUP($A21,'Order BOM''s'!$A$25:$D$94,3,FALSE)," ") ->  | H21: =IFERROR(VLOOKUP($A21,'Order BOM''s'!$A$25:$D$94,4,FALSE)," ") -> 
A22: 12 | B22: =IFERROR(VLOOKUP($A22,'Order BOM''s'!$A$25:$D$94,2,FALSE)," ") ->  | C22: =IFERROR(VLOOKUP($A22,'Order BOM''s'!$A$25:$D$94,3,FALSE)," ") ->  | H22: =IFERROR(VLOOKUP($A22,'Order BOM''s'!$A$25:$D$94,4,FALSE)," ") -> 
A23: 13 | B23: =IFERROR(VLOOKUP($A23,'Order BOM''s'!$A$25:$D$94,2,FALSE)," ") ->  | C23: =IFERROR(VLOOKUP($A23,'Order BOM''s'!$A$25:$D$94,3,FALSE)," ") ->  | H23: =IFERROR(VLOOKUP($A23,'Order BOM''s'!$A$25:$D$94,4,FALSE)," ") -> 
A24: 14 | B24: =IFERROR(VLOOKUP($A24,'Order BOM''s'!$A$25:$D$94,2,FALSE)," ") ->  | C24: =IFERROR(VLOOKUP($A24,'Order BOM''s'!$A$25:$D$94,3,FALSE)," ") ->  | H24: =IFERROR(VLOOKUP($A24,'Order BOM''s'!$A$25:$D$94,4,FALSE)," ") -> 
A25: 15 | B25: =IFERROR(VLOOKUP($A25,'Order BOM''s'!$A$25:$D$94,2,FALSE)," ") ->  | C25: =IFERROR(VLOOKUP($A25,'Order BOM''s'!$A$25:$D$94,3,FALSE)," ") ->  | H25: =IFERROR(VLOOKUP($A25,'Order BOM''s'!$A$25:$D$94,4,FALSE)," ") -> 
A26: 16 | B26: =IFERROR(VLOOKUP($A26,'Order BOM''s'!$A$25:$D$94,2,FALSE)," ") ->  | C26: =IFERROR(VLOOKUP($A26,'Order BOM''s'!$A$25:$D$94,3,FALSE)," ") ->  | H26: =IFERROR(VLOOKUP($A26,'Order BOM''s'!$A$25:$D$94,4,FALSE)," ") -> 
A27: 17 | B27: =IFERROR(VLOOKUP($A27,'Order BOM''s'!$A$25:$D$94,2,FALSE)," ") ->  | C27: =IFERROR(VLOOKUP($A27,'Order BOM''s'!$A$25:$D$94,3,FALSE)," ") ->  | H27: =IFERROR(VLOOKUP($A27,'Order BOM''s'!$A$25:$D$94,4,FALSE)," ") -> 
A28: 18 | B28: =IFERROR(VLOOKUP($A28,'Order BOM''s'!$A$25:$D$94,2,FALSE)," ") ->  | C28: =IFERROR(VLOOKUP($A28,'Order BOM''s'!$A$25:$D$94,3,FALSE)," ") ->  | H28: =IFERROR(VLOOKUP($A28,'Order BOM''s'!$A$25:$D$94,4,FALSE)," ") -> 
A29: 19 | B29: =IFERROR(VLOOKUP($A29,'Order BOM''s'!$A$25:$D$94,2,FALSE)," ") ->  | C29: =IFERROR(VLOOKUP($A29,'Order BOM''s'!$A$25:$D$94,3,FALSE)," ") ->  | H29: =IFERROR(VLOOKUP($A29,'Order BOM''s'!$A$25:$D$94,4,FALSE)," ") -> 
A30: 20 | B30: =IFERROR(VLOOKUP($A30,'Order BOM''s'!$A$25:$D$94,2,FALSE)," ") ->  | C30: =IFERROR(VLOOKUP($A30,'Order BOM''s'!$A$25:$D$94,3,FALSE)," ") ->  | H30: =IFERROR(VLOOKUP($A30,'Order BOM''s'!$A$25:$D$94,4,FALSE)," ") -> 
A31: 21 | B31: =IFERROR(VLOOKUP($A31,'Order BOM''s'!$A$25:$D$94,2,FALSE)," ") ->  | C31: =IFERROR(VLOOKUP($A31,'Order BOM''s'!$A$25:$D$94,3,FALSE)," ") ->  | H31: =IFERROR(VLOOKUP($A31,'Order BOM''s'!$A$25:$D$94,4,FALSE)," ") -> 
A32: 22 | B32: =IFERROR(VLOOKUP($A32,'Order BOM''s'!$A$25:$D$94,2,FALSE)," ") ->  | C32: =IFERROR(VLOOKUP($A32,'Order BOM''s'!$A$25:$D$94,3,FALSE)," ") ->  | H32: =IFERROR(VLOOKUP($A32,'Order BOM''s'!$A$25:$D$94,4,FALSE)," ") -> 
A33: 23 | B33: =IFERROR(VLOOKUP($A33,'Order BOM''s'!$A$25:$D$94,2,FALSE)," ") ->  | C33: =IFERROR(VLOOKUP($A33,'Order BOM''s'!$A$25:$D$94,3,FALSE)," ") ->  | H33: =IFERROR(VLOOKUP($A33,'Order BOM''s'!$A$25:$D$94,4,FALSE)," ") -> 
A34: 24 | B34: =IFERROR(VLOOKUP($A34,'Order BOM''s'!$A$25:$D$94,2,FALSE)," ") ->  | C34: =IFERROR(VLOOKUP($A34,'Order BOM''s'!$A$25:$D$94,3,FALSE)," ") ->  | H34: =IFERROR(VLOOKUP($A34,'Order BOM''s'!$A$25:$D$94,4,FALSE)," ") -> 
A35: 25 | B35: =IFERROR(VLOOKUP($A35,'Order BOM''s'!$A$25:$D$94,2,FALSE)," ") ->  | C35: =IFERROR(VLOOKUP($A35,'Order BOM''s'!$A$25:$D$94,3,FALSE)," ") ->  | H35: =IFERROR(VLOOKUP($A35,'Order BOM''s'!$A$25:$D$94,4,FALSE)," ") -> 
A36: 26 | B36: =IFERROR(VLOOKUP($A36,'Order BOM''s'!$A$25:$D$94,2,FALSE)," ") ->  | C36: =IFERROR(VLOOKUP($A36,'Order BOM''s'!$A$25:$D$94,3,FALSE)," ") ->  | H36: =IFERROR(VLOOKUP($A36,'Order BOM''s'!$A$25:$D$94,4,FALSE)," ") -> 
A37: 27 | B37: =IFERROR(VLOOKUP($A37,'Order BOM''s'!$A$25:$D$94,2,FALSE)," ") ->  | C37: =IFERROR(VLOOKUP($A37,'Order BOM''s'!$A$25:$D$94,3,FALSE)," ") ->  | H37: =IFERROR(VLOOKUP($A37,'Order BOM''s'!$A$25:$D$94,4,FALSE)," ") -> 
A38: 28 | B38: =IFERROR(VLOOKUP($A38,'Order BOM''s'!$A$25:$D$94,2,FALSE)," ") ->  | C38: =IFERROR(VLOOKUP($A38,'Order BOM''s'!$A$25:$D$94,3,FALSE)," ") ->  | H38: =IFERROR(VLOOKUP($A38,'Order BOM''s'!$A$25:$D$94,4,FALSE)," ") -> 
A39: 29 | B39: =IFERROR(VLOOKUP($A39,'Order BOM''s'!$A$25:$D$94,2,FALSE)," ") ->  | C39: =IFERROR(VLOOKUP($A39,'Order BOM''s'!$A$25:$D$94,3,FALSE)," ") ->  | H39: =IFERROR(VLOOKUP($A39,'Order BOM''s'!$A$25:$D$94,4,FALSE)," ") -> 
A40: 30 | B40: =IFERROR(VLOOKUP($A40,'Order BOM''s'!$A$25:$D$94,2,FALSE)," ") ->  | C40: =IFERROR(VLOOKUP($A40,'Order BOM''s'!$A$25:$D$94,3,FALSE)," ") ->  | H40: =IFERROR(VLOOKUP($A40,'Order BOM''s'!$A$25:$D$94,4,FALSE)," ") -> 
A41: 31 | B41: =IFERROR(VLOOKUP($A41,'Order BOM''s'!$A$25:$D$94,2,FALSE)," ") ->  | C41: =IFERROR(VLOOKUP($A41,'Order BOM''s'!$A$25:$D$94,3,FALSE)," ") ->  | H41: =IFERROR(VLOOKUP($A41,'Order BOM''s'!$A$25:$D$94,4,FALSE)," ") -> 
A42: 32 | B42: =IFERROR(VLOOKUP($A42,'Order BOM''s'!$A$25:$D$94,2,FALSE)," ") ->  | C42: =IFERROR(VLOOKUP($A42,'Order BOM''s'!$A$25:$D$94,3,FALSE)," ") ->  | H42: =IFERROR(VLOOKUP($A42,'Order BOM''s'!$A$25:$D$94,4,FALSE)," ") -> 
A43: 33 | B43: =IFERROR(VLOOKUP($A43,'Order BOM''s'!$A$25:$D$94,2,FALSE)," ") ->  | C43: =IFERROR(VLOOKUP($A43,'Order BOM''s'!$A$25:$D$94,3,FALSE)," ") ->  | H43: =IFERROR(VLOOKUP($A43,'Order BOM''s'!$A$25:$D$94,4,FALSE)," ") -> 
A44: 34 | B44: =IFERROR(VLOOKUP($A44,'Order BOM''s'!$A$25:$D$94,2,FALSE)," ") ->  | C44: =IFERROR(VLOOKUP($A44,'Order BOM''s'!$A$25:$D$94,3,FALSE)," ") ->  | H44: =IFERROR(VLOOKUP($A44,'Order BOM''s'!$A$25:$D$94,4,FALSE)," ") -> 
A45: 35 | B45: =IFERROR(VLOOKUP($A45,'Order BOM''s'!$A$25:$D$94,2,FALSE)," ") ->  | C45: =IFERROR(VLOOKUP($A45,'Order BOM''s'!$A$25:$D$94,3,FALSE)," ") ->  | H45: =IFERROR(VLOOKUP($A45,'Order BOM''s'!$A$25:$D$94,4,FALSE)," ") -> 
A46: 36 | B46: =IFERROR(VLOOKUP($A46,'Order BOM''s'!$A$25:$D$94,2,FALSE)," ") ->  | C46: =IFERROR(VLOOKUP($A46,'Order BOM''s'!$A$25:$D$94,3,FALSE)," ") ->  | H46: =IFERROR(VLOOKUP($A46,'Order BOM''s'!$A$25:$D$94,4,FALSE)," ") -> 
A47: 37 | B47: =IFERROR(VLOOKUP($A47,'Order BOM''s'!$A$25:$D$94,2,FALSE)," ") ->  | C47: =IFERROR(VLOOKUP($A47,'Order BOM''s'!$A$25:$D$94,3,FALSE)," ") ->  | H47: =IFERROR(VLOOKUP($A47,'Order BOM''s'!$A$25:$D$94,4,FALSE)," ") -> 
A48: 38 | B48: =IFERROR(VLOOKUP($A48,'Order BOM''s'!$A$25:$D$94,2,FALSE)," ") ->  | C48: =IFERROR(VLOOKUP($A48,'Order BOM''s'!$A$25:$D$94,3,FALSE)," ") ->  | H48: =IFERROR(VLOOKUP($A48,'Order BOM''s'!$A$25:$D$94,4,FALSE)," ") -> 
A49: 39 | B49: =IFERROR(VLOOKUP($A49,'Order BOM''s'!$A$25:$D$94,2,FALSE)," ") ->  | C49: =IFERROR(VLOOKUP($A49,'Order BOM''s'!$A$25:$D$94,3,FALSE)," ") ->  | H49: =IFERROR(VLOOKUP($A49,'Order BOM''s'!$A$25:$D$94,4,FALSE)," ") -> 
A50: 40 | B50: =IFERROR(VLOOKUP($A50,'Order BOM''s'!$A$25:$D$94,2,FALSE)," ") ->  | C50: =IFERROR(VLOOKUP($A50,'Order BOM''s'!$A$25:$D$94,3,FALSE)," ") ->  | H50: =IFERROR(VLOOKUP($A50,'Order BOM''s'!$A$25:$D$94,4,FALSE)," ") -> 
A51: 41 | B51: =IFERROR(VLOOKUP($A51,'Order BOM''s'!$A$25:$D$94,2,FALSE)," ") ->  | C51: =IFERROR(VLOOKUP($A51,'Order BOM''s'!$A$25:$D$94,3,FALSE)," ") ->  | H51: =IFERROR(VLOOKUP($A51,'Order BOM''s'!$A$25:$D$94,4,FALSE)," ") -> 
A52: 42 | B52: =IFERROR(VLOOKUP($A52,'Order BOM''s'!$A$25:$D$94,2,FALSE)," ") ->  | C52: =IFERROR(VLOOKUP($A52,'Order BOM''s'!$A$25:$D$94,3,FALSE)," ") ->  | H52: =IFERROR(VLOOKUP($A52,'Order BOM''s'!$A$25:$D$94,4,FALSE)," ") -> 
A53: 43 | B53: =IFERROR(VLOOKUP($A53,'Order BOM''s'!$A$25:$D$94,2,FALSE)," ") ->  | C53: =IFERROR(VLOOKUP($A53,'Order BOM''s'!$A$25:$D$94,3,FALSE)," ") ->  | H53: =IFERROR(VLOOKUP($A53,'Order BOM''s'!$A$25:$D$94,4,FALSE)," ") -> 
A54: 44 | B54: =IFERROR(VLOOKUP($A54,'Order BOM''s'!$A$25:$D$94,2,FALSE)," ") ->  | C54: =IFERROR(VLOOKUP($A54,'Order BOM''s'!$A$25:$D$94,3,FALSE)," ") ->  | H54: =IFERROR(VLOOKUP($A54,'Order BOM''s'!$A$25:$D$94,4,FALSE)," ") -> 
A55: 45 | B55: =IFERROR(VLOOKUP($A55,'Order BOM''s'!$A$25:$D$94,2,FALSE)," ") ->  | C55: =IFERROR(VLOOKUP($A55,'Order BOM''s'!$A$25:$D$94,3,FALSE)," ") ->  | H55: =IFERROR(VLOOKUP($A55,'Order BOM''s'!$A$25:$D$94,4,FALSE)," ") -> 
A56: 46 | B56: =IFERROR(VLOOKUP($A56,'Order BOM''s'!$A$25:$D$94,2,FALSE)," ") ->  | C56: =IFERROR(VLOOKUP($A56,'Order BOM''s'!$A$25:$D$94,3,FALSE)," ") ->  | H56: =IFERROR(VLOOKUP($A56,'Order BOM''s'!$A$25:$D$94,4,FALSE)," ") -> 
A57: 47 | B57: =IFERROR(VLOOKUP($A57,'Order BOM''s'!$A$25:$D$94,2,FALSE)," ") ->  | C57: =IFERROR(VLOOKUP($A57,'Order BOM''s'!$A$25:$D$94,3,FALSE)," ") ->  | H57: =IFERROR(VLOOKUP($A57,'Order BOM''s'!$A$25:$D$94,4,FALSE)," ") -> 
A58: 48 | B58: =IFERROR(VLOOKUP($A58,'Order BOM''s'!$A$25:$D$94,2,FALSE)," ") ->  | C58: =IFERROR(VLOOKUP($A58,'Order BOM''s'!$A$25:$D$94,3,FALSE)," ") ->  | H58: =IFERROR(VLOOKUP($A58,'Order BOM''s'!$A$25:$D$94,4,FALSE)," ") -> 
A59: 49 | B59: =IFERROR(VLOOKUP($A59,'Order BOM''s'!$A$25:$D$94,2,FALSE)," ") ->  | C59: =IFERROR(VLOOKUP($A59,'Order BOM''s'!$A$25:$D$94,3,FALSE)," ") ->  | H59: =IFERROR(VLOOKUP($A59,'Order BOM''s'!$A$25:$D$94,4,FALSE)," ") -> 
A60: 50 | B60: =IFERROR(VLOOKUP($A60,'Order BOM''s'!$A$25:$D$94,2,FALSE)," ") ->  | C60: =IFERROR(VLOOKUP($A60,'Order BOM''s'!$A$25:$D$94,3,FALSE)," ") ->  | H60: =IFERROR(VLOOKUP($A60,'Order BOM''s'!$A$25:$D$94,4,FALSE)," ") -> 
A61: 51 | B61: =IFERROR(VLOOKUP($A61,'Order BOM''s'!$A$25:$D$94,2,FALSE)," ") ->  | C61: =IFERROR(VLOOKUP($A61,'Order BOM''s'!$A$25:$D$94,3,FALSE)," ") ->  | H61: =IFERROR(VLOOKUP($A61,'Order BOM''s'!$A$25:$D$94,4,FALSE)," ") -> 
A62: 52 | B62: =IFERROR(VLOOKUP($A62,'Order BOM''s'!$A$25:$D$94,2,FALSE)," ") ->  | C62: =IFERROR(VLOOKUP($A62,'Order BOM''s'!$A$25:$D$94,3,FALSE)," ") ->  | H62: =IFERROR(VLOOKUP($A62,'Order BOM''s'!$A$25:$D$94,4,FALSE)," ") -> 
A63: 53 | B63: =IFERROR(VLOOKUP($A63,'Order BOM''s'!$A$25:$D$94,2,FALSE)," ") ->  | C63: =IFERROR(VLOOKUP($A63,'Order BOM''s'!$A$25:$D$94,3,FALSE)," ") ->  | H63: =IFERROR(VLOOKUP($A63,'Order BOM''s'!$A$25:$D$94,4,FALSE)," ") -> 
A64: 54 | B64: =IFERROR(VLOOKUP($A64,'Order BOM''s'!$A$25:$D$94,2,FALSE)," ") ->  | C64: =IFERROR(VLOOKUP($A64,'Order BOM''s'!$A$25:$D$94,3,FALSE)," ") ->  | H64: =IFERROR(VLOOKUP($A64,'Order BOM''s'!$A$25:$D$94,4,FALSE)," ") -> 
A65: 55 | B65: =IFERROR(VLOOKUP($A65,'Order BOM''s'!$A$25:$D$94,2,FALSE)," ") ->  | C65: =IFERROR(VLOOKUP($A65,'Order BOM''s'!$A$25:$D$94,3,FALSE)," ") ->  | H65: =IFERROR(VLOOKUP($A65,'Order BOM''s'!$A$25:$D$94,4,FALSE)," ") -> 
A66: 56 | B66: =IFERROR(VLOOKUP($A66,'Order BOM''s'!$A$25:$D$94,2,FALSE)," ") ->  | C66: =IFERROR(VLOOKUP($A66,'Order BOM''s'!$A$25:$D$94,3,FALSE)," ") ->  | H66: =IFERROR(VLOOKUP($A66,'Order BOM''s'!$A$25:$D$94,4,FALSE)," ") -> 
A67: 57 | B67: =IFERROR(VLOOKUP($A67,'Order BOM''s'!$A$25:$D$94,2,FALSE)," ") ->  | C67: =IFERROR(VLOOKUP($A67,'Order BOM''s'!$A$25:$D$94,3,FALSE)," ") ->  | H67: =IFERROR(VLOOKUP($A67,'Order BOM''s'!$A$25:$D$94,4,FALSE)," ") -> 
A68: 58 | B68: =IFERROR(VLOOKUP($A68,'Order BOM''s'!$A$25:$D$94,2,FALSE)," ") ->  | C68: =IFERROR(VLOOKUP($A68,'Order BOM''s'!$A$25:$D$94,3,FALSE)," ") ->  | H68: =IFERROR(VLOOKUP($A68,'Order BOM''s'!$A$25:$D$94,4,FALSE)," ") -> 
A69: 59 | B69: =IFERROR(VLOOKUP($A69,'Order BOM''s'!$A$25:$D$94,2,FALSE)," ") ->  | C69: =IFERROR(VLOOKUP($A69,'Order BOM''s'!$A$25:$D$94,3,FALSE)," ") ->  | H69: =IFERROR(VLOOKUP($A69,'Order BOM''s'!$A$25:$D$94,4,FALSE)," ") -> 
A70: 60 | B70: =IFERROR(VLOOKUP($A70,'Order BOM''s'!$A$25:$D$94,2,FALSE)," ") ->  | C70: =IFERROR(VLOOKUP($A70,'Order BOM''s'!$A$25:$D$94,3,FALSE)," ") ->  | H70: =IFERROR(VLOOKUP($A70,'Order BOM''s'!$A$25:$D$94,4,FALSE)," ") -> 

Sheet Purchase Order (RL) (hidden)
B5: Hawthorne Hydroponics | E5: Order Information
B6: 3204 NW 38th Circle | E6: Order Date:
B7: Vancouver, WA 98660 | E7: Requested Delivery Date:
B8: Phone 877-753-0404 | E8: Customer P.O.:
B10: Payer: | E10: Bill To: | H10: Ship To:
B11: name | E11: name | H11: name
B12: address 1 | E12: address 1 | H12: address 1
B13: address 2 | E13: address 2 | H13: address 2
B14: city, state, zip | E14: city, state, zip | H14: city, state, zip
B16: Stock Number | C16: Description | H16: Quantity | I16: Unit Price | J16: Ext Price
A17: 1 | B17: =IFERROR(VLOOKUP($A17,'Order BOM''s'!$A$3:$E$20,2,FALSE), "") ->  | C17: =IFERROR(VLOOKUP($A17,'Order BOM''s'!$A$3:$E$20,3,FALSE), "") ->  | D17: =IFERROR(VLOOKUP($A17,'Order BOM''s'!$A$3:$E$20,2,FALSE), "") ->  | E17: =IFERROR(VLOOKUP($A17,'Order BOM''s'!$A$3:$E$20,2,FALSE), "") ->  | F17: =IFERROR(VLOOKUP($A17,'Order BOM''s'!$A$3:$E$20,2,FALSE), "") ->  | G17: =IFERROR(VLOOKUP($A17,'Order BOM''s'!$A$3:$E$20,2,FALSE), "") ->  | H17: =IFERROR(VLOOKUP($A17,'Order BOM''s'!$A$3:$E$20,4,FALSE), 0) -> 0 | I17: =IFERROR(VLOOKUP($A17,'Order BOM''s'!$A$3:$E$20,5,FALSE), 0) -> 0 | J17: =I17*H17 -> 0
A18: 2 | B18: =IFERROR(VLOOKUP($A18,'Order BOM''s'!$A$3:$E$20,2,FALSE), "") ->  | C18: =IFERROR(VLOOKUP($A18,'Order BOM''s'!$A$3:$E$20,3,FALSE), "") ->  | D18: =IFERROR(VLOOKUP($A18,'Order BOM''s'!$A$3:$E$20,2,FALSE), "") ->  | E18: =IFERROR(VLOOKUP($A18,'Order BOM''s'!$A$3:$E$20,2,FALSE), "") ->  | F18: =IFERROR(VLOOKUP($A18,'Order BOM''s'!$A$3:$E$20,2,FALSE), "") ->  | G18: =IFERROR(VLOOKUP($A18,'Order BOM''s'!$A$3:$E$20,2,FALSE), "") ->  | H18: =IFERROR(VLOOKUP($A18,'Order BOM''s'!$A$3:$E$20,4,FALSE), 0) -> 0 | I18: =IFERROR(VLOOKUP($A18,'Order BOM''s'!$A$3:$E$20,5,FALSE), 0) -> 0 | J18: =I18*H18 -> 0
A19: 3 | B19: =IFERROR(VLOOKUP($A19,'Order BOM''s'!$A$3:$E$20,2,FALSE), "") ->  | C19: =IFERROR(VLOOKUP($A19,'Order BOM''s'!$A$3:$E$20,3,FALSE), "") ->  | D19: =IFERROR(VLOOKUP($A19,'Order BOM''s'!$A$3:$E$20,2,FALSE), "") ->  | E19: =IFERROR(VLOOKUP($A19,'Order BOM''s'!$A$3:$E$20,2,FALSE), "") ->  | F19: =IFERROR(VLOOKUP($A19,'Order BOM''s'!$A$3:$E$20,2,FALSE), "") ->  | G19: =IFERROR(VLOOKUP($A19,'Order BOM''s'!$A$3:$E$20,2,FALSE), "") ->  | H19: =IFERROR(VLOOKUP($A19,'Order BOM''s'!$A$3:$E$20,4,FALSE), 0) -> 0 | I19: =IFERROR(VLOOKUP($A19,'Order BOM''s'!$A$3:$E$20,5,FALSE), 0) -> 0 | J19: 0
A20: 4 | B20: =IFERROR(VLOOKUP($A20,'Order BOM''s'!$A$3:$E$20,2,FALSE), "") ->  | C20: =IFERROR(VLOOKUP($A20,'Order BOM''s'!$A$3:$E$20,3,FALSE), "") ->  | D20: =IFERROR(VLOOKUP($A20,'Order BOM''s'!$A$3:$E$20,2,FALSE), "") ->  | E20: =IFERROR(VLOOKUP($A20,'Order BOM''s'!$A$3:$E$20,2,FALSE), "") ->  | F20: =IFERROR(VLOOKUP($A20,'Order BOM''s'!$A$3:$E$20,2,FALSE), "") ->  | G20: =IFERROR(VLOOKUP($A20,'Order BOM''s'!$A$3:$E$20,2,FALSE), "") ->  | H20: =IFERROR(VLOOKUP($A20,'Order BOM''s'!$A$3:$E$20,4,FALSE), 0) -> 0 | I20: =IFERROR(VLOOKUP($A20,'Order BOM''s'!$A$3:$E$20,5,FALSE), 0) -> 0 | J20: 0
A21: 5 | B21: =IFERROR(VLOOKUP($A21,'Order BOM''s'!$A$3:$E$20,2,FALSE), "") ->  | C21: =IFERROR(VLOOKUP($A21,'Order BOM''s'!$A$3:$E$20,3,FALSE), "") ->  | D21: =IFERROR(VLOOKUP($A21,'Order BOM''s'!$A$3:$E$20,2,FALSE), "") ->  | E21: =IFERROR(VLOOKUP($A21,'Order BOM''s'!$A$3:$E$20,2,FALSE), "") ->  | F21: =IFERROR(VLOOKUP($A21,'Order BOM''s'!$A$3:$E$20,2,FALSE), "") ->  | G21: =IFERROR(VLOOKUP($A21,'Order BOM''s'!$A$3:$E$20,2,FALSE), "") ->  | H21: =IFERROR(VLOOKUP($A21,'Order BOM''s'!$A$3:$E$20,4,FALSE), 0) -> 0 | I21: =IFERROR(VLOOKUP($A21,'Order BOM''s'!$A$3:$E$20,5,FALSE), 0) -> 0 | J21: 0
A22: 6 | B22: =IFERROR(VLOOKUP($A22,'Order BOM''s'!$A$3:$E$20,2,FALSE), "") ->  | C22: =IFERROR(VLOOKUP($A22,'Order BOM''s'!$A$3:$E$20,3,FALSE), "") ->  | D22: =IFERROR(VLOOKUP($A22,'Order BOM''s'!$A$3:$E$20,2,FALSE), "") ->  | E22: =IFERROR(VLOOKUP($A22,'Order BOM''s'!$A$3:$E$20,2,FALSE), "") ->  | F22: =IFERROR(VLOOKUP($A22,'Order BOM''s'!$A$3:$E$20,2,FALSE), "") ->  | G22: =IFERROR(VLOOKUP($A22,'Order BOM''s'!$A$3:$E$20,2,FALSE), "") ->  | H22: =IFERROR(VLOOKUP($A22,'Order BOM''s'!$A$3:$E$20,4,FALSE), 0) -> 0 | I22: =IFERROR(VLOOKUP($A22,'Order BOM''s'!$A$3:$E$20,5,FALSE), 0) -> 0 | J22: 0
A23: 7 | B23: =IFERROR(VLOOKUP($A23,'Order BOM''s'!$A$3:$E$20,2,FALSE), "") ->  | C23: =IFERROR(VLOOKUP($A23,'Order BOM''s'!$A$3:$E$20,3,FALSE), "") ->  | D23: =IFERROR(VLOOKUP($A23,'Order BOM''s'!$A$3:$E$20,2,FALSE), "") ->  | E23: =IFERROR(VLOOKUP($A23,'Order BOM''s'!$A$3:$E$20,2,FALSE), "") ->  | F23: =IFERROR(VLOOKUP($A23,'Order BOM''s'!$A$3:$E$20,2,FALSE), "") ->  | G23: =IFERROR(VLOOKUP($A23,'Order BOM''s'!$A$3:$E$20,2,FALSE), "") ->  | H23: =IFERROR(VLOOKUP($A23,'Order BOM''s'!$A$3:$E$20,4,FALSE), 0) -> 0 | I23: =IFERROR(VLOOKUP($A23,'Order BOM''s'!$A$3:$E$20,5,FALSE), 0) -> 0 | J23: 0
A24: 8 | B24: =IFERROR(VLOOKUP($A24,'Order BOM''s'!$A$3:$E$20,2,FALSE), "") ->  | C24: =IFERROR(VLOOKUP($A24,'Order BOM''s'!$A$3:$E$20,3,FALSE), "") ->  | D24: =IFERROR(VLOOKUP($A24,'Order BOM''s'!$A$3:$E$20,2,FALSE), "") ->  | E24: =IFERROR(VLOOKUP($A24,'Order BOM''s'!$A$3:$E$20,2,FALSE), "") ->  | F24: =IFERROR(VLOOKUP($A24,'Order BOM''s'!$A$3:$E$20,2,FALSE), "") ->  | G24: =IFERROR(VLOOKUP($A24,'Order BOM''s'!$A$3:$E$20,2,FALSE), "") ->  | H24: =IFERROR(VLOOKUP($A24,'Order BOM''s'!$A$3:$E$20,4,FALSE), 0) -> 0 | I24: =IFERROR(VLOOKUP($A24,'Order BOM''s'!$A$3:$E$20,5,FALSE), 0) -> 0 | J24: 0
A25: 9 | B25: =IFERROR(VLOOKUP($A25,'Order BOM''s'!$A$3:$E$20,2,FALSE), "") ->  | C25: =IFERROR(VLOOKUP($A25,'Order BOM''s'!$A$3:$E$20,3,FALSE), "") ->  | D25: =IFERROR(VLOOKUP($A25,'Order BOM''s'!$A$3:$E$20,2,FALSE), "") ->  | E25: =IFERROR(VLOOKUP($A25,'Order BOM''s'!$A$3:$E$20,2,FALSE), "") ->  | F25: =IFERROR(VLOOKUP($A25,'Order BOM''s'!$A$3:$E$20,2,FALSE), "") ->  | G25: =IFERROR(VLOOKUP($A25,'Order BOM''s'!$A$3:$E$20,2,FALSE), "") ->  | H25: =IFERROR(VLOOKUP($A25,'Order BOM''s'!$A$3:$E$20,4,FALSE), 0) -> 0 | I25: =IFERROR(VLOOKUP($A25,'Order BOM''s'!$A$3:$E$20,5,FALSE), 0) -> 0 | J25: 0
A26: 10 | B26: =IFERROR(VLOOKUP($A26,'Order BOM''s'!$A$3:$E$20,2,FALSE), "") ->  | C26: =IFERROR(VLOOKUP($A26,'Order BOM''s'!$A$3:$E$20,3,FALSE), "") ->  | D26: =IFERROR(VLOOKUP($A26,'Order BOM''s'!$A$3:$E$20,2,FALSE), "") ->  | E26: =IFERROR(VLOOKUP($A26,'Order BOM''s'!$A$3:$E$20,2,FALSE), "") ->  | F26: =IFERROR(VLOOKUP($A26,'Order BOM''s'!$A$3:$E$20,2,FALSE), "") ->  | G26: =IFERROR(VLOOKUP($A26,'Order BOM''s'!$A$3:$E$20,2,FALSE), "") ->  | H26: =IFERROR(VLOOKUP($A26,'Order BOM''s'!$A$3:$E$20,4,FALSE), 0) -> 0 | I26: =IFERROR(VLOOKUP($A26,'Order BOM''s'!$A$3:$E$20,5,FALSE), 0) -> 0 | J26: 0
A27: 11 | B27: =IFERROR(VLOOKUP($A27,'Order BOM''s'!$A$3:$E$20,2,FALSE), "") ->  | C27: =IFERROR(VLOOKUP($A27,'Order BOM''s'!$A$3:$E$20,3,FALSE), "") ->  | D27: =IFERROR(VLOOKUP($A27,'Order BOM''s'!$A$3:$E$20,2,FALSE), "") ->  | E27: =IFERROR(VLOOKUP($A27,'Order BOM''s'!$A$3:$E$20,2,FALSE), "") ->  | F27: =IFERROR(VLOOKUP($A27,'Order BOM''s'!$A$3:$E$20,2,FALSE), "") ->  | G27: =IFERROR(VLOOKUP($A27,'Order BOM''s'!$A$3:$E$20,2,FALSE), "") ->  | H27: =IFERROR(VLOOKUP($A27,'Order BOM''s'!$A$3:$E$20,4,FALSE), 0) -> 0 | I27: =IFERROR(VLOOKUP($A27,'Order BOM''s'!$A$3:$E$20,5,FALSE), 0) -> 0 | J27: 0
A28: 12 | B28: =IFERROR(VLOOKUP($A28,'Order BOM''s'!$A$3:$E$20,2,FALSE), "") ->  | C28: =IFERROR(VLOOKUP($A28,'Order BOM''s'!$A$3:$E$20,3,FALSE), "") ->  | D28: =IFERROR(VLOOKUP($A28,'Order BOM''s'!$A$3:$E$20,2,FALSE), "") ->  | E28: =IFERROR(VLOOKUP($A28,'Order BOM''s'!$A$3:$E$20,2,FALSE), "") ->  | F28: =IFERROR(VLOOKUP($A28,'Order BOM''s'!$A$3:$E$20,2,FALSE), "") ->  | G28: =IFERROR(VLOOKUP($A28,'Order BOM''s'!$A$3:$E$20,2,FALSE), "") ->  | H28: =IFERROR(VLOOKUP($A28,'Order BOM''s'!$A$3:$E$20,4,FALSE), 0) -> 0 | I28: =IFERROR(VLOOKUP($A28,'Order BOM''s'!$A$3:$E$20,5,FALSE), 0) -> 0 | J28: 0
A29: 13 | B29: =IFERROR(VLOOKUP($A29,'Order BOM''s'!$A$3:$E$20,2,FALSE), "") ->  | C29: =IFERROR(VLOOKUP($A29,'Order BOM''s'!$A$3:$E$20,3,FALSE), "") ->  | D29: =IFERROR(VLOOKUP($A29,'Order BOM''s'!$A$3:$E$20,2,FALSE), "") ->  | E29: =IFERROR(VLOOKUP($A29,'Order BOM''s'!$A$3:$E$20,2,FALSE), "") ->  | F29: =IFERROR(VLOOKUP($A29,'Order BOM''s'!$A$3:$E$20,2,FALSE), "") ->  | G29: =IFERROR(VLOOKUP($A29,'Order BOM''s'!$A$3:$E$20,2,FALSE), "") ->  | H29: =IFERROR(VLOOKUP($A29,'Order BOM''s'!$A$3:$E$20,4,FALSE), 0) -> 0 | I29: =IFERROR(VLOOKUP($A29,'Order BOM''s'!$A$3:$E$20,5,FALSE), 0) -> 0 | J29: 0
A30: 14 | B30: =IFERROR(VLOOKUP($A30,'Order BOM''s'!$A$3:$E$20,2,FALSE), "") ->  | C30: =IFERROR(VLOOKUP($A30,'Order BOM''s'!$A$3:$E$20,3,FALSE), "") ->  | D30: =IFERROR(VLOOKUP($A30,'Order BOM''s'!$A$3:$E$20,2,FALSE), "") ->  | E30: =IFERROR(VLOOKUP($A30,'Order BOM''s'!$A$3:$E$20,2,FALSE), "") ->  | F30: =IFERROR(VLOOKUP($A30,'Order BOM''s'!$A$3:$E$20,2,FALSE), "") ->  | G30: =IFERROR(VLOOKUP($A30,'Order BOM''s'!$A$3:$E$20,2,FALSE), "") ->  | H30: =IFERROR(VLOOKUP($A30,'Order BOM''s'!$A$3:$E$20,4,FALSE), 0) -> 0 | I30: =IFERROR(VLOOKUP($A30,'Order BOM''s'!$A$3:$E$20,5,FALSE), 0) -> 0 | J30: 0
A31: 15 | B31: =IFERROR(VLOOKUP($A31,'Order BOM''s'!$A$3:$E$20,2,FALSE), "") ->  | C31: =IFERROR(VLOOKUP($A31,'Order BOM''s'!$A$3:$E$20,3,FALSE), "") ->  | D31: =IFERROR(VLOOKUP($A31,'Order BOM''s'!$A$3:$E$20,2,FALSE), "") ->  | E31: =IFERROR(VLOOKUP($A31,'Order BOM''s'!$A$3:$E$20,2,FALSE), "") ->  | F31: =IFERROR(VLOOKUP($A31,'Order BOM''s'!$A$3:$E$20,2,FALSE), "") ->  | G31: =IFERROR(VLOOKUP($A31,'Order BOM''s'!$A$3:$E$20,2,FALSE), "") ->  | H31: =IFERROR(VLOOKUP($A31,'Order BOM''s'!$A$3:$E$20,4,FALSE), 0) -> 0 | I31: =IFERROR(VLOOKUP($A31,'Order BOM''s'!$A$3:$E$20,5,FALSE), 0) -> 0 | J31: 0
A32: 16 | B32: =IFERROR(VLOOKUP($A32,'Order BOM''s'!$A$3:$E$20,2,FALSE), "") ->  | C32: =IFERROR(VLOOKUP($A32,'Order BOM''s'!$A$3:$E$20,3,FALSE), "") ->  | D32: =IFERROR(VLOOKUP($A32,'Order BOM''s'!$A$3:$E$20,2,FALSE), "") ->  | E32: =IFERROR(VLOOKUP($A32,'Order BOM''s'!$A$3:$E$20,2,FALSE), "") ->  | F32: =IFERROR(VLOOKUP($A32,'Order BOM''s'!$A$3:$E$20,2,FALSE), "") ->  | G32: =IFERROR(VLOOKUP($A32,'Order BOM''s'!$A$3:$E$20,2,FALSE), "") ->  | H32: =IFERROR(VLOOKUP($A32,'Order BOM''s'!$A$3:$E$20,4,FALSE), 0) -> 0 | I32: =IFERROR(VLOOKUP($A32,'Order BOM''s'!$A$3:$E$20,5,FALSE), 0) -> 0 | J32: 0
A33: 17 | B33: =IFERROR(VLOOKUP($A33,'Order BOM''s'!$A$3:$E$20,2,FALSE), "") ->  | C33: =IFERROR(VLOOKUP($A33,'Order BOM''s'!$A$3:$E$20,3,FALSE), "") ->  | D33: =IFERROR(VLOOKUP($A33,'Order BOM''s'!$A$3:$E$20,2,FALSE), "") ->  | E33: =IFERROR(VLOOKUP($A33,'Order BOM''s'!$A$3:$E$20,2,FALSE), "") ->  | F33: =IFERROR(VLOOKUP($A33,'Order BOM''s'!$A$3:$E$20,2,FALSE), "") ->  | G33: =IFERROR(VLOOKUP($A33,'Order BOM''s'!$A$3:$E$20,2,FALSE), "") ->  | H33: =IFERROR(VLOOKUP($A33,'Order BOM''s'!$A$3:$E$20,4,FALSE), 0) -> 0 | I33: =IFERROR(VLOOKUP($A33,'Order BOM''s'!$A$3:$E$20,5,FALSE), 0) -> 0 | J33: 0
A34: 18 | B34: =IFERROR(VLOOKUP($A34,'Order BOM''s'!$A$3:$E$20,2,FALSE), "") ->  | C34: =IFERROR(VLOOKUP($A34,'Order BOM''s'!$A$3:$E$20,3,FALSE), "") ->  | D34: =IFERROR(VLOOKUP($A34,'Order BOM''s'!$A$3:$E$20,2,FALSE), "") ->  | E34: =IFERROR(VLOOKUP($A34,'Order BOM''s'!$A$3:$E$20,2,FALSE), "") ->  | F34: =IFERROR(VLOOKUP($A34,'Order BOM''s'!$A$3:$E$20,2,FALSE), "") ->  | G34: =IFERROR(VLOOKUP($A34,'Order BOM''s'!$A$3:$E$20,2,FALSE), "") ->  | H34: =IFERROR(VLOOKUP($A34,'Order BOM''s'!$A$3:$E$20,4,FALSE), 0) -> 0 | I34: =IFERROR(VLOOKUP($A34,'Order BOM''s'!$A$3:$E$20,5,FALSE), 0) -> 0 | J34: 0
B35: Subtotal | I35: =SUM(J17:J34) -> 0
B36: Freight Charges | I36: 0
B37: Total | I37: =I35+J36 -> 0
B39: Special Instructions
B46: Reference Sizes Ordered
C48: Length | D48: Height | F48: Qty
B49: 4' Wide | C49: ='Room Layout'!D30 -> 99.5 | D49: =VLOOKUP(Calcs!P4,'LU Table'!C3:M6,11) -> -- | F49: =Calcs!Q4 -> 0
B50: 5' Wide | C50: =C49 -> 99.5 | D50: =D49 -> -- | F50: =Calcs!Q16 -> 0
C52: Number of Identical Rooms | F52: =Calcs!R4 -> 1

Sheet Existing Comparison (hidden)
D2: Room Comparison
A6: Existing Installation
A7: Number of Benches | B7: 0 | D7: #
A8: Bench Length | B8: 0 | D8: Inches
A9: Tray Width | B9: 0 | D9: Inches
A10: Bench Area | B10: =((B9*B8)/144)*B7 -> 0 | D10: Sq Feet
A12: Room Efficiency
B13: Existing Installation | D13: Botanicares Bench
A14: Total Room Area | B14: =(Calcs!C35*Calcs!C36)/144 -> 10000 | D14: =B14 -> 10000 | F14: Sq Feet
A15: Total Bench Area | B15: =B10 -> 0 | D15: ='Room Layout'!D29 -> 9552 | F15: Sq Feet
A16: Percent Room Utilized | B16: =B15/B14 -> 0 | D16: =D15/D14 -> 0.9552

Sheet Slope-Fractional (hidden)
A1: Arch Height Adjustment Distance for Slope (Fractional Inches)
A2: Arch Number | B2: Nominal Bench Length (ft)
B3: 10 | C3: 15 | D3: 20 | E3: 25 | F3: 30 | G3: 35 | H3: 40 | I3: 45 | J3: 50 | K3: 55 | L3: 60 | M3: 65 | N3: 70 | O3: 75 | P3: 80 | Q3: 85 | R3: 90 | S3: 95 | T3: 100
A4: 1 (Drain) | B4: 0 | C4: 0 | D4: 0 | E4: 0 | F4: 0 | G4: 0 | H4: 0 | I4: 0 | J4: 0 | K4: 0 | L4: 0 | M4: 0 | N4: 0 | O4: 0 | P4: 0 | Q4: 0 | R4: 0 | S4: 0 | T4: 0
A5: 2 | B5: 5/8 | C5: 5/8 | D5: 5/8 | E5: 5/8 | F5: 5/8 | G5: 5/8 | H5: 5/8 | I5: 9/16 | J5: 1/2 | K5: 7/16 | L5: 7/16 | M5: 3/8 | N5: 3/8 | O5: 5/16 | P5: 5/16 | Q5: 5/16 | R5: 1/4 | S5: 1/4 | T5: 1/4
A6: 3 | B6: 1 1/4 | C6: 1 1/4 | D6: 1 1/4 | E6: 1 1/4 | F6: 1 1/4 | G6: 1 1/4 | H6: 1 1/4 | I6: 1 1/8 | J6: 1 | K6: 15/16 | L6: 13/16 | M6: 3/4 | N6: 3/4 | O6: 11/16 | P6: 5/8 | Q6: 9/16 | R6: 9/16 | S6: 1/2 | T6: 1/2
A7: 4 | C7: 1 7/8 | D7: 1 7/8 | E7: 1 7/8 | F7: 1 7/8 | G7: 1 7/8 | H7: 1 7/8 | I7: 1 11/16 | J7: 1 1/2 | K7: 1 3/8 | L7: 1 1/8 | M7: 1 1/8 | N7: 1 1/16 | O7: 1 | P7: 15/16 | Q7: 7/8 | R7: 13/16 | S7: 13/16 | T7: 3/4
A8: 5 | D8: 2 1/2 | E8: 2 1/2 | F8: 2 1/2 | G8: 2 1/2 | H8: 2 1/2 | I8: 2 1/4 | J8: 2 | K8: 1 13/16 | L8: 1 11/16 | M8: 1 9/16 | N8: 1 7/16 | O8: 1 5/16 | P8: 1 1/4 | Q8: 1 3/16 | R8: 1 1/8 | S8: 1 1/16 | T8: 1
A9: 6 | E9: 3 1/8 | F9: 3 1/8 | G9: 3 1/8 | H9: 3 1/8 | I9: 2 3/4 | J9: 2 1/2 | K9: 2 1/4 | L9: 2 1/16 | M9: 1 15/16 | N9: 1 13/16 | O9: 1 11/16 | P9: 1 5/8 | Q9: 1 1/2 | R9: 1 3/8 | S9: 1 5/16 | T9: 1 1/4
A10: 7 | F10: 3 3/4 | G10: 3 3/4 | H10: 3 3/4 | I10: 3 5/16 | J10: 3 | K10: 2 3/4 | L10: 2 1/2 | M10: 2 5/16 | N10: 2 1/8 | O10: 2 | P10: 1 7/8 | Q10: 1 3/4 | R10: 1 11/16 | S10: 1 9/16 | T10: 1 1/2
A11: 8 | G11: 4 3/8 | H11: 4 3/8 | I11: 3 7/8 | J11: 3 1/2 | K11: 3 3/16 | L11: 2 15/16 | M11: 2 11/16 | N11: 2 1/2 | O11: 2 5/16 | P11: 2 3/16 | Q11: 2 1/16 | R11: 1 15/16 | S11: 1 13/16 | T11: 1 3/4
A12: 9 | H12: 5 | I12: 4 7/16 | J12: 4 | K12: 3 5/8 | L12: 3 5/16 | M12: 3 1/16 | N12: 2 7/8 | O12: 2 11/16 | P12: 2 1/2 | Q12: 2 3/8 | R12: 2 1/4 | S12: 2 1/8 | T12: 2
A13: 10 | I13: 5 | J13: 4 1/2 | K13: 4 1/8 | L13: 3 3/4 | M13: 3 7/16 | N13: 3 3/16 | O13: 3 | P13: 2 13/16 | Q13: 2 5/8 | R13: 2 1/2 | S13: 2 3/8 | T13: 2 1/4
A14: 11 | J14: 5 | K14: 4 9/16 | L14: 4 3/16 | M14: 3 7/8 | N14: 3 9/16 | O14: 3 5/16 | P14: 3 1/8 | Q14: 2 15/16 | R14: 2 3/4 | S14: 2 5/8 | T14: 2 1/2
A15: 12 | K15: 5 | L15: 4 9/16 | M15: 4 1/4 | N15: 3 15/16 | O15: 3 11/16 | P15: 3 7/16 | Q15: 3 1/4 | R15: 3 1/16 | S15: 2 7/8 | T15: 2 3/4
A16: 13 | L16: 5 | M16: 4 5/8 | N16: 4 5/16 | O16: 4 | P16: 3 3/4 | Q16: 3 1/2 | R16: 3 5/16 | S16: 3 3/16 | T16: 3
A17: 14 | M17: 5 | N17: 4 5/8 | O17: 4 5/16 | P17: 4 1/16 | Q17: 3 13/16 | R17: 3 5/8 | S17: 3 7/16 | T17: 3 1/4
A18: 15 | N18: 5 | O18: 4 11/16 | P18: 4 3/8 | Q18: 4 1/8 | R18: 3 7/8 | S18: 3 11/16 | T18: 3 1/2
A19: 16 | O19: 5 | P19: 4 11/16 | Q19: 4 7/16 | R19: 4 3/16 | S19: 3 15/16 | T19: 3 3/4
A20: 17 | P20: 5 | Q20: 4 11/16 | R20: 4 7/16 | S20: 4 3/16 | T20: 4
A21: 18 | Q21: 5 | R21: 4 3/4 | S21: 4 1/2 | T21: 4 1/4
A22: 19 | R22: 5 | S22: 4 3/4 | T22: 4 1/2
A23: 20 | S23: 5 | T23: 4 3/4
A24: 21 | T24: 5

Sheet Slope-Decimal (hidden)
A1: Arch Height Adjustment Distance for Slope (Decimal Inches)
A2: Arch Number | B2: Nominal Bench Length(ft)
B3: 10 | C3: 15 | D3: 20 | E3: 25 | F3: 30 | G3: 35 | H3: 40 | I3: 45 | J3: 50 | K3: 55 | L3: 60 | M3: 65 | N3: 70 | O3: 75 | P3: 80 | Q3: 85 | R3: 90 | S3: 95 | T3: 100
A4: 1 (Drain) | B4: 0 | C4: 0 | D4: 0 | E4: 0 | F4: 0 | G4: 0 | H4: 0 | I4: 0 | J4: 0 | K4: 0 | L4: 0 | M4: 0 | N4: 0 | O4: 0 | P4: 0 | Q4: 0 | R4: 0 | S4: 0 | T4: 0
A5: 2 | B5: 0.625 | C5: 0.625 | D5: 0.625 | E5: 0.625 | F5: 0.625 | G5: 0.625 | H5: 0.625 | I5: 0.5555555556 | J5: 0.5 | K5: 0.4545454545 | L5: 0.4166666667 | M5: 0.3846153846 | N5: 0.3571428571 | O5: 0.3333333333 | P5: 0.3125 | Q5: 0.2941176471 | R5: 0.2777777778 | S5: 0.2631578947 | T5: 0.25
A6: 3 | B6: 1.25 | C6: 1.25 | D6: 1.25 | E6: 1.25 | F6: 1.25 | G6: 1.25 | H6: 1.25 | I6: 1.111111111 | J6: 1 | K6: 0.9090909091 | L6: 0.8333333333 | M6: 0.7692307692 | N6: 0.7142857143 | O6: 0.6666666667 | P6: 0.625 | Q6: 0.5882352941 | R6: 0.5555555556 | S6: 0.5263157895 | T6: 0.5
A7: 4 | C7: 1.875 | D7: 1.875 | E7: 1.875 | F7: 1.875 | G7: 1.875 | H7: 1.875 | I7: 1.666666667 | J7: 1.5 | K7: 1.363636364 | L7: 1.25 | M7: 1.153846154 | N7: 1.071428571 | O7: 1 | P7: 0.9375 | Q7: 0.8823529412 | R7: 0.8333333333 | S7: 0.7894736842 | T7: 0.75
A8: 5 | D8: 2.5 | E8: 2.5 | F8: 2.5 | G8: 2.5 | H8: 2.5 | I8: 2.222222222 | J8: 2 | K8: 1.818181818 | L8: 1.666666667 | M8: 1.538461538 | N8: 1.428571429 | O8: 1.333333333 | P8: 1.25 | Q8: 1.176470588 | R8: 1.111111111 | S8: 1.052631579 | T8: 1
A9: 6 | E9: 3.125 | F9: 3.125 | G9: 3.125 | H9: 3.125 | I9: 2.777777778 | J9: 2.5 | K9: 2.272727273 | L9: 2.083333333 | M9: 1.923076923 | N9: 1.785714286 | O9: 1.666666667 | P9: 1.5625 | Q9: 1.470588235 | R9: 1.388888889 | S9: 1.315789474 | T9: 1.25
A10: 7 | F10: 3.75 | G10: 3.75 | H10: 3.75 | I10: 3.333333333 | J10: 3 | K10: 2.727272727 | L10: 2.5 | M10: 2.307692308 | N10: 2.142857143 | O10: 2 | P10: 1.875 | Q10: 1.764705882 | R10: 1.666666667 | S10: 1.578947368 | T10: 1.5
A11: 8 | G11: 4.375 | H11: 4.375 | I11: 3.888888889 | J11: 3.5 | K11: 3.181818182 | L11: 2.916666667 | M11: 2.692307692 | N11: 2.5 | O11: 2.333333333 | P11: 2.1875 | Q11: 2.058823529 | R11: 1.944444444 | S11: 1.842105263 | T11: 1.75
A12: 9 | H12: 5 | I12: 4.444444444 | J12: 4 | K12: 3.636363636 | L12: 3.333333333 | M12: 3.076923077 | N12: 2.857142857 | O12: 2.666666667 | P12: 2.5 | Q12: 2.352941176 | R12: 2.222222222 | S12: 2.105263158 | T12: 2
A13: 10 | I13: 5 | J13: 4.5 | K13: 4.090909091 | L13: 3.75 | M13: 3.461538462 | N13: 3.214285714 | O13: 3 | P13: 2.8125 | Q13: 2.647058824 | R13: 2.5 | S13: 2.368421053 | T13: 2.25
A14: 11 | J14: 5 | K14: 4.545454545 | L14: 4.166666667 | M14: 3.846153846 | N14: 3.571428571 | O14: 3.333333333 | P14: 3.125 | Q14: 2.941176471 | R14: 2.777777778 | S14: 2.631578947 | T14: 2.5
A15: 12 | K15: 5 | L15: 4.583333333 | M15: 4.230769231 | N15: 3.928571429 | O15: 3.666666667 | P15: 3.4375 | Q15: 3.235294118 | R15: 3.055555556 | S15: 2.894736842 | T15: 2.75
A16: 13 | L16: 5 | M16: 4.615384615 | N16: 4.285714286 | O16: 4 | P16: 3.75 | Q16: 3.529411765 | R16: 3.333333333 | S16: 3.157894737 | T16: 3
A17: 14 | M17: 5 | N17: 4.642857143 | O17: 4.333333333 | P17: 4.0625 | Q17: 3.823529412 | R17: 3.611111111 | S17: 3.421052632 | T17: 3.25
A18: 15 | N18: 5 | O18: 4.666666667 | P18: 4.375 | Q18: 4.117647059 | R18: 3.888888889 | S18: 3.684210526 | T18: 3.5
A19: 16 | O19: 5 | P19: 4.6875 | Q19: 4.411764706 | R19: 4.166666667 | S19: 3.947368421 | T19: 3.75
A20: 17 | P20: 5 | Q20: 4.705882353 | R20: 4.444444444 | S20: 4.210526316 | T20: 4
A21: 18 | Q21: 5 | R21: 4.722222222 | S21: 4.473684211 | T21: 4.25
A22: 19 | R22: 5 | S22: 4.736842105 | T22: 4.5
A23: 20 | S23: 5 | T23: 4.75
A24: 21 | T24: 5

Sheet Slope-Metric (hidden)
A1: Arch Height Adjustment Distance for Slope (mm)
A2: Arch Number | B2: Nominal Bench Length (ft)
B3: 10 | C3: 15 | D3: 20 | E3: 25 | F3: 30 | G3: 35 | H3: 40 | I3: 45 | J3: 50 | K3: 55 | L3: 60 | M3: 65 | N3: 70 | O3: 75 | P3: 80 | Q3: 85 | R3: 90 | S3: 95 | T3: 100
A4: 1 (Drain) | B4: 0 | C4: 0 | D4: 0 | E4: 0 | F4: 0 | G4: 0 | H4: 0 | I4: 0 | J4: 0 | K4: 0 | L4: 0 | M4: 0 | N4: 0 | O4: 0 | P4: 0 | Q4: 0 | R4: 0 | S4: 0 | T4: 0
A5: 2 | B5: 15.875 | C5: 15.875 | D5: 15.875 | E5: 15.875 | F5: 15.875 | G5: 15.875 | H5: 15.875 | I5: 14.11111111 | J5: 12.7 | K5: 11.54545455 | L5: 10.58333333 | M5: 9.769230769 | N5: 9.071428571 | O5: 8.466666667 | P5: 7.9375 | Q5: 7.470588235 | R5: 7.055555556 | S5: 6.684210526 | T5: 6.35
A6: 3 | B6: 31.75 | C6: 31.75 | D6: 31.75 | E6: 31.75 | F6: 31.75 | G6: 31.75 | H6: 31.75 | I6: 28.22222222 | J6: 25.4 | K6: 23.09090909 | L6: 21.16666667 | M6: 19.53846154 | N6: 18.14285714 | O6: 16.93333333 | P6: 15.875 | Q6: 14.94117647 | R6: 14.11111111 | S6: 13.36842105 | T6: 12.7
A7: 4 | C7: 47.625 | D7: 47.625 | E7: 47.625 | F7: 47.625 | G7: 47.625 | H7: 47.625 | I7: 42.33333333 | J7: 38.1 | K7: 34.63636364 | L7: 31.75 | M7: 29.30769231 | N7: 27.21428571 | O7: 25.4 | P7: 23.8125 | Q7: 22.41176471 | R7: 21.16666667 | S7: 20.05263158 | T7: 19.05
A8: 5 | D8: 63.5 | E8: 63.5 | F8: 63.5 | G8: 63.5 | H8: 63.5 | I8: 56.44444444 | J8: 50.8 | K8: 46.18181818 | L8: 42.33333333 | M8: 39.07692308 | N8: 36.28571429 | O8: 33.86666667 | P8: 31.75 | Q8: 29.88235294 | R8: 28.22222222 | S8: 26.73684211 | T8: 25.4
A9: 6 | E9: 79.375 | F9: 79.375 | G9: 79.375 | H9: 79.375 | I9: 70.55555556 | J9: 63.5 | K9: 57.72727273 | L9: 52.91666667 | M9: 48.84615385 | N9: 45.35714286 | O9: 42.33333333 | P9: 39.6875 | Q9: 37.35294118 | R9: 35.27777778 | S9: 33.42105263 | T9: 31.75
A10: 7 | F10: 95.25 | G10: 95.25 | H10: 95.25 | I10: 84.66666667 | J10: 76.2 | K10: 69.27272727 | L10: 63.5 | M10: 58.61538462 | N10: 54.42857143 | O10: 50.8 | P10: 47.625 | Q10: 44.82352941 | R10: 42.33333333 | S10: 40.10526316 | T10: 38.1
A11: 8 | G11: 111.125 | H11: 111.125 | I11: 98.77777778 | J11: 88.9 | K11: 80.81818182 | L11: 74.08333333 | M11: 68.38461538 | N11: 63.5 | O11: 59.26666667 | P11: 55.5625 | Q11: 52.29411765 | R11: 49.38888889 | S11: 46.78947368 | T11: 44.45
A12: 9 | H12: 127 | I12: 112.8888889 | J12: 101.6 | K12: 92.36363636 | L12: 84.66666667 | M12: 78.15384615 | N12: 72.57142857 | O12: 67.73333333 | P12: 63.5 | Q12: 59.76470588 | R12: 56.44444444 | S12: 53.47368421 | T12: 50.8
A13: 10 | I13: 127 | J13: 114.3 | K13: 103.9090909 | L13: 95.25 | M13: 87.92307692 | N13: 81.64285714 | O13: 76.2 | P13: 71.4375 | Q13: 67.23529412 | R13: 63.5 | S13: 60.15789474 | T13: 57.15
A14: 11 | J14: 127 | K14: 115.4545455 | L14: 105.8333333 | M14: 97.69230769 | N14: 90.71428571 | O14: 84.66666667 | P14: 79.375 | Q14: 74.70588235 | R14: 70.55555556 | S14: 66.84210526 | T14: 63.5
A15: 12 | K15: 127 | L15: 116.4166667 | M15: 107.4615385 | N15: 99.78571429 | O15: 93.13333333 | P15: 87.3125 | Q15: 82.17647059 | R15: 77.61111111 | S15: 73.52631579 | T15: 69.85
A16: 13 | L16: 127 | M16: 117.2307692 | N16: 108.8571429 | O16: 101.6 | P16: 95.25 | Q16: 89.64705882 | R16: 84.66666667 | S16: 80.21052632 | T16: 76.2
A17: 14 | M17: 127 | N17: 117.9285714 | O17: 110.0666667 | P17: 103.1875 | Q17: 97.11764706 | R17: 91.72222222 | S17: 86.89473684 | T17: 82.55
A18: 15 | N18: 127 | O18: 118.5333333 | P18: 111.125 | Q18: 104.5882353 | R18: 98.77777778 | S18: 93.57894737 | T18: 88.9
A19: 16 | O19: 127 | P19: 119.0625 | Q19: 112.0588235 | R19: 105.8333333 | S19: 100.2631579 | T19: 95.25
A20: 17 | P20: 127 | Q20: 119.5294118 | R20: 112.8888889 | S20: 106.9473684 | T20: 101.6
A21: 18 | Q21: 127 | R21: 119.9444444 | S21: 113.6315789 | T21: 107.95
A22: 19 | R22: 127 | S22: 120.3157895 | T22: 114.3
A23: 20 | S23: 127 | T23: 120.65
A24: 21 | T24: 127
